{"text_format":"1","workbook":"xlsx","n_sheets":9,"sheets":["Prompt","C100","C200","C300","C334","C400","C600","C700","Enviar"],"not_rendered":{"charts":0,"images":7,"macros":1,"external_links":0,"defined_names":1,"comments":2,"pivot_tables":0},"unopened":[],"bounds":{"document_bytes":16777216,"sheet_cells":100000,"rows_first":2000,"rows_last":500,"rows_between":2000,"halvings":0,"cell_chars":16384,"cell_head_chars":4096},"cells_cut":0,"cells_raw":0,"read":"whole","date_system":"1900"}

{"sheet":"Prompt","index":0,"n_rows":79,"n_cols":4,"rows_kept":79,"cut":false,"hidden":false,"merged":[[1,3,2,6],[4,1,6,8],[43,1,44,8],[78,1,79,8],[9,1,10,8]]}
[]
[null,null,null,"¡ATENCIÓN!"]
[]
[]
[null,"Para hacer uso de las funcionalidades de esta Cédula Electrónica debe habilitar macros"]
[]
[]
[]
[]
[null,"Si utiliza Excel 2013 siga el siguiente procedimiento:"]
[]
[]
[]
[]
[]
[]
[]
[]
[]
[]
[]
[]
[]
[]
[]
[]
[]
[]
[]
[]
[]
[]
[]
[]
[]
[]
[]
[]
[]
[]
[]
[]
[]
[null,"Si utiliza Excel 2007 siga el siguiente procedimiento:"]
[]
[]
[]
[]
[]
[]
[]
[]
[]
[]
[]
[]
[]
[]
[]
[]
[]
[]
[]
[]
[]
[]
[]
[]
[]
[]
[]
[]
[]
[]
[]
[]
[]
[]
[null,"Si utiliza Excel 2000, 2002, 2003 siga el siguiente procedimiento:"]

{"sheet":"C100","index":1,"n_rows":356,"n_cols":38,"rows_kept":356,"cut":false,"hidden":true,"merged":[[194,36,195,36],[195,33,195,35],[196,33,196,35],[197,33,197,35],[213,31,213,33],[232,29,232,36],[245,29,245,36],[299,11,299,19],[299,29,299,37],[293,30,293,37],[295,11,295,19],[296,11,296,19],[297,29,297,37],[298,11,298,16],[298,29,298,37],[282,34,282,36],[283,34,283,36],[286,9,286,17],[293,12,293,16],[293,9,293,10],[241,13,241,15],[250,17,250,18],[251,17,251,18],[183,9,183,17],[194,23,195,24],[194,25,195,31],[194,33,194,35],[198,33,198,35],[199,14,199,16],[199,33,199,35],[234,16,234,17],[167,17,168,18],[169,17,169,18],[170,17,170,18],[177,28,177,35],[182,9,182,17],[163,26,163,34],[156,17,157,18],[158,17,159,18],[144,15,144,16],[145,15,145,16],[153,5,153,16],[153,17,153,18],[130,4,130,5],[130,17,130,18],[130,33,130,35],[131,29,133,37],[132,4,132,5],[132,17,132,18],[133,4,133,5],[133,10,133,16],[133,17,133,18],[154,17,155,18],[154,28,154,36],[160,17,161,18],[129,4,129,5],[129,6,129,16],[129,17,129,18],[127,4,127,5],[127,17,127,18],[128,4,128,5],[128,17,128,18],[165,17,166,18],[131,4,131,5],[131,17,131,18],[162,17,162,18],[163,17,164,18],[58,11,58,13],[71,5,71,13],[125,4,125,5],[125,17,125,18],[126,4,126,5],[126,17,126,18],[124,4,124,5],[124,6,124,11],[124,17,124,18],[121,23,123,36],[88,12,88,15],[78,24,78,34],[73,30,73,37],[82,10,82,19],[67,28,67,36],[64,17,65,19],[64,14,64,16],[65,14,65,16],[64,3,65,13],[95,12,95,15],[105,10,105,19],[93,30,93,37],[112,30,112,37],[113,10,113,19],[43,18,43,27],[43,30,43,36],[46,33,46,34],[45,33,45,34],[46,30,46,31],[45,26,45,27],[44,33,44,34],[45,21,45,24],[44,18,44,19],[44,26,44,27],[44,21,44,24],[44,30,44,31],[47,14,47,15],[47,18,47,19],[46,26,46,27],[47,21,47,24],[47,26,47,27],[47,33,47,34],[48,14,48,15],[48,26,48,27],[48,18,48,19],[48,33,48,34],[48,30,48,31],[48,21,48,24],[1,7,1,31],[2,7,2,31],[3,7,3,31],[39,2,39,38],[2,34,4,38],[26,11,26,15],[26,35,26,37],[28,11,28,37],[30,11,30,37],[1,34,1,38],[43,3,43,4],[43,6,43,15],[46,6,46,7],[45,30,45,31],[46,14,46,15],[46,18,46,19],[46,21,46,24],[44,14,44,15],[48,6,48,7],[47,6,47,7],[48,3,48,4],[45,3,45,4],[47,3,47,4],[46,3,46,4],[44,6,44,7],[45,18,45,19],[45,6,45,7],[45,9,45,12],[44,9,44,12],[45,14,45,15],[46,9,46,12],[47,9,47,12],[48,9,48,12],[47,30,47,31]]}
[]
[null,null,null,null,null,null,null,"CENSO EDUCATIVO 2022",null,null,null,null,null,null,null,null,null,null,null,null,null,null,null,null,null,null,null,null,null,null,null,null,null,null,"CÉDULA"]
[null,null,null,null,null,null,null,"EDUCACIÓN BÁSICA ALTERNATIVA",null,null,null,null,null,null,null,null,null,null,null,null,null,null,null,null,null,null,null,null,null,null,null,null,null,null,"4AA"]
[null,null,null,null,null,null,null,"AVANZADO"]
[null,null,"Version :",null,2]
[null,null,"INSTRUCCIONES DEL FORMATO ELECTRÓNICO "]
[]
[]
[]
[]
[]
[]
[]
[]
[]
[]
[]
[]
[]
[]
[]
[]
[]
[null,null,"IDENTIFICACIÓN DEL SERVICIO EDUCATIVO (Para II.EE. Públicas y Privadas)"]
[]
[]
[null,null,null,"1. CÓDIGO MODULAR :",null,null,null,null,null,null,null,null,null,null,null,null,null,null,null,null,null,null,null,null,null,null,null,null,null,null,null,null,null,"2. CÓDIGO DE LOCAL EDUCATIVO :"]
[]
[null,null,null,"3. NOMBRE DEL SERVICIO/NIVEL :",null,null,null,null,null,null,null,""]
[]
[null,null,null,"4. DISTRITO :",null,null,null,null,null,null,null,""]
["FORMA"]
[{"$f":"CONCATENATE(TRIM(UPPER(P33)),TRIM(UPPER(V33)),TRIM(UPPER(AB33)))","v":""},null,null,"5. FORMA DE ATENCIÓN DEL CEBA REFERENCIAL :",null,null,null,null,null,null,null,null,null,null,null,null,"Presencial",null,null,null,null,null,"Semipresencial",null,null,null,null,null,"A distancia"]
[]
[]
["GESTIÓN"]
[{"$f":"CONCATENATE(TRIM(UPPER(O37)),TRIM(UPPER(X37)),TRIM(UPPER(AG37)))","v":""},null,null,"GESTIÓN DE LA INSTITUCIÓN EDUCATIVA :",null,null,null,null,null,null,null,null,null,null,null," 1 - Pública de gestión directa",null,null,null,null,null,null,null,null," 2 - Pública de gestión privada",null,null,null,null,null,null,null,null," 3 - Privada"]
[]
[]
[null,null,"100. CARACTERÍSTICA DEL SERVICIO EDUCATIVO (Para II.EE. Públicas y Privadas)"]
[]
[null,null,null,"101. INDIQUE, ¿CUÁNTOS PERÍODOS PROMOCIONALES HA PREVISTO EN EL PRESENTE AÑO?",null,null,null,null,null,null,null,null,null,null,null,null,null,null,null,null,null,null,null,"Anote la información en los casilleros correspondientes"]
[]
[null,null,null,{"$f":"SUM(D46:E49)","v":0},null,null,"INICIO (*)",null,null,null,null,null,null,null,null,null,null,null,"FINALIZACIÓN (*)",null,null,null,null,null,null,null,null,null,null,null,"TURNO"]
[null,null,null,"Periodo",null,null,"Dia",null,null,"Mes",null,null,null,null,"Año",null,null,null,"Dia",null,null,"Mes",null,null,null,null,"Año",null,null,null,"Mañana",null,null,"Tarde",null,null,"Noche"]
[null,null,null,null,null,null,null,null,null,null,null,null,null,null,null,null,{"$f":"IF(AND(G46<>\"\",J46<>\"\",O46<>\"\"),0,1)","v":1},null,null,null,null,null,null,null,null,null,null,null,{"$f":"IF(AND(S46<>\"\",V46<>\"\",AA46<>\"\"),0,1)","v":1},null,null,null,null,null,null,null,null,{"$f":"IF(OR(AE46<>\"\",AH46<>\"\",AK46<>\"\"),0,1)","v":1}]
[null,null,null,null,null,null,null,null,null,null,null,null,null,null,null,null,{"$f":"IF(AND(G47<>\"\",J47<>\"\",O47<>\"\"),0,1)","v":1},null,null,null,null,null,null,null,null,null,null,null,{"$f":"IF(AND(S47<>\"\",V47<>\"\",AA47<>\"\"),0,1)","v":1},null,null,null,null,null,null,null,null,{"$f":"IF(OR(AE47<>\"\",AH47<>\"\",AK47<>\"\"),0,1)","v":1}]
[null,null,null,null,null,null,null,null,null,null,null,null,null,null,null,null,{"$f":"IF(AND(G48<>\"\",J48<>\"\",O48<>\"\"),0,1)","v":1},null,null,null,null,null,null,null,null,null,null,null,{"$f":"IF(AND(S48<>\"\",V48<>\"\",AA48<>\"\"),0,1)","v":1},null,null,null,null,null,null,null,null,{"$f":"IF(OR(AE48<>\"\",AH48<>\"\",AK48<>\"\"),0,1)","v":1}]
[null,null,null,null,null,null,null,null,null,null,null,null,null,null,null,null,{"$f":"IF(AND(G49<>\"\",J49<>\"\",O49<>\"\"),0,1)","v":1},null,null,null,null,null,null,null,null,null,null,null,{"$f":"IF(AND(S49<>\"\",V49<>\"\",AA49<>\"\"),0,1)","v":1},null,null,null,null,null,null,null,null,{"$f":"IF(OR(AE49<>\"\",AH49<>\"\",AK49<>\"\"),0,1)","v":1}]
[null,null,null,"(*) El inicio puede corresponder al 2020 y la finalización al 2021 respectivamente"]
[]
[]
[null,null,null,"102. ¿EL CEBA TIENE PERIFÉRICOS A CARGO?",null,null,null,null,null,null,null,null,null,null,null,null,null,null,null,null,null,null,"104. ¿CUÁNTOS PERIFÉRICOS FUNCIONAN DURANTE LA SEMANA?"]
[null,null,null,null,null,null,null,null,null,null,null,null,null,null,null,null,null,null,null,null,null,null,null,"(Marque con un aspa “X” los días y anote en los casilleros el número de"]
[{"$f":"CONCATENATE(F55,M55)","v":""},null,null,null,"Sí",null,null,null,null,null,null,"No",null,null,"Pase a la pregunta 106",null,null,null,null,null,null,null,null,"periféricos según corresponda)"]
[]
[null,null,null,"103. ¿CUÁNTOS PERIFÉRICOS ESTÁN ASOCIADOS AL CEBA?",null,null,null,null,null,null,null,null,null,null,null,null,null,null,null,null,null,null,null,null,null,null,null,null,null,"Lu","Ma","Mi","Ju","Vi","Sa","Do"]
[null,null,null,null,null,null,null,null,null,null,null,null,null,null,null,null,null,null,null,null,null,null,null,null,"Dias de la semana"]
[null,null,null,null,null,"Cuantos",null,null,null,null,null,null,null,null,null,null,null,null,null,null,null,null,null,null,"Nº de Perifericos"]
[]
[]
[null,null,null,"105. EL CEBA REFERENCIAL O ALGÚN PERIFÉRICO, ¿ATIENDE LA POBLACIÓN ",null,null,null,null,null,null,null,null,null,null,null,null,null,null,null,null,null,null,"111. ¿EL CEBA (REFERENCIAL) FUNCIONA EN LOCAL?"]
[null,null,null,null,"MATRICULADA EN:?",null,null,null,null,null,"(Marque con una “X” uno o más casilleros)",null,null,null,null,null,null,null,null,null,null,null,null,"(Marque con una “X”, una opción)"]
[]
[null,null,null,"Centro / Dependencia",null,null,null,null,null,null,null,null,null,null,"CEBA",null,null,"Periférico",null,null,null,null,null,null,null,"Propio"]
[null,null,null,null,null,null,null,null,null,null,null,null,null,null,"Referencial",null,null,null,null,null,null,null,null,null,null,"Alquilado"]
[null,null,null,"Centro Penitenciario",null,null,null,null,null,null,null,null,null,null,null,null,null,null,null,null,null,null,null,null,null,"Prestado"]
[null,null,null,"Muelle o Caleta",null,null,null,null,null,null,null,null,null,null,null,null,null,null,null,null,null,null,null,null,null,"Otros"]
[null,null,null,"Dependencia de FF.AA. (cuarteles)"]
[{"$f":"COUNTIF(O67:T72,\"X\")","v":0},null,null,"Centro de Adulto Mayor",null,null,null,null,null,null,null,null,null,null,null,null,null,null,null,null,null,null,"112. ¿EL LOCAL QUE OCUPA EL CEBA REFERENCIAL ES:"]
[{"$f":"CONCATENATE(P72,S72)","v":""},null,null,"Centros Juveniles de Diagnóstico y Rehabilitación",null,null,null,null,null,null,null,null,null,null,null,null,null,null,null,null,null,null,null,"(Marque con una “X”, una opción)"]
[null,null,null,"Otro"]
[null,null,null,null,null,null,null,null,null,null,null,null,null,null,null,null,null,null,null,null,null,null,null,null,null,"De uso exclusivo"]
[null,null,null,"106.¿ EL CEBA TIENE CONVENIO CON…?",null,null,null,null,null,null,null,null,null,null,null,null,null,null,null,null,null,null,null,null,null,"De uso compartido"]
[null,null,null,null,"(Marque con un aspa “X” uno o más casilleros)"]
[null,null,null,null,null,"Intitutos o Escuelas de Educación Superior",null,null,null,null,null,null,null,null,null,null,null,null,null,null,null,null,"113. ¿EL SERVICIO/NIVEL EDUCATIVO, HA DESARROLLADO UNA O ALGUNAS DE"]
[null,null,null,null,null,"Centro de Educación Técnico Productivo (CETPRO)",null,null,null,null,null,null,null,null,null,null,null,null,null,null,null,null,null,"LAS ACTIVIDADES PROPUESTAS PARA LA IMPLEMENTACIÓN DE LA EIT?"]
[null,null,null,null,null,"Instituto Nacional Penitenciario (INPE)"]
[null,null,null,null,null,"Gobierbo Local",null,null,null,null,null,null,null,null,null,null,null,null,null,null,null,null,null,null,"Activivades EIT",null,null,null,null,null,null,null,null,null,null,{"$f":"COUNTIF(AK80:AK82,\"SI\")+COUNTIF(AK80:AK82,\"NO\")","v":0}," Si - No"]
[null,null,null,null,null,"Gobierno Regional",null,null,null,null,null,null,null,null,null,null,null,null,null,null,null,null,null,null,"Descubriendo nuevos orígenes"]
[null,null,null,null,null,"Empresas",null,null,null,null,null,null,null,null,null,null,null,null,null,null,null,null,null,null,"Encuentro con nuestra diversidad"]
[null,null,null,null,null,"Centros juveniles de diagnóstico y rehabilitación (CJDR)",null,null,null,null,null,null,null,null,null,null,null,null,null,null,null,null,null,null,"Feria de la diversidad"]
[null,null,null,null,null,"Otro",null,"Especificar"]
[null,null,null,null,null,"Ninguno"]
[null,null,null,null,null,null,null,null,null,null,null,null,null,null,null,null,null,null,null,null,null,null,"114. EN LOS ÚLTIMOS TRES MESES, ¿SE COORDINÓ U OFRECIO ALGÚN PROGRAMA"]
[null,null,null,"107. ¿EL CEBA TIENE EL CONSEJO DE PARTICIPACIÓN DE ESTUDIANTES",null,null,null,null,null,null,null,null,null,null,null,null,null,null,null,null,null,null,null,"O SERVICIO, COMO?:",null,null,null,null,null,"(Marque con una “X”, una o más opciones)"]
[null,null,null,null,"(COPAE) RECONOCIDO CON RESOLUCIÓN DIRECTORAL?"]
[null,null,null,null,null,null,null,null,null,null,null,null,null,null,null,null,null,null,null,null,null,null,null,null,null,"Programa Qali Warma"]
[null,null,null,null,"Sí",null,null,null,"Nº de resolución",null,null,null,null,null,null,null,null,null,null,null,null,null,null,null,null,"Campaña de vacunación"]
[null,null,null,null,null,null,null,null,null,null,null,null,null,null,null,null,null,null,null,null,null,null,null,null,null,"Control de crecimiento y desarrollo"]
[null,null,null,null,"No",null,null,null,null,null,null,null,null,null,null,null,null,null,null,null,null,null,null,null,null,"SAANEE"]
[null,null,null,null,null,null,null,null,null,null,null,null,null,null,null,null,null,null,null,null,null,null,null,null,null,"Programa de Intervención temprana (PRITE)"]
[null,null,null,"108. ¿EL CEBA TIENE EL CONSEJO EDUCATIVO INSTITUCIONAL (CONEI)",null,null,null,null,null,null,null,null,null,null,null,null,null,null,null,null,null,null,null,null,null,"Servicio de Apoyo Educativo Virtual (SAEV)"]
[null,null,null,null,"RECONOCIDO CON RESOLUCIÓN DIRECTORAL?",null,null,null,null,null,null,null,null,null,null,null,null,null,null,null,null,null,null,null,null,"Otro (especifique)"]
[null,null,null,null,null,null,null,null,null,null,null,null,null,null,null,null,null,null,null,null,null,null,null,null,null,"Ninguno"]
[null,null,null,null,"Sí",null,null,null,"Nº de resolución"]
[]
[null,null,null,null,"No",null,null,null,null,null,null,null,null,null,null,null,null,null,null,null,null,null,"115. EL SERVICIO/NIVEL EDUCATIVO QUE DIRIGE, ¿DURANTE EL PRESENTE AÑO"]
[null,null,null,null,null,null,null,null,null,null,null,null,null,null,null,null,null,null,null,null,null,null,null,"HA RECIBIDO O VIENE RECIBIENDO APOYO DE ALGUNA EMPRESA PRIVADA "]
[null,null,null,"109. ¿EL CEBA HA IMPLEMENTADO LAS PROPUESTAS PEDAGÓGICAS",null,null,null,null,null,null,null,null,null,null,null,null,null,null,null,null,null,null,null,"O DE ALGUNA ONG EN TEMAS DE MEJORA DE INFRAESTRUCTURA, MOBILIA-"]
[null,null,null,null,"SIGUIENTES?",null,null,null,"(Marque con un aspa “X” uno o más casilleros)",null,null,null,null,null,null,null,null,null,null,null,null,null,null,"RIO Y EQUIPAMIENTO?"]
[]
[null,null,null,null,null,"Personas Adulto Mayor (PAM)",null,null,null,null,null,null,null,null,null,null,null,null,null,null,null,null,null,"Sí",null,null,null,null,null,"No",null,null,null,null,"Pase a la pregunta 117."]
[null,null,null,null,null,"Personas Privadas de Libertad (PPL)"]
[null,null,null,null,null,"Personas dedicadas a la Pesca Artesanal"]
[null,null,null,null,null,"Otro",null,"Especificar",null,null,null,null,null,null,null,null,null,null,null,null,null,null,"116. INDIQUE EL TIPO DE APOYO QUE HA RECIBIDO DE LA EMPRESA PRIVADA U"]
[null,null,null,null,null,null,null,null,null,null,null,null,null,null,null,null,null,null,null,null,null,null,null,"ONG MENCIONADA EN SU RESPUESTA ANTERIOR"]
[null,null,null,"110. ¿EL CEBA HA ELABORADO MATERIALES EDUCATIVOS PROPIOS COMO?",null,null,null,null,null,null,null,null,null,null,null,null,null,null,null,null,null,null,null,"(Marque con una “X”, una o más opciones)"]
[null,null,null,null,"(Marque con una “X”, una o más opciones)"]
[null,null,null,null,null,null,null,null,null,null,null,null,null,null,null,null,null,null,null,null,null,null,null,null,null,"Infraestructura"]
[null,null,null,null,null,"Módulos de Auto Aprendizaje",null,null,null,null,null,null,null,null,null,null,null,null,null,null,null,null,null,null,null,"Mobiliario"]
[null,null,null,null,null,"Textos",null,null,null,null,null,null,null,null,null,null,null,null,null,null,null,null,null,null,null,"Equipamiento"]
[null,null,null,null,null,"Fascículos",null,null,null,null,null,null,null,null,null,null,null,null,null,null,null,null,null,null,null,"Otro",null,"Especificar"]
[null,null,null,null,null,"Otros",null,"Especificar"]
[]
[]
[]
[]
[]
[null,null,null,"B. SOBRE LA BASE DEL CENSO DE POBLACIÓN Y VIVIENDA 2017 DEL INEI"]
[null,null,null,"117.  SEGÚN LAS COSTUMBRES Y EL ORIGEN FAMILIAR, ¿USTED CONSIDERA QUE"]
[null,null,null,null,"SU SERVICIO/NIVEL EDUCATIVO CUENTA CON ESTUDIANTES PERTENE-",null,null,null,null,null,null,null,null,null,null,null,null,null,null,null,null,null,null,"SOLO SI MARCÓ DOS O MÁS ALTERNATIVAS EN LA PREGUNTA ANTERIOR, RESPONDA:"]
[null,null,null,null,"CIENTES A LOS SIGUIENTES GRUPOS ÉTNICOS?"]
[]
[null,null,null,null,"COD.",null,"GRUPO ÉTNICO",null,null,null,null,null,null,null,null,null,{"$f":"COUNTIF(R126:R134,\"SI\")","v":0}," SI - NO"]
[null,null,null,null,1,null,"Quechua"]
[null,null,null,null,2,null,"Aimara"]
[null,null,null,null,3,null,"Nativo o indígena de la Amazonía",null,null,null,null,null,null,null,null,null,null,null,null,null,null,null,"118. ¿EXISTE UN GRUPO QUE TENGA MAYOR CANTIDAD DE ESTUDIANTES?"]
[null,null,null,null,4,null,"Perteneciente o parte de otro pueblo indígena"]
[null,null,null,null,5,null,"Negro moreno, zambo, mulato/Pueblo afroperuano o afrodescendiente"]
[null,null,null,null,6,null,"Blanco",null,null,null,null,null,null,null,null,null,null,null,null,null,null,null,null,"Sí",null,null,null,null,null,null,"Código"]
[null,null,null,null,7,null,"Mestizo",null,null,null,null,null,null,null,null,null,null,null,null,null,null,null,null,null,null,null,null,null,null,"Indique el grupo étnico en el que identifica mayor cantidad de estudiantes utilizando el COD. seleccionado en la pregunta 117."]
[null,null,null,null,8,null,"Asiático peruano",null,null,null,null,null,null,null,null,null,null,null,null,null,null,null,null,"No"]
[null,null,null,null,9,null,"Otro  especifique"]
[null,null,null,null,null,null,null,null,null,null,null,null,null,null,null,null,null,{"$f":"COUNTIF(R126:R134,\"SI\")+COUNTIF(R126:R134,\"NO\")","v":0}]
[]
[null,null,null,"C. ACOMPAÑAMIENTO Y SOPORTE PEDAGÓGICO"]
[null,null,null,"119. DESDE EL INICIO DEL AÑO ESCOLAR 2021 HASTA LA FECHA DE REPORTE",null,null,null,null,null,null,null,null,null,null,null,null,null,null,null,null,null,null,"124. EN EL PRESENTE AÑO, EL PERSONAL DIRECTIVO DE ESTE NIVEL/SERVICIO"]
[null,null,null,"DEL CENSO EDUCATIVO EL SERVICIO/NIVEL EDUCATIVO, ¿HA RECIBIDO",null,null,null,null,null,null,null,null,null,null,null,null,null,null,null,null,null,null,null,"¿BRINDA SOPORTE Y APOYO A LOS DOCENTES EN TORNO A SU DESEMPEÑO"]
[null,null,null,"COMUNICACIÓN O PARTICIPACIÓN PRESENCIAL O VIRTUAL/REMOTA DEL",null,null,null,null,null,null,null,null,null,null,null,null,null,null,null,null,null,null,null,"EN EL MARCO DEL ACOMPAÑAMIENTO PEDAGÓGICO Y ESPACIOS DE TRABAJO"]
[null,null,null,"ESPECIALISTA PEDAGÓGICO DE LA UGEL, CON LA FINALIDAD DE BRINDAR",null,null,null,null,null,null,null,null,null,null,null,null,null,null,null,null,null,null,null,"COLEGIADO?"]
[null,null,null,"ASISTENCIA TÉCNICA?"]
[null,null,null,null,null,null,null,null,null,null,null,null,null,null,null,null,null,null,null,null,null,null,null,"Sí",null,null,null,null," No  ",null,null,null,"Pase a la pregunta 126."]
[null,null,null,null,"Sí",null,null,null,null,"¿Cuántas veces?"]
[null,null,null,null,null,null,null,null,null,null,"Presencial:",null,null,null,null,null,null,null,null,null,null,null,"125. ¿QUÉ TEMAS HAN SIDO ABORDADOS MAYORITARIAMENTE POR EL EQUIPO"]
[{"$f":"CONCATENATE(F144,F148)","v":""},null,null,null,null,null,null,null,null,null,"Virtual/Remota:",null,null,null,null,null,null,null,null,null,null,null,null,"DIRECTIVO DURANTE LAS SESIONES DE SOPORTE Y APOYO A LOS DOCENTES"]
[null,null,null,null,null,null,null,null,null,null,null,null,null,null,null,null,null,null,null,null,null,null,null,"EN EL MARCO DEL ACOMPAÑAMIENTO PEDAGÓGICO Y ESPACIOS DE TRABAJO"]
[null,null,null,null," No  ",null,null,null,null,"Pase a la pregunta 121.",null,null,null,null,null,null,null,null,null,null,null,null,null,"COLEGIADO?",null,null,"(Marque con un aspa “X” una o más opciones)"]
[]
[null,null,null,"120. ¿CUÁLES DE LAS SIGUIENTES ACCIONES HA REALIZADO EL ESPECIALISTA ",null,null,null,null,null,null,null,null,null,null,null,null,null,null,null,null,null,null,null,null,"Planificación curricular"]
[null,null,null,"PEDAGÓGICO AL MOMENTO DE BRINDAR LA ASISTENCIA TÉCNICA AL",null,null,null,null,null,null,null,null,null,null,null,null,null,null,null,null,null,null,null,null,"Conducción de los aprendizajes"]
[null,null,null,"SERVICIO/NIVEL EDUCATIVO?",null,null,null,null,null,null,null,null,null,null,null,null,null,null,null,null,null,null,null,null,"Como brindar acompañamiento socioafectivo y cognitivo"]
[null,null,null,null,null,null,null,null,null,null,null,null,null,null,null,null,null,null,null,null,null,null,null,null,"Uso de los recursos y materiales educativos para atender la diversidad"]
[null,null,null,null,"NRO","ACCIONES",null,null,null,null,null,null,null,null,null,null,null," SI - NO",null,null,null,null,null,null,"Fortalecimiento del uso de TIC"]
[null,null,null,null,1,"Pregunto sobre las necesidades y demandas pedagógicas",null,null,null,null,null,null,null,null,null,null,null,null,null,null,null,null,null,null,"Otros temas"]
[null,null,null,null,null,"del servicio/nivel educativo"]
[null,null,null,null,2,"Observó alguna sesión o actividades de aprendizaje, ya sea",null,null,null,null,null,null,null,null,null,null,null,null,null,null,null,null,"126. EL SERVICIO/NIVEL EDUCATIVO, ¿ DESARROLLA LAS SIGUIENTES ESTRATEGIAS"]
[null,null,null,null,null,"de manera presencial o virtual/remota",null,null,null,null,null,null,null,null,null,null,null,null,null,null,null,null,null,"DE ACOMPAÑAMIENTO?"]
[null,null,null,null,3,"Sostuvó un clima de confianza y proximidad durante sus",null,null,null,null,null,null,null,null,null,null,null,null,null,null,null,null,null,null,null,null,null,null,null,null,null,null,null,null,"¿Cuántos?"]
[null,null,null,null,null,"acciones de asistencia técnica con este servicio educativo",null,null,null,null,null,null,null,null,null,null,null,null,null,null,null,null,null,null,null,null,null,null,null,null,null,null,null,null,null,"De 1 a 4 por área"]
[null,null,null,null,4,"Generó algún espacio para que el director(a) del servicio",null,null,null,null,null,null,null,null,null,null,null,null,null,null,null,null,null,null,"Visita en aula",null,null,null,null,null,null,null,null,null,null,"De 4 a 8 por área"]
[null,null,null,null,null,"educativo autoevalúe su práctica",null,null,null,null,null,null,null,null,null,null,null,null,null,null,null,null,null,null,"Grupos de Interaprendizaje (GIA)",null,null,null,null,null,null,null,null,null,null,"Más de 8 por área"]
[null,null,null,null,5,"Escuchó y respondió las dudas y consultas realizadas",null,null,null,null,null,null,null,null,null,null,null,null,null,null,null,null,null,null,"Talleres"]
[null,null,null,null,6,"Las orientaciones brindadas atendieron las necesidades y",null,null,null,null,null,null,null,null,null,null,null,null,null,null,null,null,null,null,"Otros"]
[null,null,null,null,null,"demandas señaladas"]
[null,null,null,null,7,"Brindó orientaciones para la mejora de las prácticas pedagógicas",null,null,null,null,null,null,null,null,null,null,null,null,null,null,null,null,"127. EL SERVICIO/NIVEL EDUCATIVO, ¿REALIZA ACTIVIDADES CON FAMILIAS Y"]
[null,null,null,null,null,"y de gestión acorde al enfoque por competencias.",null,null,null,null,null,null,null,null,null,null,null,null,null,null,null,null,null,"COMUNIDAD QUE AYUDEN A LA PROMOCIÓN DE UN AMBIENTE INSTITUCIONAL"]
[null,null,null,null,8,"Sugirió estrategias pedagógicas contextualizadas para",null,null,null,null,null,null,null,null,null,null,null,null,null,null,null,null,null,"FAVORABLE PARA LA ATENCIÓN DE LA DIVERSIDAD?"]
[null,null,null,null,null,"mejorar las prácticas docentes"]
[null,null,null,null,9,"Dio a conocer las fortalezas del servicio / nivel educativo",null,null,null,null,null,null,null,null,null,null,null,null,null,null,null,null,null,"Sí",null,null,null,null,null,null,null," No  "]
[null,null,null,null,10,"Se asumieron compromisos y/o acuerdos para la mejora"]
[null,null,null,null,null,null,null,null,null,null,null,null,null,null,null,null,null,{"$f":"COUNTIF(R155:R171,\"SI\") + COUNTIF(R155:R171,\"NO\")","v":0},null,null,null,null,null,null,null,"¿Qué actividades realiza?"]
[null,null,null,"121. EL SERVICIO/NIVEL EDUCATIVO, EN EL AÑO 2020 Y HASTA EL REPORTE"]
[null,null,null,null,"DEL CENSO EDUCATIVO 2022, ¿HA RECIBIDO ALGÚN TIPO DE",null,null,null,null,null,null,null,null,null,null,null,null,null,null,null,null,null,null,null,null,"Acompañamiento en el proceso de aprendizaje"]
[null,null,null,null,"ACOMPAÑAMIENTO DIRIGIDO AL DIRECTIVO?",null,null,null,null,null,null,null,null,null,null,null,null,null,null,null,null,null,null,null,null,"Actividades que fortalecen las competencias parentales"]
[null,null,null,null,null,null,null,null,null,null,null,null,null,null,null,null,null,null,null,null,null,null,null,null,null,"Vínculos afectivos con hijos e hijas"]
[null,null,null,null," Sí",null,null,null,null,null,null," No  ",null,null,null,null,null,null,null,null,null,null,null,null,null,"Jornadas con madres y padres"]
[null,null,null,null,null,null,null,null,null,null,null,null,null,null,null,null,null,null,null,null,null,null,null,null,null,"Otros"]
[null,null,null,null,null,null,"¿Que Institución le brindó el acompañamiento?"]
[null,null,null,null,null,null,null,null,null,null,null,null,null,null,null,null,null,null,null,null,null,null,"128. ¿HA VISITADO EL PORTAL WEB PARA DIRECTIVOS EN LOS ÚLTIMOS TRES"]
[null,null,null,null,null,null,"DRE",null,null,null,null,null,null,null,null,null,null,null,null,null,null,null,null,"MESES?"]
[null,null,null,null,null,null,"UGEL"]
[null,null,null,null,null,null,"MINEDU",null,null,null,null,null,null,null,null,null,null,null,null,null,null,null,null,"Sí",null,null,null,null,null,null,null,"No"]
[null,null,null,null,null,null,"OTROS"]
[null,null,null,null,null,null,null,null,null,null,null,null,null,null,null,null,null,null,null,null,null,null,null,null,null,"¿La información encontrada en el portal web para directivos"]
[null,null,null,"122. DURANTE EL AÑO 2020, EL EQUIPO DIRECTIVO DE ESTE NIVEL/SERVICO",null,null,null,null,null,null,null,null,null,null,null,null,null,null,null,null,null,null,null,null,null,"le resulto de utilidad?"]
[null,null,null,null,"EDUCATIVO ¿HA AREALIZADO EL MONITOREO A LA PRÁCTICA"]
[null,null,null,null,"PEDAGÓGICA DE LOS DOCENTES?",null,null,null,null,null,null,null,null,null,null,null,null,null,null,null,null,null,null,null,null,null,null,"Sí",null,null,null,null,null,"No"]
[]
[null,null,null,null,"Sí",null,null,null,null,"\n¿A cuántos",null,null,null,"Todos los docentes",null,null,null,null,null,null,null,null,"129. ESTE NIVEL/SERVICIO EDUCATIVO, ¿HA RECIBIDO ALGÚN TIPO DE PERSONAL"]
[null,null,null,null,null,null,null,null,null,"\ndocentes?",null,null,null,"Más del 50% de docentes",null,null,null,null,null,null,null,null,null,"DURANTE EL PROCESO DE MATRÍCULA EXCEPCIONAL 2021?"]
[null,null,null,null,null,null,null,null,null,null,null,null,null,"Menos del 50% de docentes"]
[null,null,null,null,null,null,null,null,null,null,null,null,null,null,null,null,null,null,null,null,null,null,"(Especifique “Sí” o “No” recibió algún tipo de personal y luego consigne la cantidad recibida)"]
[null,null,null,null," No  ",null,null,null,null,"Pase a la pregunta 124."]
[null,null,null,null,null,null,null,null,null,null,null,null,null,null,null,null,null,null,null,null,null,null,null,"Nro.",null,"Tipo de personal",null,null,null,null,null,null,null,"¿Recibió?",null,null,"¿Cuántos recibió?"]
[null,null,null,"123. DURANTE EL AÑO 2020, ¿CUÁNTAS REUNIONES EN PROMEDIO POR",null,null,null,null,null,null,null,null,null,null,null,null,null,null,null,null,null,null,null,null,null,null,null,null,null,null,null,null,null,"SI - NO"]
[null,null,null,null,"SEMANA DE TRABAJO COLEGIADO O FORMACIÓN REALIZÓ CON EL",null,null,null,null,null,null,null,null,null,null,null,null,null,null,null,null,null,null,1,null,"Director"]
[null,null,null,null,"PRESONAL DE ESTE NIVEL/SERVICO EDUCATIVO?",null,null,null,null,null,null,null,null,null,null,null,null,null,null,null,null,null,null,2,null,"Sub-director"]
[null,null,null,null,null,null,null,null,null,null,null,null,null,null,null,null,null,null,null,null,null,null,null,3,null,"Personal docente"]
[null,null,null,null,null,"N° de reuniones promedio por semana",null,null,null,null,null,null,null,null,null,null,null,null,null,null,null,null,null,4,null,"Personal administrativo"]
[null,null,null,null,null,null,null,null,null,null,null,null,null,null,null,null,null,null,null,null,null,null,null,null,null,null,null,null,null,null,null,null,null,null,{"$f":"COUNTIF(AH197:AJ200,\"SI\") + COUNTIF(AH197:AJ200,\"NO\")","v":0}]
[]
[null,null,null,"D. ATENCIÓN A LA DIVERSIDAD Y SOBRE EL SERVICIO DE APOYO Y ASESORAMIENTO A LAS NECESIDADES EDUCATIVAS ESPECIALES - SAANEE"]
[null,null,null,"130. ESTE NIVEL/SERVICIO EDUCATIVO ¿TIENE TECNOLOGÍA PARA RESPONDER A",null,null,null,null,null,null,null,null,null,null,null,null,null,null,null,null,null,null,"137. ¿EL SERVICIO/NIVEL EDUCATIVO HA RECIBIDO ASISTENCIA Y ORIENTACIÓN"]
[null,null,null,null,"LAS NECESIDADES EDUCATIVAS ESPECIALES (NEE) DE LOS ESTUDIANTES?",null,null,null,null,null,null,null,null,null,null,null,null,null,null,null,null,null,null,"PARA LA ATENCIÓN EDUCATIVA DE ESTUDIANTES CON DISCAPACIDAD, DE"]
[null,null,null,null,null,null,null,null,null,null,null,null,null,null,null,null,null,null,null,null,null,null,null,"PARTE DEL SERVICIO DE APOYO EDUCATIVO VIRTUAL (SAEV)?"]
[null,null,null,null,"Sí",null,null,null,null,null,null,null,"No"]
[null,null,null,null,null,null,null,null,null,null,null,null,null,null,null,null,null,null,null,null,null,null,null,"Sí",null,null,null,null,"No",null,null,null,null,"Pase a la pregunta 139."]
[null,null,null,"131. ESTE NIVEL/SERVICIO EDUCATIVO ¿CUENTA CON MATERIALES EDUCATIVOS"]
[null,null,null,null,"PARA ATENDER A ESTUDIANTES CON NECESIDADES EDUCATIVAS ESPECIALES?",null,null,null,null,null,null,null,null,null,null,null,null,null,null,null,null,null,"138. ¿CUÁNTOS ESTUDIANTES CON DISCAPACIDAD ESTAN A CARGO DE LOS"]
[null,null,null,null,null,null,null,null,null,null,null,null,null,null,null,null,null,null,null,null,null,null,null,"DOCENTES QUE HAN RECIBIDO ASISTENCIA Y ORIENTACIÓN POR EL "]
[null,null,null,null,"Sí",null,null,null,null,null,null,null,"No",null,null,null,null,null,null,null,null,null,null,"SERVICIO DE APOYO EDUCATIVO VIRTUAL (SAEV)"]
[]
[null,null,null,"132. EL LOCAL DONDE OPERA ESTE SERVICIO/NIVEL EDUCATIVO, ¿CUENTA CON",null,null,null,null,null,null,null,null,null,null,null,null,null,null,null,null,null,null,null,null,null,"Cantidad:"]
[null,null,null,null,"INFRAESTRUCTURA PARA RESPONDER A LA DIVERSIDAD O LAS NEE, (RAMPA,"]
[null,null,null,null,"SEÑALÉTICA, ENTRE OTROS)?",null,null,null,null,null,null,null,null,null,null,null,null,null,null,null,null,null,"139. ¿DURANTE LOS ÚLTIMOS 5 AÑOS, EL PERSONAL DE ESTE SERVICIO/NIVEL"]
[null,null,null,null,null,null,null,null,null,null,null,null,null,null,null,null,null,null,null,null,null,null,null,"EDUCATIVO (YA SEA PERSONAL DIRECTIVO/JERARQUICO, PERSONAL DOCENTE,"]
[null,null,null,null,"Sí",null,null,null,null,null,"No",null,null,null,null,null,null,null,null,null,null,null,null,"AUXILIARES O PERSONAL ADMINISTRATIVO), HA RECIBIDO CAPACITACIÓN EN "]
[null,null,null,null,null,null,null,null,null,null,null,null,null,null,null,null,null,null,null,null,null,null,null,"TEMAS DE EDUCACIÓN INCLUSIVA O ATENCIÓN A LA DIVERSIDAD DE PARTE DE"]
[null,null,null,null,null,null,null,null,null,"¿Es suficiente?",null,null,null,"Sí",null,null,null,"No",null,null,null,null,null,"ESPECIALISTAS DE DRE/GRE Y/O UGEL, O ALGUNA OTRA INSTITUCIÓN?"]
[]
[null,null,null,"133. ESTE NIVEL/SERVICIO EDUCATIVO, ¿CUENTA CON UN ESPECIALISTA DE",null,null,null,null,null,null,null,null,null,null,null,null,null,null,null,null,null,null,null,"Sí",null,null,null,null,null,null,null,"No"]
[null,null,null,null,"EQUIPO DE SERVICIO DE APOYO Y ASESORAMIENTO DE LAS NECESIDADES"]
[null,null,null,null,"EDUCATIVAS ESPECIALES (SAANEE) QUE LE HAYA SIDO ASIGNADO?",null,null,null,null,null,null,null,null,null,null,null,null,null,null,null,null,null,null,null,null,null,"¿Qué instancia o institución brindó la capacitación?"]
[null,null,null,null,null,null,null,null,null,null,null,null,null,null,null,null,null,null,null,null,null,null,null,null,null,null,"(Marque con una “X”, una o más opciones)"]
[null,null,null,null,"Sí",null,null,null,null,null,null,null,"No"]
[null,null,null,null,null,null,null,null,null,null,null,null,null,null,null,null,null,null,null,null,null,null,null,null,null,null,null,"Minedu"]
[null,null,null,"134. DURANTE EL PRESENTE AÑO, ESTE NIVEL/SERVICIO EDUCATIVO ¿HA",null,null,null,null,null,null,null,null,null,null,null,null,null,null,null,null,null,null,null,null,null,null,null,"DRE/GRE"]
[null,null,null,null,"RECIBIDO ASISTENCIA Y ORIENTACIÓN PARA LA ATENCIÓN EDUCATIVA DE",null,null,null,null,null,null,null,null,null,null,null,null,null,null,null,null,null,null,null,null,null,null,"UGEL"]
[null,null,null,null,"ESTUDIANTES CON DISCAPACIDAD, DE PARTE DEL EQUIPO (SAANEE )?",null,null,null,null,null,null,null,null,null,null,null,null,null,null,null,null,null,null,null,null,null,null,"Organizaciones sin fines de lucro/ONG"]
[null,null,null,null,null,null,null,null,null,null,null,null,null,null,null,null,null,null,null,null,null,null,null,null,null,null,null,"Entidad privada, como auspicio"]
[null,null,null,null,"Sí",null,null,null,null,"No",null,null,null,"Pase a la pregunta 136.",null,null,null,null,null,null,null,null,null,null,null,null,null,"Inversión propia"]
[null,null,null,null,null,null,null,null,null,null,null,null,null,null,null,null,null,null,null,null,null,null,null,null,null,null,null,"Otros"]
[null,null,null,null,null,null,null,"¿Cuántas asesorías ha brindado el equipo"]
[null,null,null,null,null,null,null,"SAANEE a este servicio educativo 2022?"]
[null,null,null,null,null,null,null,null,null,null,null,null,null,null,null,null,null,null,null,null,null,null,"140. ¿QUÉ ESTRATEGIAS FORMATIVAS VIRTUALES PRIORIZARÍA SOBRE TEMAS"]
[null,null,null,"135. ¿CUÁNTOS DOCENTES DE ESTE NIVEL/SERVICIO EDUCATIVO HA RECIBIDO",null,null,null,null,null,null,null,null,null,null,null,null,null,null,null,null,null,null,null,"DE EDUCACIÓN INCLUSIVA O ATENCIÓN A LA DIVERSIDAD?"]
[null,null,null,null,"ASISTENCIA Y ORIENTACIÓN PARA LA ATENCIÓN EDUCATIVA DE ESTUDIANTES",null,null,null,null,null,null,null,null,null,null,null,null,null,null,null,null,null,null,"(Marque con una “X” una o más opciones"]
[null,null,null,null,"CON DISCAPACIDAD DE PARTE DEL EQUIPO DE SAANEE?"]
[null,null,null,null,null,null,null,null,null,null,null,null,null,null,null,null,null,null,null,null,null,null,null,null,null,null,null,"Curso virtual tutorado"]
[null,null,null,null,null,null,null,null,null,null,null,null,null,null,null,null,null,null,null,null,null,null,null,null,null,null,null,"Curso virtual autoformativo"]
[null,null,null,null,null,null,null,"¿Cuántas?",null,null,null,null,null,null,null,null,null,null,null,null,null,null,null,null,null,null,null,"Grupo o círculo de interaprendizaje"]
[null,null,null,null,null,null,null,null,null,null,null,null,null,null,null,null,null,null,null,null,null,null,null,null,null,null,null,"Comunidades profesionales de apendizaje"]
[null,null,null,"136. PARA LOS CASOS DETECTADOS DE ESTUDIANTES CON OTRO TIPO DE NEE O",null,null,null,null,null,null,null,null,null,null,null,null,null,null,null,null,null,null,null,null,null,null,null,"Asesoría personalizada"]
[null,null,null,null,"ENFERMEDAD, INDIQUE ¿CUÁL FUE SU SITUACIÓN AL MATRICULARSE EN EL",null,null,null,null,null,null,null,null,null,null,null,null,null,null,null,null,null,null,null,null,null,null,"Pasantia"]
[null,null,null,null,"PRESENTE AÑO?",null,null,null,null,null,null,null,null,null,null,null,null,null,null,null,null,null,null,null,null,null,null,"Otros "]
[]
[null,null,null,null,"SITUACIÓN AL MATRICULARSE",null,null,null,null,null,null,null,null,null,null,null,null,null,"N° de estudiantes detectados"]
[]
[null,null,null,null,"Número de estudiantes con otro tipo de NEE o enfermedad",null,null,null,null,null,null,null,null,null,null,null,null,null,null,null,null,null,"141. ¿EL SERVICIO/NIVEL EDUCATIVO, CUENTA CON RESPONSABLE DE INCLUSIÓN?"]
[null,null,null,null,"Que desertaron o se retiraron"]
[null,null,null,null,"Que promovieron de año",null,null,null,null,null,null,null,null,null,null,null,null,null,null,null,null,null,null,"Sí",null,null,null,null,null,null,null,"No"]
[]
[]
[{"$f":"IF(OR(O37=\"X\",X37=\"X\"),\"X\",\"\")","v":""},null,null,"E. LOGÍSTICA POR COVID-19 (SOLO PARA GESTIÓN PÚBLICA)"]
[null,null,null,"142. ¿HA RECIBIDO EL KIT COVID-19 (MASCARILLA KN95, 02 MASCARILLAS",null,null,null,null,null,null,null,null,null,null,null,null,null,null,null,null,null,null,"143. LOS ESTUDIANTES DE ESTE SERVICIO/NIVEL EDUCATIVO QUE ASISTEN"]
[null,null,null,null,"POR SEMANA) PARA EL PERSONAL QUE LABORA PRESENCIALMENTE EN EL",null,null,null,null,null,null,null,null,null,null,null,null,null,null,null,null,null,null,"PRESENCIALMENTE, ¿HAN RECIBIDO EL KIT COVID-19 CONFORMADO POR:"]
[null,null,null,null,"SERVICIO/NIVEL EDUCATIVO?",null,null,null,null,null,null,null,null,null,null,null,null,null,null,null,null,null,null,"MASCARILLAS TEXTILES (3 MASCARILLAS POR CADA 2 MESES) O MASCARILLAS "]
[null,null,null,null,null,null,null,null,null,null,null,null,null,null,null,null,null,null,null,null,null,null,null,"QUIRÚRGICAS (1 MASCARILLA DIARIA)?"]
[null,null,null,null,"Sí",null,null,null,null,null,null,null,"No"]
[null,null,null,null,null,null,null,null,null,null,null,null,null,null,null,null,null,null,null,null,null,null,null,"Sí",null,null,null,null,null,null,null,"No"]
[null,null,null,null,null,null,null,"¿Estos insumos son suficientes para asignarlos a todo el personal"]
[null,null,null,null,null,null,null,"que labora presencialemente en la I.E.?",null,null,null,null,null,null,null,null,null,null,null,null,null,null,null,null,null,null,"¿Estos insumos son suficientes para asignarlos a todo el personal"]
[null,null,null,null,null,null,null,null,null,null,null,null,null,null,null,null,null,null,null,null,null,null,null,null,null,null,"que labora presencialemente en la I.E.?"]
[null,null,null,null,null,null,null,null,"Sí",null,null,null,null,null,null,null,"No"]
[null,null,null,null,null,null,null,null,null,null,null,null,null,null,null,null,null,null,null,null,null,null,null,null,null,null,null,"Sí",null,null,null,null,null,null,"No"]
[]
[]
[null,null,null,"144. ESTE SERVICIO/NIVEL EDUCATIVO, ¿CUENTA CON EL KIT DE HIGIENE PARA LAVADO DE MANOS CUYA ENTREGA ES GESTIONADA POR EL MINISTERIO DE EDUCACIÓN?"]
[]
[null,null,null,null,"Sí",null,null,null,null,null,null,null,"No",null,null,null,null,null,null,null,"¿Por qué motivo?",null,null,null,"(Marque con una ‘’X’’, una opción)"]
[]
[null,null,null,null,null,null,null,null,null,null,null,null,null,null,null,null,null,null,null,null,null,null,null,"No está focalizado o no es beneficiario"]
[]
[null,null,null,null,null,null,null,null,null,null,null,null,null,null,null,null,null,null,null,null,null,null,null,"Otro motivo"]
[]
[]
[{"$f":"IF(AG37=\"X\",\"X\",\"\")","v":""},null,null,"E. SUPERVISIÓN DE LA PRESTACIÓN DEL SERVICIO EDUCATIVO DE GESTIÓN PRIVADA",null,null,null,null,null,null,null,null,null,null,null,null,null,null,null,null,null,null,null,null,null,null,null,null,null,null,null,null,null,null,null,null,null,{"$f":"AG37","v":0}]
[null,null,null,"145. EN EL PRESENTE AÑO 2021, ¿ESTE NIVEL/SERVICIO EDUCATIVO HA SIDO",null,null,null,null,null,null,null,null,null,null,null,null,null,null,null,null,null,null,"147. FORMA DE CONSTITUCIÓN (solo para personas jurídicas)"]
[null,null,null,null,"SUPERVISADO POR LA UGEL A LA QUE PERTENECE?",null,null,null,null,null,null,null,null,null,null,null,null,null,null,null,null,null,null,"Marque con un aspa \"X’’ y registra la información solicitada según corresponda"]
[]
[null,null,null,null," Sí",null,null,null,null,null,null,null," No  ",null,null,null,null,null,null,null,null,null,null,null,"  Sociedad"]
[null,null,null,null,null,null,null,null,null,null,null,null,null,null,null,null,null,null,null,null,null,null,null,null,null,null,null,"N° de Partida Regristral  "]
[null,null,null,null,null,null,"¿QUÉ ASPECTOS FUERON SUPERVISADOS?",null,null,null,null,null,null,null,null,null,null,null,null,null,null,null,null,null,null,null,null,"N° de Asiento Registral  "]
[null,null,null,null,null,null,"Implementación de los Planes de Recuperación"]
[null,null,null,null,null,null,"Transparencia de información sobre los costos",null,null,null,null,null,null,null,null,null,null,null,null,null,null,null,null,null,"  Asociación"]
[null,null,null,null,null,null,"Otros"]
[]
[null,null,null,"146. COMPLETE LOS SIGUIENTES DATOS SOBRE LA PROMOTORÍA DE ESTE NIVEL",null,null,null,null,null,null,null,null,null,null,null,null,null,null,null,null,null,null,"148. ¿LA IE PERTENECE A ALGUNA ASOCIACIÓN QUE AGRUPE A IE PRIVADAS?"]
[null,null,null,null,"SERVICIO EDUCATIVO DE GESTIÓN PRIVADA"]
[null,null,null,null,"Marque con un aspa ‘X’’ y registra la información solicitada según corresponda",null,null,null,null,null,null,null,null,null,null,null,null,null,null,null,null,null,null," Sí",null,null,null,null,null,null,null," No  "]
[null,null,null,null,"Tipo de persona:"]
[]
[null,null,null,null,null,"  Natural",null,null,null,null,null,":",null,null,null,null,null,null,null,null,null,null,null,"Nombre de la asociación",null,null,null,null,null,":"]
[]
[null,null,null,null,null,null,null,null,null,null,"Nombres  ",null,null,null,null,null,null,null,null,null,null,null,null,"Datos de contacto de la asociación"]
[null,null,null,null,null,null,null,null,null,null,"Apellidos  "]
[null,null,null,null,null,null,null,null,null,null,null,null,null,null,null,null,null,null,null,null,null,null,null,"Web",null,null,null,null,":"]
[null,null,null,null,null,"  Jurídica",null,null,null,null,"RUC  ",null,null,null,null,null,null,null,null,null,null,null,null,"Correo electrónico",null,null,null,null,":"]
[null,null,null,null,null,null,null,null,null,null,"Razón social  ",null,null,null,null,null,null,null,null,null,null,null,null,"Teléfono/celular",null,null,null,null,":"]
[]
[]
["Dias"]
[1]
[2]
[3]
[4]
[5]
[6]
[7]
[8]
[9]
[10]
[11]
[12]
[13]
[14]
[15]
[16]
[17]
[18]
[19]
[20]
[21]
[22]
[23]
[24]
[25]
[26]
[27]
[28]
[29]
[30]
[31]
[]
["Meses"]
["01: Enero"]
["02: Febrero"]
["03: Marzo"]
["04: Abril"]
["05: Mayo"]
["06: Junio"]
["07: Julio"]
["08: Agosto"]
["09: Septiembre"]
["10: Octubre"]
["11: Noviembre"]
["12: Diciembre"]
["01: Enero"]
[]
["Años"]
[2016]
[2017]
[2018]
[2019]
[2020]

{"sheet":"C200","index":2,"n_rows":364,"n_cols":29,"rows_kept":364,"cut":false,"hidden":true,"merged":[[359,23,359,24],[359,25,359,26],[359,27,359,28],[358,5,358,12],[358,13,358,20],[358,21,358,28],[359,5,359,6],[359,7,359,8],[359,9,359,10],[359,11,359,12],[359,13,359,14],[359,15,359,16],[359,17,359,18],[359,19,359,20],[359,21,359,22],[358,2,360,2],[358,3,359,4],[341,5,341,6],[341,7,341,8],[341,9,341,10],[341,11,341,12],[341,13,341,14],[341,15,341,16],[341,17,341,18],[340,2,342,2],[340,3,341,4],[340,5,340,12],[340,13,340,20],[351,5,351,6],[351,7,351,8],[351,9,351,10],[351,11,351,12],[351,13,351,14],[351,19,351,20],[350,2,352,2],[351,15,351,16],[351,17,351,18],[351,21,351,22],[351,23,351,24],[351,25,351,26],[351,27,351,28],[333,27,333,28],[253,19,253,21],[253,22,253,23],[254,19,255,19],[254,20,255,20],[254,21,255,21],[254,22,255,22],[254,23,255,23],[348,3,348,23],[341,23,341,24],[341,25,341,26],[341,27,341,28],[341,19,341,20],[341,21,341,22],[340,21,340,28],[350,3,351,4],[350,5,350,12],[350,13,350,20],[350,21,350,28],[332,3,333,4],[321,2,323,2],[322,16,322,19],[322,20,322,23],[321,3,323,3],[322,4,322,7],[322,8,322,11],[322,12,322,15],[321,16,321,23],[321,4,321,15],[319,3,319,15],[169,9,169,10],[220,10,220,11],[220,6,220,7],[295,12,295,15],[222,6,222,7],[299,2,299,3],[222,4,222,5],[228,10,228,11],[310,8,310,9],[309,12,309,15],[310,6,310,7],[300,2,300,3],[310,12,310,13],[310,14,310,15],[309,6,309,11],[309,2,311,3],[309,4,310,5],[310,10,310,11],[307,3,307,15],[188,3,188,17],[193,2,195,6],[193,7,194,8],[193,9,193,14],[74,6,76,7],[76,8,76,9],[91,16,91,17],[90,8,90,15],[75,16,75,23],[76,18,76,19],[43,13,43,20],[120,3,120,17],[90,16,90,23],[91,22,91,23],[106,4,106,18],[97,2,97,5],[91,8,91,9],[76,22,76,23],[89,8,89,23],[91,14,91,15],[82,2,82,5],[106,2,107,2],[104,3,104,18],[87,3,87,21],[89,2,92,5],[91,18,91,19],[99,2,99,5],[100,2,100,5],[293,3,293,15],[296,8,296,9],[295,4,296,5],[296,6,296,7],[295,6,295,11],[235,2,235,3],[247,2,247,3],[246,2,246,3],[243,2,245,3],[237,2,237,3],[289,15,289,17],[253,2,254,5],[253,13,254,17],[254,7,255,7],[253,10,253,11],[253,7,253,9],[254,8,255,8],[254,9,255,9],[254,10,255,10],[254,11,255,11],[248,16,248,17],[251,3,251,16],[241,3,241,15],[236,2,236,3],[302,2,302,3],[303,2,303,3],[304,2,304,3],[296,22,296,23],[296,18,296,19],[296,20,296,21],[296,10,296,11],[296,14,296,15],[296,12,296,13],[295,2,297,3],[301,2,301,3],[248,2,248,3],[234,2,234,3],[231,2,231,3],[228,6,228,7],[228,8,228,9],[232,2,232,3],[233,2,233,3],[230,2,230,3],[98,2,98,5],[166,3,166,17],[106,3,107,3],[193,15,193,18],[194,9,194,10],[194,11,194,12],[194,13,194,14],[194,15,194,16],[194,17,194,18],[219,8,219,9],[219,10,219,11],[222,10,222,11],[245,16,245,17],[247,16,247,17],[238,16,238,17],[230,16,230,17],[203,4,204,5],[227,6,227,11],[221,6,221,7],[224,2,224,12],[222,8,222,9],[227,12,227,15],[227,2,229,3],[210,2,210,3],[212,2,212,3],[217,2,218,3],[217,4,218,5],[215,3,215,15],[218,8,218,9],[218,6,218,7],[217,6,217,11],[219,4,219,5],[218,10,218,11],[211,2,211,3],[208,2,208,3],[221,8,221,9],[221,4,221,5],[220,8,220,9],[220,4,220,5],[221,10,221,11],[219,6,219,7],[228,12,228,13],[244,22,244,23],[244,6,244,7],[244,8,244,9],[244,12,244,13],[244,14,244,15],[244,10,244,11],[229,16,229,17],[232,16,232,17],[225,3,225,15],[243,6,243,11],[243,4,244,5],[235,16,235,17],[227,4,228,5],[238,2,238,3],[204,14,204,15],[204,22,204,23],[218,20,218,21],[218,22,218,23],[218,14,218,15],[217,12,217,15],[218,12,218,13],[246,16,246,17],[228,20,228,21],[236,16,236,17],[237,16,237,17],[219,12,219,13],[221,14,221,15],[222,12,222,13],[220,12,220,13],[220,14,220,15],[221,12,221,13],[222,14,222,15],[219,14,219,15],[233,16,233,17],[234,16,234,17],[231,16,231,17],[228,14,228,15],[243,12,243,15],[8,3,8,19],[10,3,12,4],[12,15,12,16],[12,17,12,18],[12,5,12,6],[12,11,12,12],[10,5,10,20],[42,3,44,4],[44,5,44,6],[40,3,40,16],[11,5,11,12],[11,13,11,20],[12,9,12,10],[12,7,12,8],[12,19,12,20],[12,13,12,14],[203,2,205,3],[43,5,43,12],[91,12,91,13],[44,9,44,10],[44,7,44,8],[122,3,123,3],[96,2,96,5],[101,2,101,5],[72,3,72,21],[89,6,91,7],[91,20,91,21],[75,8,75,15],[76,12,76,13],[74,8,74,23],[76,10,76,11],[80,2,80,5],[81,2,81,5],[91,10,91,11],[44,19,44,20],[44,15,44,16],[114,2,115,2],[83,2,83,5],[204,20,204,21],[204,12,204,13],[10,2,13,2],[42,2,45,2],[138,2,140,2],[136,3,136,12],[139,7,139,8],[204,10,204,11],[206,2,206,3],[203,12,203,15],[204,8,204,9],[203,6,203,11],[42,5,42,20],[79,2,79,5],[76,20,76,21],[76,14,76,15],[74,2,77,5],[44,13,44,14],[44,11,44,12],[76,16,76,17],[44,17,44,18],[114,3,115,3],[112,3,112,18],[139,11,139,12],[138,3,139,4],[114,4,114,18],[84,2,84,5],[94,2,94,5],[95,2,95,5],[168,9,168,14],[169,13,169,14],[207,2,207,3],[209,2,209,3],[204,6,204,7],[138,5,138,12],[139,5,139,6],[128,3,128,17],[130,4,130,18],[130,3,131,3],[169,15,169,16],[168,15,168,18],[122,4,122,18],[168,7,169,8],[168,2,170,6],[169,17,169,18],[139,9,139,10],[122,2,123,2],[130,2,131,2],[201,3,201,15],[169,11,169,12],[332,2,334,2],[330,3,330,23],[333,5,333,6],[333,7,333,8],[333,9,333,10],[333,11,333,12],[332,5,332,12],[332,13,332,20],[333,13,333,14],[333,15,333,16],[333,17,333,18],[333,19,333,20],[332,21,332,28],[333,21,333,22],[333,23,333,24],[333,25,333,26]]}
[]
[null,null,"CENSO EDUCATIVO 2022"]
[null,null,"MATRÍCULA, DOCENTES Y RECURSOS"]
[]
[]
[]
[null,null,"200. MATRICULA Y SECCIONES"]
[]
[null,null,"CUADRO 201","MATRÍCULA DE JÓVENES Y ADULTOS DEL (LOS) PERÍODO(S) PROMOCIONAL(ES) CORRESPONDIENTES A LA FECHA DE REPORTE DEL CEBA-REFERENCIAL , POR CICLO, GRADO Y SEXO, SEGÚN EDAD"]
[]
[null,null,"Edad en años cumplidos al\n31-03-2022","TOTAL",null,"CEBA (Referencial)"]
[null,null,null,null,null,"PRESENCIAL",null,null,null,null,null,null,null,"SEMI-PRESENCIAL"]
[null,null,null,null,null,"1º",null,"2º",null,"3º",null,"4º",null,"1º",null,"2º",null,"3º",null,"4º"]
[null,null,null,"H","M","H","M","H","M","H","M","H","M","H","M","H","M","H","M","H","M"]
["00",null,"TOTAL",{"$f":"F15+H15+J15+L15+N15+P15+R15+T15","v":0},{"$f":"G15+I15+K15+M15+O15+Q15+S15+U15","v":0},{"$f":"SUM(F16:F38)","v":0},0,0,0,0,0,0,0,0,0,0,0,0,0,0,0]
["14",null,14,{"$f":"F16+H16+J16+L16+N16+P16+R16+T16","v":0},{"$f":"G16+I16+K16+M16+O16+Q16+S16+U16","v":0}]
["15",null,15,0,{"$f":"G17+I17+K17+M17+O17+Q17+S17+U17","v":0}]
["16",null,16,0,0]
["17",null,17,0,0]
["18",null,18,0,0]
["19",null,19,0,0]
["20",null,20,0,0]
["21",null,21,0,0]
["22",null,22,0,0]
["23",null,23,0,0]
["24",null,24,0,0]
["25",null,"25-29",0,0]
["30",null,"30-34",0,0]
["35",null,"35-39",0,0]
["40",null,"40-44",0,0]
["45",null,"45-49",0,0]
["50",null,"50-54",0,0]
["55",null,"55-59",0,0]
["60",null,"60-64",0,0]
["65",null,"65-69",0,0]
["70",null,"70-74",0,0]
["75",null,"75-79",0,0]
["80",null,"80 y más",{"$f":"F38+H38+J38+L38+N38+P38+R38+T38","v":0},{"$f":"G38+I38+K38+M38+O38+Q38+S38+U38","v":0}]
[null,null,"Nota: Incluya a los alumnos con algún tipo de Necesidad Educativa Especial (NEE)."]
[]
[null,null,"CUADRO 202","MATRÍCULA DE JÓVENES Y ADULTOS DEL (LOS) PERÍODO(S) PROMOCIONAL(ES) CORRESPONDIENTES A LA FECHA DE REPORTE DE LOS PERIFÉRICOS, POR CICLO, GRADO Y SEXO, SEGÚN EDAD"]
[]
[null,null,"Edad en años cumplidos al\n31-03-2022","TOTAL",null,"PERIFÉRICO"]
[null,null,null,null,null,"PRESENCIAL",null,null,null,null,null,null,null,"SEMI-PRESENCIAL"]
[null,null,null,null,null,"1º",null,"2º",null,"3º",null,"4º",null,"1º",null,"2º",null,"3º",null,"4º"]
[null,null,null,"H","M","H","M","H","M","H","M","H","M","H","M","H","M","H","M","H","M"]
["00",null,"TOTAL",{"$f":"F47+H47+J47+L47+N47+P47+R47+T47","v":0},{"$f":"G47+I47+K47+M47+O47+Q47+S47+U47","v":0},{"$f":"SUM(F48:F70)","v":0},0,0,0,0,0,0,0,0,0,0,0,0,0,0,0]
["14",null,14,{"$f":"F48+H48+J48+L48+N48+P48+R48+T48","v":0},{"$f":"G48+I48+K48+M48+O48+Q48+S48+U48","v":0}]
["15",null,15,0,0]
["16",null,16,0,0]
["17",null,17,0,0]
["18",null,18,0,0]
["19",null,19,0,0]
["20",null,20,0,0]
["21",null,21,0,0]
["22",null,22,0,0]
["23",null,23,0,0]
["24",null,24,0,0]
["25",null,"25-29",0,0]
["30",null,"30-34",0,0]
["35",null,"35-39",0,0]
["40",null,"40-44",0,0]
["45",null,"45-49",0,0]
["50",null,"50-54",0,0]
["55",null,"55-59",0,0]
["60",null,"60-64",0,0]
["65",null,"65-69",0,0]
["70",null,"70-74",0,0]
["75",null,"75-79",0,0]
["80",null,"80 y más",{"$f":"F70+H70+J70+L70+N70+P70+R70+T70","v":0},{"$f":"G70+I70+K70+M70+O70+Q70+S70+U70","v":0}]
[null,null,"Nota: Incluya a los alumnos con algún tipo de Necesidad Educativa Especial (NEE)."]
[]
[null,null,"CUADRO 203","MATRÍCULA DE JÓVENES Y ADULTOS DEL (LOS) PERÍODO(S) PROMOCIONAL(ES) CORRESPONDIENTE A LA FECHA DE REPORTE DEL CEBA-REFERENCIAL, POR FORMA DE ATENCIÓN, GRADO Y SEXO, SEGÚN SITUACIÓN AL MATRICULARSE"]
[]
[null,null,"SITUACIÓN AL MATRICULARSE",null,null,null,"TOTAL",null,"CEBA (Referencial)"]
[null,null,null,null,null,null,null,null,"PRESENCIAL",null,null,null,null,null,null,null,"SEMI-PRESENCIAL"]
[null,null,null,null,null,null,null,null,"1º",null,"2º",null,"3º",null,"4º",null,"1º",null,"2º",null,"3º",null,"4º"]
[null,null,null,null,null,null,"H","M","H","M","H","M","H","M","H","M","H","M","H","M","H","M","H","M"]
["00",null,"TOTAL",null,null,null,{"$f":"I79+K79+M79+O79+Q79+S79+U79+W79","v":0},0,{"$f":"SUM(I80:I85)","v":0},0,0,0,0,0,0,0,0,0,0,0,0,0,0,0]
["01",null,"INGRESANTES ",null,null,null,0,0]
["02",null,"PROMOVIDOS del mismo CEBA",null,null,null,0,0]
["03",null,"PROMOVIDOS de otro CEBA",null,null,null,{"$f":"I82+K82+M82+O82+Q82+S82+U82+W82","v":0},{"$f":"J82+L82+N82+P82+R82+T82+V82+X82","v":0}]
["04",null,"PERMANECE EN EL GRADO en el mismo CEBA",null,null,null,0,0]
["05",null,"PERMANECE EN EL GRADO de otro CEBA",null,null,null,0,0]
["06",null,"REENTRANTES",null,null,null,0,0]
[null,null,"Nota: Los totales de esta tabla deben ser iguales a los de la tabla 201."]
[]
[null,null,"CUADRO 204","MATRÍCULA DE JÓVENES Y ADULTOS DEL (LOS) PERÍODO(S) PROMOCIONAL(ES) CORRESPONDIENTE A LA FECHA DE REPORTE DE LOS PERIFÉRICOS, POR FORMA DE ATENCIÓN, GRADO Y SEXO, SEGÚN SITUACIÓN AL MATRICULARSE"]
[]
[null,null,"SITUACIÓN AL MATRICULARSE",null,null,null,"TOTAL",null,"PERIFÉRICO"]
[null,null,null,null,null,null,null,null,"PRESENCIAL",null,null,null,null,null,null,null,"SEMI-PRESENCIAL"]
[null,null,null,null,null,null,null,null,"1º",null,"2º",null,"3º",null,"4º",null,"1º",null,"2º",null,"3º",null,"4º"]
[null,null,null,null,null,null,"H","M","H","M","H","M","H","M","H","M","H","M","H","M","H","M","H","M"]
["00",null,"TOTAL",null,null,null,{"$f":"I94+K94+M94+O94+Q94+S94+U94+W94","v":0},{"$f":"J94+L94+N94+P94+R94+T94+V94+X94","v":0},{"$f":"SUM(I95:I102)","v":0},0,0,0,0,0,0,0,0,0,0,0,0,0,0,0]
["01",null,"INGRESANTES",null,null,null,{"$f":"I95+Q95","v":0},0]
["02",null,"INGRESANTES  provienen de PACE",null,null,null,0,0]
["03",null,"INGRESANTES  provienen de la EBR",null,null,null,0,0]
["04",null,"PROMOVIDOS del mismo Periférico",null,null,null,{"$f":"I98+K98+M98+O98+Q98+S98+U98+W98","v":0},0]
["05",null,"PROMOVIDOS de otro CEBA",null,null,null,{"$f":"I99+K99+M99+O99+Q99+S99+U99+W99","v":0},{"$f":"J99+L99+N99+P99+R99+T99+V99+X99","v":0}]
["06",null,"PERMANECE EN EL GRADO en el mismo Periférico",null,null,null,0,0]
["07",null,"PERMANECE EN EL GRADO de otro CEBA",null,null,null,0,0]
["08",null,"REENTRANTES",null,null,null,0,0]
[null,null,"Nota: Los totales de esta tabla deben ser iguales a los de la tabla 202."]
[]
[null,null,"CUADRO 205","NÚMERO DE INGRESANTES DEL (LOS) PROMOCIONAL(ES) CORRESPONDIENTE A LA FECHA DE REPORTE DEL CEBA (REFERENCIAL) EN LA FORMA DE ATENCIÓN PRESENCIAL, POR EDAD, SEGÚN SEXO"]
[]
[null,null,"SEXO","TOTAL","EDAD EN AÑOS CUMPLIDOS"]
[null,null,null,null,14,15,16,17,18,19,20,21,22,23,24,"25-29","30-34","35-39","40\ny más"]
["01",null," Hombre",{"$f":"SUM(E109:S109)","v":0}]
["02",null," Mujer",{"$f":"SUM(E110:S110)","v":0}]
[null,null,"Nota: Los totales de esta tabla deben ser iguales a los ingresantes (CEBA presencial) de la tabla 203"]
[]
[null,null,"CUADRO 206","NÚMERO DE INGRESANTES DEL (LOS) PROMOCIONAL(ES) CORRESPONDIENTE A LA FECHA DE REPORTE DEL CEBA (REFERENCIAL) EN LA FORMA DE ATENCIÓN SEMI-PRESENCIAL, POR EDAD, SEGÚN SEXO"]
[]
[null,null,"SEXO","TOTAL","EDAD EN AÑOS CUMPLIDOS"]
[null,null,null,null,14,15,16,17,18,19,20,21,22,23,24,"25-29","30-34","35-39","40\ny más"]
["01",null," Hombre",{"$f":"SUM(E117:S117)","v":0}]
["02",null," Mujer",{"$f":"SUM(E118:S118)","v":0}]
[null,null,"Nota: Los totales de esta tabla deben ser iguales a los ingresantes (CEBA semi-presencial) de la tabla 203"]
[]
[null,null,"CUADRO 207","NÚMERO DE INGRESANTES DEL (LOS) PROMOCIONAL(ES) CORRESPONDIENTE A LA FECHA DE REPORTE DE LOS PERIFÉRICOS EN LA FORMA DE ATENCIÓN PRESENCIAL, POR EDAD, SEGÚN SEXO."]
[]
[null,null,"SEXO","TOTAL","EDAD EN AÑOS CUMPLIDOS"]
[null,null,null,null,14,15,16,17,18,19,20,21,22,23,24,"25-29","30-34","35-39","40\ny más"]
["01",null," Hombre",{"$f":"SUM(E125:S125)","v":0}]
["02",null," Mujer",{"$f":"SUM(E126:S126)","v":0}]
[null,null,"Nota: Los totales de esta tabla deben ser iguales a los ingresantes (periférico presencial) de la tabla 204"]
[]
[null,null,"CUADRO 208","NÚMERO DE INGRESANTES DEL (LOS) PROMOCIONAL(ES) CORRESPONDIENTE A LA FECHA DE REPORTE DE LOS PERIFÉRICOS EN LA FORMA DE ATENCIÓN SEMI-PRESENCIAL, POR EDAD, SEGÚN SEXO"]
[]
[null,null,"SEXO","TOTAL","EDAD EN AÑOS CUMPLIDOS"]
[null,null,null,null,14,15,16,17,18,19,20,21,22,23,24,"25-29","30-34","35-39","40\ny más"]
["01",null," Hombre",{"$f":"SUM(E133:S133)","v":0}]
["02",null," Mujer",{"$f":"SUM(E134:S134)","v":0}]
[null,null,"Nota: Los totales de esta tabla deben ser iguales a los ingresantes (periférico presencial) de la tabla 204"]
[]
[null,null,"CUADRO 209","MATRÍCULA DE JÓVENES Y ADULTOS DEL (LOS) PERÍODO(S) PROMOCIONAL(ES) CORRESPONDIENTES A LA FECHA DE REPORTE DE LA FORMA DE ATENCIÓN A DISTANCIA, POR GRADO Y SEXO, SEGÚN DAD."]
[]
[null,null,"Edad en años cumplidos al\n31-03-2022","TOTAL",null,"DISTANCIA"]
[null,null,null,null,null,"1º",null,"2º",null,"3º",null,"4º"]
[null,null,null,"H","M","H","M","H","M","H","M","H","M"]
["00",null,"TOTAL",{"$f":"F142+H142+J142+L142","v":0},0,{"$f":"SUM(F143:F165)","v":0},0,0,0,0,0,0,0]
["14",null,14,0,0]
["15",null,15,0,0]
["16",null,16,0,0]
["17",null,17,0,0]
["18",null,18,0,0]
["19",null,19,{"$f":"F148+H148+J148+L148","v":0},{"$f":"G148+I148+K148+M148","v":0}]
["20",null,20,0,0]
["21",null,21,0,0]
["22",null,22,0,0]
["23",null,23,0,0]
["24",null,24,0,0]
["25",null,"25-29",0,0]
["30",null,"30-34",0,0]
["35",null,"35-39",0,0]
["40",null,"40-44",0,0]
["45",null,"45-49",0,0]
["50",null,"50-54",0,0]
["55",null,"55-59",0,0]
["60",null,"60-64",0,0]
["65",null,"65-69",0,0]
["70",null,"70-74",0,0]
["75",null,"75-79",0,0]
["80",null,"80 y más",{"$f":"F165+H165+J165+L165","v":0},{"$f":"G165+I165+K165+M165","v":0}]
[]
[null,null,"CUADRO 210","MATRÍCULA DE JÓVENES Y ADULTOS DEL (LOS) PERÍODO(S) PROMOCIONAL(ES) CORRESPONDIENTES A LA FECHA DE REPORTE DE LOS CEBA-REFERENCIAL Y PERIFÉRICOS, POR FORMA DE ATENCIÓN Y SEXO, SEGÚN NECESIDADES EDUCATIVAS ESPECIALES."]
[]
[null,null,"NECESIDADES EDUCATIVAS ESPECIALES (NEE)",null,null,null,null,"TOTAL",null,"CEBA (Referencial)",null,null,null,null,null,"PERIFÉRICO"]
[null,null,null,null,null,null,null,null,null,"Presencial",null,"Semipresencial",null,"Distancia",null,"Presencial",null,"Semipresencial"]
[null,null,null,null,null,null,null,"H","M","H","M","H","M","H","M","H","M","H","M"]
["00",null,"TOTAL",null,null,null,null,{"$f":"J172+L172+N172+P172+R172","v":0},{"$f":"K172+M172+O172+Q172+S172","v":0},{"$f":"SUM(J173:J186)","v":0},0,0,0,0,0,0,0,0,0]
["01",null,"Discapacidad Intelectual-Retardo mental leve",null,null,null,null,{"$f":"J173+L173+N173+P173+R173","v":0},{"$f":"K173+M173+O173+Q173+S173","v":0}]
["02",null,"Discapacidad Intelectual-Retardo mental moderado",null,null,null,null,{"$f":"J174+L174+N174+P174+R174","v":0},{"$f":"K174+M174+O174+Q174+S174","v":0}]
["03",null,"Discapacidad Intelectual-Retardo mental severo",null,null,null,null,0,0]
["04",null,"Discapacidad Auditiva-Hipoacusia",null,null,null,null,0,0]
["05",null,"Discapacidad Auditiva-Sordera total",null,null,null,null,0,0]
["06",null,"Discapacidad Visual-Baja visión",null,null,null,null,0,0]
["07",null,"Discapacidad Visual-Ceguera total",null,null,null,null,0,0]
["08",null,"Discapacidad Física o Motora",null,null,null,null,0,0]
["09",null,"Trastorno del espectro Autista (TEA)",null,null,null,null,0,0]
["10",null,"Sordoceguera",null,null,null,null,0,0]
["11",null,"Multidiscapacidad",null,null,null,null,0,0]
["12",null,"Talento y Superdotación (altas capacidades)",null,null,null,null,{"$f":"J184+L184+N184+P184+R184","v":0},{"$f":"K184+M184+O184+Q184+S184","v":0}]
["13",null,"Otra discapacidad u otra condición",null,null,null,null,0,0]
["14",null,"Ninguna (No tiene discapacidad u otra condición)",null,null,null,null,{"$f":"J186+L186+N186+P186+R186","v":0},{"$f":"K186+M186+O186+Q186+S186","v":0}]
[null,null,"Nota: Los totales de esta tabla deben ser iguales a los de la tabla 201,202 y 209 por grado y sexo, según corresponda."]
[]
[null,null,"CUADRO 211","ESTUDIANTES MATRICULADOS QUE SE ENCUENTREN EN SITUACIÓN DE HOSPITALIZACIÓN AL MOMENTO DEL REPORTE DEL CENSO EDUCATIVO 2021"]
[null,null,"ESTE SERVICIO/NIVEL EDUCATIVO, ¿CUENTA CON AL MENOS UN ESTUDIANTE EN SITUACIÓN DE HOSPITALIZACIÓN?"]
[]
[null,null,null,null," Sí   ","X",null,null," No  ",null,null,null,"Pase a la pregunta 212."]
[]
[null,null,"NECESIDADES EDUCATIVAS ESPECIALES (NEE)",null,null,null,null,"TOTAL",null,"CEBA (Referencial)",null,null,null,null,null,"PERIFÉRICO"]
[null,null,null,null,null,null,null,null,null,"Presencial",null,"Semi-presencial",null,"Distancia",null,"Presencial",null,"Semi-presencial"]
[null,null,null,null,null,null,null,"H","M","H","M","H","M","H","M","H","M","H","M"]
["00",null,null,"TOTAL",null,null,null,{"$f":"J197+L197+N197+P197+R197","v":0},0,{"$f":"SUM(J198:J200)","v":0},0,0,0,0,0,0,0,0,0]
["01",null,"Estudiantes en","Menos de 15 días de hospitalización",null,null,null,0,0]
["02",null,"situación de","De 15 a 30 días de hospitalización",null,null,null,0,0]
["03",null,"hospitalización","Más de 30 días de hospitalización",null,null,null,0,0]
[]
[null,null,"CUADRO 212","MATRÍCULA DE JÓVENES Y ADULTOS DEL (LOS) PERÍODO(S) PROMOCIONAL(ES) CORRESPONDIENTES A LA FECHA DE REPORTE DE LOS CEBA-REFERENCIAL Y PERIFÉRICOS, POR FORMA DE ATENCIÓN Y SEXO, SEGÚN TENENCIA DE HIJOS"]
[]
[null,null,"NÚMERO DE HIJOS",null,"TOTAL",null,"CEBA (Referencial)",null,null,null,null,null,"PERIFÉRICO"]
[null,null,null,null,null,null,"Presencial",null,"Semi-presencial",null,"Distancia",null,"Presencial",null,"Semi-presencial"]
[null,null,null,null,"H","M","H","M","H","M","H","M","H","M","H","M"]
["00",null,"TOTAL",null,{"$f":"G207+I207+K207+M207+O207","v":0},0,{"$f":"SUM(G208:G213)","v":0},0,0,0,0,0,{"$f":"SUM(M208:M213)","v":0},{"$f":"SUM(N208:N213)","v":0},{"$f":"SUM(O208:O213)","v":0},{"$f":"SUM(P208:P213)","v":0}]
["01",null,0,null,0,0]
["02",null,1,null,0,0]
["03",null,2,null,0,0]
["04",null,3,null,0,0]
["05",null,4,null,0,0]
["06",null,"5 y más",null,0,0]
[null,null,"Nota: Los totales de esta tabla deben ser iguales a los totales por sexo de la tabla 201, 202 y 209."]
[]
[null,null,"CUADRO 213","MATRÍCULA DE JÓVENES Y ADULTOS DEL (LOS) PERÍODO(S) PROMOCIONAL(ES) CORRESPONDIENTES A LA FECHA DE REPORTE DE LOS CEBA-REFERENCIAL Y PERIFÉRICOS, POR FORMA DE ATENCIÓN, SEGÚN NÚMERO DE EMBARAZOS"]
[]
[null,null,"NUMERO DE EMBARAZOS",null,"TOTAL",null,"CEBA (Referencial)",null,null,null,null,null,"PERIFÉRICO"]
[null,null,null,null,null,null,"Presencial",null,"Semi-presencial",null,"Distancia",null,"Presencial",null,"Semi-presencial"]
["00",null,"TOTAL",null,{"$f":"SUM(G220:P220)","v":0},null,{"$f":"SUM(G221:H223)","v":0},null,{"$f":"SUM(I221:J223)","v":0},null,{"$f":"SUM(K221:L223)","v":0},null,{"$f":"SUM(M221:N223)","v":0},null,{"$f":"SUM(O221:P223)","v":0}]
["01",null,"Primer embarazo",null,{"$f":"SUM(G221:P221)","v":0}]
["02",null,"Segundo embarazo o más",null,{"$f":"SUM(G222:P222)","v":0}]
["03",null,"Ninguno",null,{"$f":"SUM(G223:P223)","v":0}]
[null,null,"Nota: Los totales de esta tabla deben ser iguales a los totales de la tabla 212 (Solo mujeres)"]
[null,null,"    "]
[null,null,"CUADRO 214","MATRÍCULA DE JÓVENES Y ADULTOS DEL (LOS) PERÍODO(S) PROMOCIONAL(ES) CORRESPONDIENTES A LA FECHA DE REPORTE DE LOS CEBA-REFERENCIAL Y PERIFÉRICOS, POR FORMA DE ATENCIÓN Y SEXO, SEGÚN TIPO DE OCUPACIÓN"]
[]
[null,null,"TIPO DE OCUPACIÓN",null,"TOTAL",null,"CEBA (Referencial)",null,null,null,null,null,"PERIFÉRICO"]
[null,null,null,null,null,null,"Presencial",null,"Semi-presencial",null,"Distancia",null,"Presencial",null,"Semi-presencial"]
[null,null,null,null,"H","M","H","M","H","M","H","M","H","M","H","M"]
["00",null,"TOTAL",null,{"$f":"G231+I231+K231+M231+O231","v":0},{"$f":"H231+J231+L231+N231+P231","v":0},{"$f":"SUM(G232:G239)","v":0},0,0,0,0,0,0,0,0,0]
["01",null,"Empleado",null,{"$f":"G232+I232+K232+M232+O232","v":0},{"$f":"H232+J232+L232+N232+P232","v":0}]
["02",null,"Obrero",null,{"$f":"G233+I233+K233+M233+O233","v":0},{"$f":"H233+J233+L233+N233+P233","v":0}]
["03",null,"Ambulante",null,0,0]
["04",null,"Trabajador Independiente",null,0,0]
["05",null,"Trabajador del Hogar",null,0,0]
["06",null,"Trabajador Familiar",null,0,0]
["07",null,"Otro",null,0,0]
["08",null,"Solo estudia",null,{"$f":"G239+I239+K239+M239+O239","v":0},{"$f":"H239+J239+L239+N239+P239","v":0}]
[null,null,"Nota: Los totales de esta tabla deben ser iguales a los de la tabla 201, 202 y 209."]
[]
[null,null,"CUADRO 215","MATRÍCULA DE JÓVENES Y ADULTOS DEL (LOS) PERÍODO(S) PROMOCIONAL(ES) CORRESPONDIENTES A LA FECHA DE REPORTE DE LOS CEBA-REFERENCIAL, PERIFÉRICOS, POR FORMA DE ATENCIÓN Y SEXO, SEGÚN MIEMBROS DEL HOGAR"]
[]
[null,null,"TIPO DEL MIEMBRO EN EL HOGAR",null,"TOTAL",null,"CEBA (Referencial)",null,null,null,null,null,"PERIFÉRICO"]
[null,null,null,null,null,null,"Presencial",null,"Semi-presencial",null,"Distancia",null,"Presencial",null,"Semi-presencial"]
[null,null,null,null,"H","M","H","M","H","M","H","M","H","M","H","M"]
["00",null,"TOTAL",null,{"$f":"G247+I247+K247+M247+O247","v":0},0,{"$f":"SUM(G248:G249)","v":0},0,0,0,0,0,0,0,0,0]
["01",null,"Jefe(a) del hogar",null,0,0]
["02",null,"No es jefe(a) del hogar",null,0,0]
[null,null,"Nota: Los totales de esta tabla deben ser iguales a los de la tabla 201, 202 y 209."]
[]
[null,null,"CUADRO 216","MATRÍCULA DE JOVENES Y ADULTOS DEL (LOS) PERÍODO(S) PROMOCIONAL(ES) CORRESPONDIENTES A LA FECHA DEL REPORTE LOS CEBA-REFERENCIAL Y PERIFÉRICOS, POR FORMA DE ATENCIÓN Y SEXO, SEGÚN LENGUA MATERNA"]
[]
[null,null,"LENGUA",null,null,null,null,"CEBA (Referencial)",null,null,"PERIFÉRICO",null,null,"LENGUA",null,null,null,null,null,"CEBA (Referencial)",null,null,"PERIFÉRICO"]
[null,null,null,null,null,null,"TOTAL","Presencial","Semi presencial","Distancia","Presencial","Semi presencial",null,null,null,null,null,null,"TOTAL","Presencial","Semi presencial","Distancia","Presencial","Semi presencial"]
[null,null,"Código           Denominación",null,null,null,null,null,null,null,null,null,null,"Código           Denominación"]
[null,null,"0000","TOTAL",null,null,{"$f":"SUM(H257:L257)","v":0},{"$f":"SUM(H258:H291,T257:T290)","v":0},{"$f":"SUM(I258:I291,U257:U290)","v":0},{"$f":"SUM(J258:J291,V257:V290)","v":0},{"$f":"SUM(K258:K291,W257:W290)","v":0},{"$f":"SUM(L258:L291,X257:X290)","v":0},null,"3200","Omagua",null,null,null,{"$f":"SUM(T257:X257)","v":0}]
[null,null,"0100","Castellano",null,null,{"$f":"SUM(H258:L258)","v":0},null,null,null,null,null,null,"3310","Quechua amazónico (Kichwa)",null,null,null,{"$f":"SUM(T258:X258)","v":0}]
[null,null,"LENGUAS ORIGINARIAS DEL PERÚ",null,null,null,null,null,null,null,null,null,null,"3321","Quechua central (Ancash)",null,null,null,{"$f":"SUM(T259:X259)","v":0}]
[null,null,"0200","Achuar",null,null,0,null,null,null,null,null,null,"3322","Quechua central (Huánuco)",null,null,null,0]
[null,null,"0300","Aimara",null,null,0,null,null,null,null,null,null,"3323","Quechua central (Wanka)",null,null,null,0]
[null,null,"0400","Amahuaca",null,null,0,null,null,null,null,null,null,"3324","Quechua central (Pasco)",null,null,null,0]
[null,null,"0500","Arabela",null,null,0,null,null,null,null,null,null,"3331","Quechua norteño (Cajamarca)",null,null,null,0]
[null,null,"0600","Ashaninka",null,null,0,null,null,null,null,null,null,"3332","Quechua norteño (Inkawasi Kañaris)",null,null,null,0]
[null,null,"0610","Asheninka",null,null,0,null,null,null,null,null,null,"3341","Quechua sureño (Chanka)",null,null,null,0]
[null,null,"0700","Awajún",null,null,0,null,null,null,null,null,null,"3342","Quechua sureño (Collao)",null,null,null,0]
[null,null,"0800","Bora",null,null,0,null,null,null,null,null,null,"3400","Resigaro",null,null,null,0]
[null,null,"0900","Kapanawa",null,null,0,null,null,null,null,null,null,"3500","Secoya",null,null,null,0]
[null,null,"1000","Cashinahua",null,null,0,null,null,null,null,null,null,"3600","Sharanahua",null,null,null,0]
[null,null,"1100","Kawki",null,null,0,null,null,null,null,null,null,"3700","Shawi",null,null,null,0]
[null,null,"1200","Chamikuro",null,null,0,null,null,null,null,null,null,"3800","Shipibo-Konibo",null,null,null,0]
[null,null,"1300","Ese eja",null,null,0,null,null,null,null,null,null,"3900","Shiwilu",null,null,null,0]
[null,null,"1400","Harakbut",null,null,0,null,null,null,null,null,null,"4000","Taushiro",null,null,null,0]
[null,null,"1500","Iñapari",null,null,0,null,null,null,null,null,null,"4100","Ticuna",null,null,null,0]
[null,null,"1600","Ikitu",null,null,0,null,null,null,null,null,null,"4200","Urarina",null,null,null,0]
[null,null,"1700","Iskonawa",null,null,0,null,null,null,null,null,null,"4300","Wampis",null,null,null,0]
[null,null,"1800","Jaqaru",null,null,0,null,null,null,null,null,null,"4400","Yagua",null,null,null,0]
[null,null,"1900","Kakataibo",null,null,0,null,null,null,null,null,null,"4500","Yaminahua",null,null,null,0]
[null,null,"2000","Kakinte",null,null,0,null,null,null,null,null,null,"4600","Yanesha",null,null,null,0]
[null,null,"2110","Kandozi-chapra (chapra)",null,null,0,null,null,null,null,null,null,"4700","Yine",null,null,null,0]
[null,null,"2120","Kandozi-chapra (kandozi)",null,null,0,null,null,null,null,null,null,"4800","Nahua",null,null,null,0]
[null,null,"2200","Kukama kukamiria",null,null,0,null,null,null,null,null,null,"LENGUA EXTRANJERA"]
[null,null,"2300","Madija",null,null,0,null,null,null,null,null,null,"5100","Alemán",null,null,null,0]
[null,null,"2400","Maijiki",null,null,0,null,null,null,null,null,null,"5200","Inglés",null,null,null,0]
[null,null,"2500","Matsés",null,null,0,null,null,null,null,null,null,"5300","Italiano",null,null,null,0]
[null,null,"2600","Matsigenka",null,null,0,null,null,null,null,null,null,"5400","Japonés",null,null,null,0]
[null,null,"2700","Muniche",null,null,0,null,null,null,null,null,null,"5500","Portugués",null,null,null,0]
[null,null,"2800","Murui-muinani",null,null,0,null,null,null,null,null,null,"5600","Ruso",null,null,null,0]
[null,null,"2900","Matsigenka-montetokunirira",null,null,0,null,null,null,null,null,null,"5700","Francés",null,null,null,0]
[null,null,"3000","Nomatsigenga",null,null,0,null,null,null,null,null,null,"5800","Otra",null,null,null,{"$f":"SUM(T290:X290)","v":0}]
[null,null,"3100","Ocaina",null,null,{"$f":"SUM(H291:L291)","v":0}]
[null,null,"* Nota: Los totales de esta tabla deben ser iguales a los de la tabla 201, 202 y 209"]
[]
[null,null,"CUADRO 217","MATRÍCULA DE JÓVENES Y ADULTOS DEL (LOS) PERÍODO(S) PROMOCIONAL(ES) CORRESPONDIENTES A LA FECHA DE REPORTE DE LOS CEBA-REFERENCIAL Y PERIFÉRICOS, POR FORMA DE ATENCIÓN Y SEXO, SEGÚN ESTADO CIVIL"]
[]
[null,null,"ESTADO CIVIL",null,"TOTAL",null,"CEBA (Referencial)",null,null,null,null,null,"PERIFÉRICO"]
[null,null,null,null,null,null,"Presencial",null,"Semi-presencial",null,"Distancia",null,"Presencial",null,"Semi-presencial"]
[null,null,null,null,"H","M","H","M","H","M","H","M","H","M","H","M"]
["00",null,"TOTAL",null,{"$f":"G299+I299+K299+M299+O299","v":0},0,{"$f":"SUM(G300:G305)","v":0},0,0,0,0,0,0,0,0,0]
["01",null,"Soltero(a)",null,0,0]
["02",null,"Casado(a)",null,0,0]
["03",null,"Conviviente",null,0,0]
["04",null,"Viudo(a)",null,0,0]
["05",null,"Divorciado(a)",null,0,0]
["06",null,"Separado(a)",null,0,0]
[null,null,"Nota: Los totales por sexo de esta tabla deben ser iguales a los totales por sexo de la tabla 201, 202 y 209."]
[]
[null,null,"CUADRO 218","MATRÍCULA DE JOVENES Y ADULTOS DEL (LOS) PERÍODO(S) PROMOCIONAL(ES) CORRESPONDIENTES A LA FECHA DEL REPORTE DE LOS CEBA-REFERENCIAL Y PERIFÉRICOS, POR FORMA DE ATENCIÓN Y SEXO, SEGÚN TIPO DE PROGRAMA DE REPARACIÓN EN EN EDUCACIÓN (Ley 28592)."]
[]
[null,null,"TIPO DE PROGRAMA DE REPARACIÓN EN EDUCACIÓN",null,"TOTAL",null,"CEBA (Referencial)",null,null,null,null,null,"PERIFÉRICO"]
[null,null,null,null,null,null,"Presencial",null,"Semi-presencial",null,"Distancia",null,"Presencial",null,"Semi-presencial",null,null,"  "]
[null,null,null,null,"H","M","H","M","H","M","H","M","H","M","H","M"]
["00",null,"TOTAL",null,{"$f":"G313+I313+K313+M313+O313","v":0},0,{"$f":"SUM(G314:G317)","v":0},0,0,0,0,0,0,0,0,0]
["01",null,"RUV",null,0,0]
["02",null,"REBRED",null,{"$f":"G315+I315+K315+M315+O315","v":0},{"$f":"H315+J315+L315+N315+P315","v":0}]
["03",null,"Otros Programas del Estado",null,{"$f":"G316+I316+K316+M316+O316","v":0},{"$f":"H316+J316+L316+N316+P316","v":0}]
["04",null,"Estudiantes no beneficiados",null,0,0]
[null,null,"Nota: Los totales por sexo de esta tabla deben ser iguales a los totales por sexo de la tabla 201, 202 y 209."]
[]
[null,null,"CUADRO 219","SECCIONES DEL (LOS) PERÍODO(S) PROMOCIONAL(ES) CORRESPONDIENTES A LA FECHA DE REPORTE DE LOS REPORTE DE LOS CEBA-REFERENCIAL Y PERIFÉRICO, POR FORMA DE ATENCIÓN Y GRADO, SEGÚN TURNO"]
[]
[null,null,"TURNO","TOTAL","CEBA (Referencial)",null,null,null,null,null,null,null,null,null,null,null,"PERIFÉRICO"]
[null,null,null,null,"Presencial",null,null,null,"Semi-Presencial",null,null,null,"Distancia",null,null,null,"Presencial",null,null,null,"Semi-Presencial"]
[null,null,null,null,"1º","2º","3º","4º","1º","2º","3º","4º","1º","2º","3º","4º","1º","2º","3º","4º","1º","2º","3º","4º"]
["00",null,"TOTAL",{"$f":"SUM(E325:X325)","v":0},{"$f":"SUM(E326:E328)","v":0},0,0,0,0,0,0,0,null,null,null,null,{"$f":"SUM(Q326:Q328)","v":0},0,0,0,0,0,0,0]
["01",null,"Mañana",{"$f":"SUM(E326:X326)","v":0}]
["02",null,"Tarde",{"$f":"SUM(E327:X327)","v":0}]
["03",null,"Noche",{"$f":"SUM(E328:X328)","v":0}]
[null,null,"Solo registre el número de secciones que tenga, por grado, según turno"]
[]
[null,null,"CUADRO 220","MATRÍCULA DE JÓVENES Y ADULTOS EN CEBA REFERENCIAL, POR FORMA DE ATENCIÓN PRESENCIAL O SEMIPRESENCIAL, SEGÚN CENTRO/DEPENDENCIA, GRADO Y SEXO."]
[]
[null,null,"FORMA DE ATENCIÓN","TOTAL",null,"Centro Penitenciario",null,null,null,null,null,null,null,"Muelle o Caleta",null,null,null,null,null,null,null,"Dependencia de las FF.AA. (cuarteles)"]
[null,null,null,null,null,"1º",null,"2º",null,"3º",null,"4º",null,"1º",null,"2º",null,"3º",null,"4º",null,"1º",null,"2º",null,"3º",null,"4º"]
[null,null,null,"H","M","H","M","H","M","H","M","H","M","H","M","H","M","H","M","H","M","H","M","H","M","H","M","H","M"]
["00",null,"TOTAL",{"$f":"SUM(F336,H336,J336,L336,N336,P336,R336,T336,V336,X336,Z336,AB336)","v":0},{"$f":"SUM(G336,I336,K336,M336,O336,Q336,S336,U336,W336,Y336,AA336,AC336)","v":0},{"$f":"SUM(F337:F338)","v":0},0,0,0,0,0,0,0,0,0,0,0,0,0,0,0,0,0,0,0,0,0,0,0]
["01",null,"Presencial",{"$f":"SUM(F337,H337,J337,L337,N337,P337,R337,T337,V337,X337,Z337,AB337)","v":0},{"$f":"SUM(G337,I337,K337,M337,O337,Q337,S337,U337,W337,Y337,AA337,AC337)","v":0}]
["02",null,"Semi-presencial",0,0]
[]
[null,null,"CONTINUACIÓN TABLA 220 …."]
[null,null,"FORMA DE ATENCIÓN","TOTAL",null,"Centro de Adulto Mayor",null,null,null,null,null,null,null,"Centro Juveniles de Diagnóstico y Rehabilitación",null,null,null,null,null,null,null,"Otros"]
[null,null,null,null,null,"1º",null,"2º",null,"3º",null,"4º",null,"1º",null,"2º",null,"3º",null,"4º",null,"1º",null,"2º",null,"3º",null,"4º"]
[null,null,null,"H","M","H","M","H","M","H","M","H","M","H","M","H","M","H","M","H","M","H","M","H","M","H","M","H","M"]
["00",null,"TOTAL",{"$f":"SUM(F344,H344,J344,L344,N344,P344,R344,T344,V344,X344,Z344,AB344)","v":0},{"$f":"SUM(G344,I344,K344,M344,O344,Q344,S344,U344,W344,Y344,AA344,AC344)","v":0},{"$f":"SUM(F345:F346)","v":0},0,0,0,0,0,0,0,0,0,0,0,0,0,0,0,0,0,0,0,0,0,0,0]
["01",null,"Presencial",{"$f":"SUM(F345,H345,J345,L345,N345,P345,R345,T345,V345,X345,Z345,AB345)","v":0},{"$f":"SUM(G345,I345,K345,M345,O345,Q345,S345,U345,W345,Y345,AA345,AC345)","v":0}]
["02",null,"Semi-presencial",0,0]
[]
[]
[null,null,"CUADRO 221","MATRÍCULA DE JÓVENES Y ADULTOS EN PERIFÉRICOS, POR FORMA DE ATENCIÓN PRESENCIAL O SEMIPRESENCIAL, SEGÚN CENTRO/DEPENDENCIA, GRADO Y SEXO."]
[]
[null,null,"FORMA DE ATENCIÓN","TOTAL",null,"Centro Penitenciario",null,null,null,null,null,null,null,"Muelle o Caleta",null,null,null,null,null,null,null,"Dependencia de las FF.AA. (cuarteles)"]
[null,null,null,null,null,"1º",null,"2º",null,"3º",null,"4º",null,"1º",null,"2º",null,"3º",null,"4º",null,"1º",null,"2º",null,"3º",null,"4º"]
[null,null,null,"H","M","H","M","H","M","H","M","H","M","H","M","H","M","H","M","H","M","H","M","H","M","H","M","H","M"]
["00",null,"TOTAL",{"$f":"SUM(F354,H354,J354,L354,N354,P354,R354,T354,V354,X354,Z354,AB354)","v":0},{"$f":"SUM(G354,I354,K354,M354,O354,Q354,S354,U354,W354,Y354,AA354,AC354)","v":0},{"$f":"SUM(F355:F356)","v":0},0,0,0,0,0,0,0,0,0,0,0,0,0,0,0,0,0,0,0,0,0,0,0]
["01",null,"Presencial",{"$f":"SUM(F355,H355,J355,L355,N355,P355,R355,T355,V355,X355,Z355,AB355)","v":0},{"$f":"SUM(G355,I355,K355,M355,O355,Q355,S355,U355,W355,Y355,AA355,AC355)","v":0}]
["02",null,"Semi-presencial",0,0]
[]
[null,null,"CONTINUACIÓN TABLA 221 …."]
[null,null,"FORMA DE ATENCIÓN","TOTAL",null,"Centro de Adulto Mayor",null,null,null,null,null,null,null,"Centro Juveniles de Diagnóstico y Rehabilitación",null,null,null,null,null,null,null,"Otros"]
[null,null,null,null,null,"1º",null,"2º",null,"3º",null,"4º",null,"1º",null,"2º",null,"3º",null,"4º",null,"1º",null,"2º",null,"3º",null,"4º"]
[null,null,null,"H","M","H","M","H","M","H","M","H","M","H","M","H","M","H","M","H","M","H","M","H","M","H","M","H","M"]
["00",null,"TOTAL",{"$f":"SUM(F362,H362,J362,L362,N362,P362,R362,T362,V362,X362,Z362,AB362)","v":0},{"$f":"SUM(G362,I362,K362,M362,O362,Q362,S362,U362,W362,Y362,AA362,AC362)","v":0},{"$f":"SUM(F363:F364)","v":0},0,0,0,0,0,0,0,0,0,0,0,0,0,0,0,0,0,0,0,0,0,0,0]
["01",null,"Presencial",{"$f":"SUM(F363,H363,J363,L363,N363,P363,R363,T363,V363,X363,Z363,AB363)","v":0},{"$f":"SUM(G363,I363,K363,M363,O363,Q363,S363,U363,W363,Y363,AA363,AC363)","v":0}]
["02",null,"Semi-presencial",0,0]

{"sheet":"C300","index":3,"n_rows":183,"n_cols":76,"rows_kept":183,"cut":false,"hidden":true,"merged":[[6,10,6,22],[15,25,17,25],[15,24,17,24],[16,53,17,53],[16,54,17,54],[15,35,17,35],[15,32,17,32],[15,27,17,27],[16,50,17,50],[16,51,17,51],[15,23,17,23],[16,46,16,49],[15,14,15,15],[15,34,17,34],[15,41,17,41],[14,29,14,30],[15,70,17,70],[7,10,7,22],[14,66,14,68],[15,62,15,65],[15,66,15,68],[16,67,16,68],[15,10,17,10],[15,42,15,49],[15,36,17,36],[15,37,17,37],[15,38,17,38],[15,39,17,39],[15,40,17,40],[15,28,17,28],[16,66,17,66],[16,63,17,63],[16,52,17,52],[14,50,14,59],[14,62,14,65],[16,59,17,59],[16,65,17,65],[15,60,17,60],[15,50,15,59],[16,62,17,62],[16,64,17,64],[16,56,17,56],[15,61,17,61],[16,57,17,57],[16,55,17,55],[15,69,17,69],[16,58,17,58],[14,14,14,15],[15,29,16,30],[15,18,17,18],[15,22,17,22],[15,19,17,19],[15,20,17,20],[15,21,17,21],[15,16,17,16],[15,17,17,17],[14,42,14,49],[16,42,16,45],[15,26,17,26],[15,31,17,31],[15,33,17,33]]}
[]
[null,null,null,null,null,null,null,null,null,null,"CENSO ESCOLAR 2022"]
[null,null,null,null,null,null,null,null,null,null,"MATRÍCULA, DOCENTES Y RECURSOS"]
[]
["PERSONAL",{"$f":"N10+U10","v":0}]
[]
["DOCENTES",{"$f":"COUNTIF($Q$19:$Q$148,\"01: Docente\")","v":0},null,null,null,null,null,null,null,null,"300. PERSONAL DOCENTE Y ADMINISTRATIVOS (Para II.EE. Públicas y Privadas)"]
["ADMINISTRATIVOS",{"$f":"COUNTIF(Q19:Q148,\"02: Administrativo\")","v":0},null,null,null,null,null,null,null,null,"En esta tabla, REGISTRE a todo el personal docente, auxiliares de educación y personal administrativo que se encuentre laborando en el servicio/nivel educativo durante el periodo\nde reporte del censo educativo. (EXCLUYA al personal que se encuentre haciendo uso de licencia y a los que han sido destacados a otra IE/DRE/UGEL)"]
[]
["DOCENTE DE AULA",{"$f":"COUNTIF(AJ19:AJ148,\"04: (111)-Docente de Aula / por horas\")","v":0},null,null,null,null,null,null,null,null,null,null,"TOTAL DOCENTES :",null,null,null,"DOCENTES DE AULA :",null,null,"ADMINISTRATIVOS : "]
[]
[null,{"$f":"B7+B8","v":0},null,null,null,null,null,null,null,null,"A continuación registre a todo el personal que desempeñe funciones docentes en el Servicio/Nivel educativo: Directivos con o sin aula a cargo, docentes de aula, jefes o jerárquicos."]
["LICENCIA",null,null,null,null,null,null,null,null,null,"Documentos fuente: Legajo de personal y CAP de la institución educativa."]
[null,null,3,4,5,6,7,8,9]
["DOC. LENGUA ORIGINARIA",{"$f":"SUM(J19:J148)","v":0},null,null,null,null,null,null,null,null,null,301.10000000000002,301.2,301.3,302,null,303,304,305,306,307,308,309,310,311,312,313,314,315,316,null,317,318,319,320,321,322,323,324,325,326,327,328,null,null,null,null,null,null,null,329,null,null,null,null,null,null,null,null,null,330,330.1,331,null,null,null,332,null,null,333,333.1]
["GESTIÓN",{"$f":"IF(OR('C100'!O37=\"X\",'C100'!X37=\"X\"),1,IF('C100'!AG37=\"X\",3,\"\"))","v":""},null,null,null,null,null,null,null,null,"Nº",null,null,null,"Documento de Identidad",null,"Tipo de personal","Edad","Sexo","Lengua Materna","¿Domina una lengua originaria?\n\nSí - No","Lengua originaria que domina","Fuente de\nfinanciamiento","Condición\nlaboral","Modalidad de Contrato","Máximo nivel educativo\nalcanzado","Especialidad Pedagógica\nque ha estudiado","¿En qué tipo de institución obtuvo su formación pedagógica?","Segunda Especialidad","Estudios de Postgrado en Pedagogía",null,"Tiempo\nde\nservicio\n(en años)","Años de Experiencia Laboral","Años de experiencia laboral en este servicio/nivel educativo","Escala Magisterial","Función o cargo","Situación en cargo\ndirectivo","Destaque\no\nlicencia","Jornada laboral según Nombramiento o Contrato","Forma de atención","Centro donde labora","¿ Tiene sección a cargo ?\n\nSí  -  No","Ciclo y grado atendido\nMarque con una “X” según corresponda",null,null,null,null,null,null,null,"Área(s) curricular(es) a cargo (Marque con una \"X\" según corresponda)",null,null,null,null,null,null,null,null,null,"¿Presenta alguna discapa-cidad?","Solo si respondió SI en la pregunta 330 ¿Cúal es el tipo de discapacidad?","Conocimiento de Inglés",null,null,null,"Certificación de Inglés",null,null,"¿Atiende a estudiantes con NEE asociadas a discapacidad?\nSí / No","¿Ha recibido asistencia y orientación para la atención educativa de estudiantes con discapacidad de parte del equipo (SAEV)?"]
[null,null,null,null,null,null,null,null,null,null,null,"Apellido paterno","Apellido materno","Nombres",302.10000000000002,302.2,null,null,null,null,null,null,null,null,null,null,null,null,null,null,null,null,null,null,null,null,null,null,null,null,null,null,"Referencial",null,null,null,"Periférico",null,null,null,"Mate-\nmática","Comuni- cación","Inglés","Arte y Cultura","Desarrollo Personal y Ciudadano","Educación Física","Ciencia Tecnología y Salud","Castellano como según- da lengua","Educación\npara el\nTrabajo","Educación Religiosa",null,null,"No Sabe","Habla","Lee","Escribe","No Tiene","Si Tiene"]
["302.1 Tipo de documento de Identidad","314. Tipo de inst. donde estudio","Corr","Escala","Gest","Secc","Fun- cion","Duplex","Fmt","Lengua",null,null,null,null,"Tipo","Número",null,null,null,null,null,null,null,null,null,null,null,null,null,"Maestria","Doctorado",null,null,null,null,null,null,null,null,null,null,null,"1º","2º","3º","4º","1º","2º","3º","4º",null,null,null,null,null,null,null,null,null,null,null,null,null,null,null,null,null,"Nacional","Interna- cional"]
["01: DNI.","01: IESP (Público)",1,{"$f":"IF(AND(LEFT($Q19,2)=\"01\",LEFT($W19,2)=\"01\",LEFT($X19,2)=\"01\",$E19=1),1,0)","v":0},{"$f":"$B$16","v":""},{"$f":"COUNTIF(AQ19:AX19,\"X\")","v":0},{"$f":"IF($Q19<>\"\",VALUE(LEFT($Q19,2)),0)","v":0},{"$f":"IF($P19<>\"\",COUNTIF($P$19:$P$148,$P19),0)","v":0},{"$f":"IF($K19<>\"\",1,0)","v":0},{"$f":"IF(AND(G19=1,U19=\"SI\"),1,0)","v":0},{"$f":"IF(C19<=$B$5,C19,\"\")","v":""},"","","","","","","","","","","","","","","","","","","","","","","","","","","","","","","","","","","","","","","","","","","","","","","","","","","","","","","","","","","","","",{"$f":"IF($Z19<>\"\",IF(OR(LEFT($Z19,2)=\"01\",LEFT($Z19,2)=\"02\",LEFT($Z19,2)=\"04\",LEFT($Z19,2)=\"05\"),1,2),\"\")","v":""},"","",""]
["02: Carnet extranjeria","02: IESP (Privado)",2,{"$f":"IF(AND(LEFT($Q20,2)=\"01\",LEFT($W20,2)=\"01\",LEFT($X20,2)=\"01\",$E20=1),1,0)","v":0},{"$f":"$B$16","v":""},{"$f":"COUNTIF(AQ20:AX20,\"X\")","v":0},{"$f":"IF($Q20<>\"\",VALUE(LEFT($Q20,2)),0)","v":0},{"$f":"IF($P20<>\"\",COUNTIF($P$19:$P$148,$P20),0)","v":0},{"$f":"IF($K20<>\"\",1,0)","v":0},{"$f":"IF(AND(G20=1,U20=\"SI\"),1,0)","v":0},{"$f":"IF(C20<=$B$5,C20,\"\")","v":""},"","","","","","","","","","","","","","","","","","","","","","","","","","","","","","","","","","","","","","","","","","","","","","","","","","","","","","","","","","","","","",{"$f":"IF($Z20<>\"\",IF(OR(LEFT($Z20,2)=\"01\",LEFT($Z20,2)=\"02\",LEFT($Z20,2)=\"04\",LEFT($Z20,2)=\"05\"),1,2),\"\")","v":""},"","",""]
["03: Pasaporte","03: Universidad Privada",3,0,"",0,0,{"$f":"IF($P21<>\"\",COUNTIF($P$19:$P$148,$P21),0)","v":0},0,0,{"$f":"IF(C21<=$B$5,C21,\"\")","v":""},"","","","","","","","","","","","","","","","","","","","","","","","","","","","","","","","","","","","","","","","","","","","","","","","","","","","","","","","","","","","","","","","",""]
[null,"04: Universidad Pública",4,0,"",0,0,0,0,0,"","","","","","","","","","","","","","","","","","","","","","","","","","","","","","","","","","","","","","","","","","","","","","","","","","","","","","","","","","","","","","","","","",""]
["303. Tipo de Personal","05: Sin formación pedagógica",5,0,"",0,0,0,0,0,"","","","","","","","","","","","","","","","","","","","","","","","","","","","","","","","","","","","","","","","","","","","","","","","","","","","","","","","","","","","","","","","","",""]
["01: Docente",null,6,0,"",0,0,0,0,0,"","","","","","","","","","","","","","","","","","","","","","","","","","","","","","","","","","","","","","","","","","","","","","","","","","","","","","","","","","","","","","",""]
["02: Administrativo","315. Segunda Especialidad",7,0,"",0,0,0,0,0,"","","","","","","","","","","","","","","","","","","","","","","","","","","","","","","","","","","","","","","","","","","","","","","","","","","","","","","","","","","","","","",""]
["03: Aux. de Educación","Utilice las especialidades de la tabla de códigos 313.",8,0,"",0,0,0,0,0,"","","","","","","","","","","","","","","","","","","","","","","","","","","","","","","","","","","","","","","","","","","","","","","","","","","","","","","","","","","","","","",""]
[null,null,9,0,"",0,0,0,0,0,"","","","","","","","","","","","","","","","","","","","","","","","","","","","","","","","","","","","","","","","","","","","","","","","","","","","","","","","","","","","","","",""]
["305. Sexo","316. Estudios de Postgrado en Pedagogía",10,0,"",0,0,0,0,0,"","","","","","","","","","","","","","","","","","","","","","","","","","","","","","","","","","","","","","","","","","","","","","","","","","","","","","","","","","","","","","",""]
["Hombre","Estudios de Maestría",11,0,"",0,0,0,0,0,"","","","","","","","","","","","","","","","","","","","","","","","","","","","","","","","","","","","","","","","","","","","","","","","","","","","","","","","","","","","","","",""]
["Mujer","01: Concluida con grado",12,0,"",0,0,0,0,0,"","","","","","","","","","","","","","","","","","","","","","","","","","","","","","","","","","","","","","","","","","","","","","","","","","","","","","","","","","","","","","",""]
[null,"02: Concluida sin grado",13,0,"",0,0,0,0,0,"","","","","","","","","","","","","","","","","","","","","","","","","","","","","","","","","","","","","","","","","","","","","","","","","","","","","","","","","","","","","","",""]
["306. Lengua Materna","03: En proceso / no concluida",14,0,"",0,0,0,0,0,"","","","","","","","","","","","","","","","","","","","","","","","","","","","","","","","","","","","","","","","","","","","","","","","","","","","","","","","","","","","","","",""]
["0100: Castellano","04: Sin Maestría",15,0,"",0,0,0,0,0,"","","","","","","","","","","","","","","","","","","","","","","","","","","","","","","","","","","","","","","","","","","","","","","","","","","","","","","","","","","","","","",""]
["0200: Achuar","Estudios de Doctorado",16,0,"",0,0,0,0,0,"","","","","","","","","","","","","","","","","","","","","","","","","","","","","","","","","","","","","","","","","","","","","","","","","","","","","","","","","","","","","","",""]
["0300: Aimara","05: Concluido con grado",17,0,"",0,0,0,0,0,"","","","","","","","","","","","","","","","","","","","","","","","","","","","","","","","","","","","","","","","","","","","","","","","","","","","","","","","","","","","","","",""]
["0400: Amahuaca","06: Concluido sin grado",18,0,"",0,0,0,0,0,"","","","","","","","","","","","","","","","","","","","","","","","","","","","","","","","","","","","","","","","","","","","","","","","","","","","","","","","","","","","","","",""]
["0500: Arabela","07: En proceso / no concluido",19,0,"",0,0,0,0,0,"","","","","","","","","","","","","","","","","","","","","","","","","","","","","","","","","","","","","","","","","","","","","","","","","","","","","","","","","","","","","","",""]
["0600: Ashaninka","08: Sin Doctorado",20,0,"",0,0,0,0,0,"","","","","","","","","","","","","","","","","","","","","","","","","","","","","","","","","","","","","","","","","","","","","","","","","","","","","","","","","","","","","","",""]
["0610: Asheninka",null,21,0,"",0,0,0,0,0,"","","","","","","","","","","","","","","","","","","","","","","","","","","","","","","","","","","","","","","","","","","","","","","","","","","","","","","","","","","","","","",""]
["0700: Awajún","317. Tiempo de Servicio",22,0,"",0,0,0,0,0,"","","","","","","","","","","","","","","","","","","","","","","","","","","","","","","","","","","","","","","","","","","","","","","","","","","","","","","","","","","","","","",""]
["0800: Bora","Solo personal Nombrado.",23,0,"",0,0,0,0,0,"","","","","","","","","","","","","","","","","","","","","","","","","","","","","","","","","","","","","","","","","","","","","","","","","","","","","","","","","","","","","","",""]
["0900: Kapanawa","Tiempo contado expresado en años desde su fecha de Nombramiento",24,0,"",0,0,0,0,0,"","","","","","","","","","","","","","","","","","","","","","","","","","","","","","","","","","","","","","","","","","","","","","","","","","","","","","","","","","","","","","",""]
["1000: Cashinahua",null,25,0,"",0,0,0,0,0,"","","","","","","","","","","","","","","","","","","","","","","","","","","","","","","","","","","","","","","","","","","","","","","","","","","","","","","","","","","","","","",""]
["1100: Kawki","318. Años de Experiencia Laboral",26,0,"",0,0,0,0,0,"","","","","","","","","","","","","","","","","","","","","","","","","","","","","","","","","","","","","","","","","","","","","","","","","","","","","","","","","","","","","","",""]
["1200: Chamikuro","Registre el total de años que tiene como experiencia",27,0,"",0,0,0,0,0,"","","","","","","","","","","","","","","","","","","","","","","","","","","","","","","","","","","","","","","","","","","","","","","","","","","","","","","","","","","","","","",""]
["1300: Ese eja","en el Tipo de Personal que se está registrando (Tabla 301.)",28,0,"",0,0,0,0,0,"","","","","","","","","","","","","","","","","","","","","","","","","","","","","","","","","","","","","","","","","","","","","","","","","","","","","","","","","","","","","","",""]
["1400: Harakbut",null,29,0,"",0,0,0,0,0,"","","","","","","","","","","","","","","","","","","","","","","","","","","","","","","","","","","","","","","","","","","","","","","","","","","","","","","","","","","","","","",""]
["1500: Iñapari","319. Años de experiencia laboral en este servicio/ nivel educativo",30,0,"",0,0,0,0,0,"","","","","","","","","","","","","","","","","","","","","","","","","","","","","","","","","","","","","","","","","","","","","","","","","","","","","","","","","","","","","","",""]
["1600: Ikitu","Anote el N° de años de experiencia prestando servicios",31,0,"",0,0,0,0,0,"","","","","","","","","","","","","","","","","","","","","","","","","","","","","","","","","","","","","","","","","","","","","","","","","","","","","","","","","","","","","","",""]
["1700: Iskonawa","en este servicio/nivel educativo por el tipo de personal",32,0,"",0,0,0,0,0,"","","","","","","","","","","","","","","","","","","","","","","","","","","","","","","","","","","","","","","","","","","","","","","","","","","","","","","","","","","","","","",""]
["1800: Jaqaru","que se está registrando (Tabla 301.)",33,0,"",0,0,0,0,0,"","","","","","","","","","","","","","","","","","","","","","","","","","","","","","","","","","","","","","","","","","","","","","","","","","","","","","","","","","","","","","",""]
["1900: Kakataibo",null,34,0,"",0,0,0,0,0,"","","","","","","","","","","","","","","","","","","","","","","","","","","","","","","","","","","","","","","","","","","","","","","","","","","","","","","","","","","","","","",""]
["2000: Kakinte","320. Escala Magisterial",35,0,"",0,0,0,0,0,"","","","","","","","","","","","","","","","","","","","","","","","","","","","","","","","","","","","","","","","","","","","","","","","","","","","","","","","","","","","","","",""]
["2110: Kandozi-chapra (chapra)","Complete los datos de Escala Magisterial, según corresponda",36,0,"",0,0,0,0,0,"","","","","","","","","","","","","","","","","","","","","","","","","","","","","","","","","","","","","","","","","","","","","","","","","","","","","","","","","","","","","","",""]
["2120: Kandozi-chapra (kandozi)","01: Primera",37,0,"",0,0,0,0,0,"","","","","","","","","","","","","","","","","","","","","","","","","","","","","","","","","","","","","","","","","","","","","","","","","","","","","","","","","","","","","","",""]
["2200: Kukama kukamiria","02: Segunda",38,0,"",0,0,0,0,0,"","","","","","","","","","","","","","","","","","","","","","","","","","","","","","","","","","","","","","","","","","","","","","","","","","","","","","","","","","","","","","",""]
["2300: Madija","03: Tercera",39,0,"",0,0,0,0,0,"","","","","","","","","","","","","","","","","","","","","","","","","","","","","","","","","","","","","","","","","","","","","","","","","","","","","","","","","","","","","","",""]
["2400: Maijiki","04: Cuarta",40,0,"",0,0,0,0,0,"","","","","","","","","","","","","","","","","","","","","","","","","","","","","","","","","","","","","","","","","","","","","","","","","","","","","","","","","","","","","","",""]
["2500: Matsés","05: Quinta",41,0,"",0,0,0,0,0,"","","","","","","","","","","","","","","","","","","","","","","","","","","","","","","","","","","","","","","","","","","","","","","","","","","","","","","","","","","","","","",""]
["2600: Matsigenka","06: Sexta",42,0,"",0,0,0,0,0,"","","","","","","","","","","","","","","","","","","","","","","","","","","","","","","","","","","","","","","","","","","","","","","","","","","","","","","","","","","","","","",""]
["2700: Muniche","07: Séptima",43,0,"",0,0,0,0,0,"","","","","","","","","","","","","","","","","","","","","","","","","","","","","","","","","","","","","","","","","","","","","","","","","","","","","","","","","","","","","","",""]
["2800: Murui-muinani","08: Octava",44,0,"",0,0,0,0,0,"","","","","","","","","","","","","","","","","","","","","","","","","","","","","","","","","","","","","","","","","","","","","","","","","","","","","","","","","","","","","","",""]
["2900: Matsigenka-montetokunirira","09: Sin Escala",45,0,"",0,0,0,0,0,"","","","","","","","","","","","","","","","","","","","","","","","","","","","","","","","","","","","","","","","","","","","","","","","","","","","","","","","","","","","","","",""]
["3000: Nomatsigenga",null,46,0,"",0,0,0,0,0,"","","","","","","","","","","","","","","","","","","","","","","","","","","","","","","","","","","","","","","","","","","","","","","","","","","","","","","","","","","","","","",""]
["3100: Ocaina","321. Función o Cargo",47,0,"",0,0,0,0,0,"","","","","","","","","","","","","","","","","","","","","","","","","","","","","","","","","","","","","","","","","","","","","","","","","","","","","","","","","","","","","","",""]
["3200: Omagua","(Desempeñado a la fecha de reporte)",48,0,"",0,0,0,0,0,"","","","","","","","","","","","","","","","","","","","","","","","","","","","","","","","","","","","","","","","","","","","","","","","","","","","","","","","","","","","","","",""]
["3310: Quechua amazónico (Kichwa)","01: (102)-Director",49,0,"",0,0,0,0,0,"","","","","","","","","","","","","","","","","","","","","","","","","","","","","","","","","","","","","","","","","","","","","","","","","","","","","","","","","","","","","","",""]
["3321: Quechua central (Ancash)","02: (103)-Sub Director",50,0,"",0,0,0,0,0,"","","","","","","","","","","","","","","","","","","","","","","","","","","","","","","","","","","","","","","","","","","","","","","","","","","","","","","","","","","","","","",""]
["3322: Quechua central (Huánuco)","03: (106)-Coordinador, Asesor",51,0,"",0,0,0,0,0,"","","","","","","","","","","","","","","","","","","","","","","","","","","","","","","","","","","","","","","","","","","","","","","","","","","","","","","","","","","","","","",""]
["3323: Quechua central (Wanka)","04: (111)-Docente de Aula / por horas",52,0,"",0,0,0,0,0,"","","","","","","","","","","","","","","","","","","","","","","","","","","","","","","","","","","","","","","","","","","","","","","","","","","","","","","","","","","","","","",""]
["3324: Quechua central (Pasco)","05: (112)-Docente Especial - Educación Física",53,0,"",0,0,0,0,0,"","","","","","","","","","","","","","","","","","","","","","","","","","","","","","","","","","","","","","","","","","","","","","","","","","","","","","","","","","","","","","",""]
["3331: Quechua norteño (Cajamarca)","06: (113)-Docente Especial - Computación",54,0,"",0,0,0,0,0,"","","","","","","","","","","","","","","","","","","","","","","","","","","","","","","","","","","","","","","","","","","","","","","","","","","","","","","","","","","","","","",""]
["3332: Quechua norteño (Inkawasi Kañaris)","07: (114)-Docente Especial - Aula de Innovación Pedagógica",55,0,"",0,0,0,0,0,"","","","","","","","","","","","","","","","","","","","","","","","","","","","","","","","","","","","","","","","","","","","","","","","","","","","","","","","","","","","","","",""]
["3341: Quechua sureño (Chanka)","08: (115)-Docente Especial - otro",56,0,"",0,0,0,0,0,"","","","","","","","","","","","","","","","","","","","","","","","","","","","","","","","","","","","","","","","","","","","","","","","","","","","","","","","","","","","","","",""]
["3342: Quechua sureño (Collao)","09: (116)-Docente de Aula con función o cargo directivo",57,0,"",0,0,0,0,0,"","","","","","","","","","","","","","","","","","","","","","","","","","","","","","","","","","","","","","","","","","","","","","","","","","","","","","","","","","","","","","",""]
["3400: Resigaro","10: (138)-Tutor a distancia",58,0,"",0,0,0,0,0,"","","","","","","","","","","","","","","","","","","","","","","","","","","","","","","","","","","","","","","","","","","","","","","","","","","","","","","","","","","","","","",""]
["3500: Secoya","11: (139)-Otro docente",59,0,"",0,0,0,0,0,"","","","","","","","","","","","","","","","","","","","","","","","","","","","","","","","","","","","","","","","","","","","","","","","","","","","","","","","","","","","","","",""]
["3600: Sharanahua",null,60,0,"",0,0,0,0,0,"","","","","","","","","","","","","","","","","","","","","","","","","","","","","","","","","","","","","","","","","","","","","","","","","","","","","","","","","","","","","","",""]
["3700: Shawi","12: (501)-Psicólogo",61,0,"",0,0,0,0,0,"","","","","","","","","","","","","","","","","","","","","","","","","","","","","","","","","","","","","","","","","","","","","","","","","","","","","","","","","","","","","","",""]
["3800: Shipibo-Konibo","13: (502)-Trabajo social / Servicio social",62,0,"",0,0,0,0,0,"","","","","","","","","","","","","","","","","","","","","","","","","","","","","","","","","","","","","","","","","","","","","","","","","","","","","","","","","","","","","","",""]
["3900: Shiwilu","14: (503)-Personal de Salud",63,0,"",0,0,0,0,0,"","","","","","","","","","","","","","","","","","","","","","","","","","","","","","","","","","","","","","","","","","","","","","","","","","","","","","","","","","","","","","",""]
["4000: Taushiro","15: (504)-Administrador o contador",64,0,"",0,0,0,0,0,"","","","","","","","","","","","","","","","","","","","","","","","","","","","","","","","","","","","","","","","","","","","","","","","","","","","","","","","","","","","","","",""]
["4100: Ticuna","16: (538)-Guía intérprete de sordoceguera",65,0,"",0,0,0,0,0,"","","","","","","","","","","","","","","","","","","","","","","","","","","","","","","","","","","","","","","","","","","","","","","","","","","","","","","","","","","","","","",""]
["4200: Urarina","17: (539)-Intérprete de Lengua de Señas Peruana",66,{"$f":"IF(AND(LEFT($Q84,2)=\"01\",LEFT($W84,2)=\"01\",LEFT($X84,2)=\"01\",$E84=1),1,0)","v":0},{"$f":"$B$16","v":""},{"$f":"COUNTIF(AQ84:AX84,\"X\")","v":0},{"$f":"IF($Q84<>\"\",VALUE(LEFT($Q84,2)),0)","v":0},0,{"$f":"IF($K84<>\"\",1,0)","v":0},{"$f":"IF(AND(G84=1,U84=\"SI\"),1,0)","v":0},"","","","","","","","","","","","","","","","","","","","","","","","","","","","","","","","","","","","","","","","","","","","","","","","","","","","","","","","","","","","","","",{"$f":"IF($Z84<>\"\",IF(OR(LEFT($Z84,2)=\"01\",LEFT($Z84,2)=\"02\",LEFT($Z84,2)=\"04\",LEFT($Z84,2)=\"05\"),1,2),\"\")","v":""}]
["4300: Wampis","18: (540)-Modelo Lingüístico",67,0,"",0,0,{"$f":"IF($P85<>\"\",COUNTIF($P$19:$P$148,$P85),0)","v":0},0,0,{"$f":"IF(C85<=$B$5,C85,\"\")","v":""},"","","","","","","","","","","","","","","","","","","","","","","","","","","","","","","","","","","","","","","","","","","","","","","","","","","","","","","","","","","","","",""]
["4400: Yagua","19: (505)-Otro personal profesional",68,0,"",0,0,0,0,0,"","","","","","","","","","","","","","","","","","","","","","","","","","","","","","","","","","","","","","","","","","","","","","","","","","","","","","","","","","","","","","",""]
["4500: Yaminahua","20: (506)-Auxiliar de Biblioteca",69,0,"",0,0,0,0,0,"","","","","","","","","","","","","","","","","","","","","","","","","","","","","","","","","","","","","","","","","","","","","","","","","","","","","","","","","","","","","","",""]
["4600: Yanesha","21: (507)-Auxiliar de Laboratorio",70,0,"",0,0,0,0,0,"","","","","","","","","","","","","","","","","","","","","","","","","","","","","","","","","","","","","","","","","","","","","","","","","","","","","","","","","","","","","","",""]
["4700: Yine","22: (508)-Secretaria u Oficinista",71,0,"",0,0,0,0,0,"","","","","","","","","","","","","","","","","","","","","","","","","","","","","","","","","","","","","","","","","","","","","","","","","","","","","","","","","","","","","","",""]
["4800: Nahua","23: (510)-Coordinador de Taller",72,0,"",0,0,0,0,0,"","","","","","","","","","","","","","","","","","","","","","","","","","","","","","","","","","","","","","","","","","","","","","","","","","","","","","","","","","","","","","",""]
["5000: Otra lengua originaria","24: (511)-Asistente Administrativo",73,0,"",0,0,0,0,0,"","","","","","","","","","","","","","","","","","","","","","","","","","","","","","","","","","","","","","","","","","","","","","","","","","","","","","","","","","","","","","",""]
["5100: Alemán","25: (512)-Personal de Servicio - Mantenimiento",74,0,"",0,0,0,0,0,"","","","","","","","","","","","","","","","","","","","","","","","","","","","","","","","","","","","","","","","","","","","","","","","","","","","","","","","","","","","","","",""]
["5200: Inglés","26: (513)-Personal de Servicio - Cocina",75,0,"",0,0,0,0,0,"","","","","","","","","","","","","","","","","","","","","","","","","","","","","","","","","","","","","","","","","","","","","","","","","","","","","","","","","","","","","","",""]
["5300: Italiano","27: (514)-Personal de Servicio - Limpieza",76,0,"",0,0,0,0,0,"","","","","","","","","","","","","","","","","","","","","","","","","","","","","","","","","","","","","","","","","","","","","","","","","","","","","","","","","","","","","","",""]
["5400: Japonés","28: (515)-Personal de Servicio - Portero",77,0,"",0,0,0,0,0,"","","","","","","","","","","","","","","","","","","","","","","","","","","","","","","","","","","","","","","","","","","","","","","","","","","","","","","","","","","","","","",""]
["5500: Portugués","29: (516)-Personal de Servicio - Vigilante",78,0,"",0,0,0,0,0,"","","","","","","","","","","","","","","","","","","","","","","","","","","","","","","","","","","","","","","","","","","","","","","","","","","","","","","","","","","","","","",""]
["5600: Ruso","30: (517)-Personal de servicio - Otro",79,0,"",0,0,0,0,0,"","","","","","","","","","","","","","","","","","","","","","","","","","","","","","","","","","","","","","","","","","","","","","","","","","","","","","","","","","","","","","",""]
["5700: Francés","31: (518)-Otro personal No profesional",80,0,"",0,0,0,0,0,"","","","","","","","","","","","","","","","","","","","","","","","","","","","","","","","","","","","","","","","","","","","","","","","","","","","","","","","","","","","","","",""]
["5800: Otra lengua extranjera",null,81,0,"",0,0,0,0,0,"","","","","","","","","","","","","","","","","","","","","","","","","","","","","","","","","","","","","","","","","","","","","","","","","","","","","","","","","","","","","","",""]
[null,"99: (999)-Auxiliar de Educación",82,0,"",0,0,0,0,0,"","","","","","","","","","","","","","","","","","","","","","","","","","","","","","","","","","","","","","","","","","","","","","","","","","","","","","","","","","","","","","",""]
["308. Lengua Originaria","322. Situación en el Cargo Directivo",83,0,"",0,0,0,0,0,"","","","","","","","","","","","","","","","","","","","","","","","","","","","","","","","","","","","","","","","","","","","","","","","","","","","","","","","","","","","","","",""]
["Utilice los códigos de lengua de la tabla 203","01: Titular ratificado por eval. excep. 2014",84,0,"",0,0,0,0,0,"","","","","","","","","","","","","","","","","","","","","","","","","","","","","","","","","","","","","","","","","","","","","","","","","","","","","","","","","","","","","","",""]
[null,"02: Titular designado eval. acceso 2015",85,0,"",0,0,0,0,0,"","","","","","","","","","","","","","","","","","","","","","","","","","","","","","","","","","","","","","","","","","","","","","","","","","","","","","","","","","","","","","",""]
["309. Fuente de Financiamiento","03: Titular otro",86,0,"",0,0,0,0,0,"","","","","","","","","","","","","","","","","","","","","","","","","","","","","","","","","","","","","","","","","","","","","","","","","","","","","","","","","","","","","","",""]
["01: Sector Educación","04: Encargado por función, sin doc. formal",87,0,"",0,0,0,0,0,"","","","","","","","","","","","","","","","","","","","","","","","","","","","","","","","","","","","","","","","","","","","","","","","","","","","","","","","","","","","","","",""]
["02: Otro sector (FF.AA. Salud u Otro)","05: Encargado",88,0,"",0,0,0,0,0,"","","","","","","","","","","","","","","","","","","","","","","","","","","","","","","","","","","","","","","","","","","","","","","","","","","","","","","","","","","","","","",""]
["03: Municipalidad",null,89,0,"",0,0,0,0,0,"","","","","","","","","","","","","","","","","","","","","","","","","","","","","","","","","","","","","","","","","","","","","","","","","","","","","","","","","","","","","","",""]
["04: Gobierno Regional","323. Destaque o Licencia",90,0,"",0,0,0,0,0,"","","","","","","","","","","","","","","","","","","","","","","","","","","","","","","","","","","","","","","","","","","","","","","","","","","","","","","","","","","","","","",""]
["05: APAFA","01: Cubriendo una licencia",91,0,"",0,0,0,0,0,"","","","","","","","","","","","","","","","","","","","","","","","","","","","","","","","","","","","","","","","","","","","","","","","","","","","","","","","","","","","","","",""]
["06: Otra fuente Privada","02: De otra I.E./DRE/UGEL",92,0,"",0,0,0,0,0,"","","","","","","","","","","","","","","","","","","","","","","","","","","","","","","","","","","","","","","","","","","","","","","","","","","","","","","","","","","","","","",""]
["01: Sector Educación","03: No Aplica",93,0,"",0,0,0,0,0,"","","","","","","","","","","","","","","","","","","","","","","","","","","","","","","","","","","","","","","","","","","","","","","","","","","","","","","","","","","","","","",""]
["310. Condición Laboral",null,94,0,"",0,0,0,0,0,"","","","","","","","","","","","","","","","","","","","","","","","","","","","","","","","","","","","","","","","","","","","","","","","","","","","","","","","","","","","","","",""]
["01: Nombrado","01: En uso de Licencia",95,0,"",0,0,0,0,0,"","","","","","","","","","","","","","","","","","","","","","","","","","","","","","","","","","","","","","","","","","","","","","","","","","","","","","","","","","","","","","",""]
["02: Contratado","03: No Aplica",96,0,"",0,0,0,0,0,"","","","","","","","","","","","","","","","","","","","","","","","","","","","","","","","","","","","","","","","","","","","","","","","","","","","","","","","","","","","","","",""]
[null,null,97,0,"",0,0,0,0,0,"","","","","","","","","","","","","","","","","","","","","","","","","","","","","","","","","","","","","","","","","","","","","","","","","","","","","","","","","","","","","","",""]
["311. Modalidad de Contrato","SI / NO",98,0,"",0,0,0,0,0,"","","","","","","","","","","","","","","","","","","","","","","","","","","","","","","","","","","","","","","","","","","","","","","","","","","","","","","","","","","","","","",""]
["Contrato Público","SI",99,0,"",0,0,0,0,0,"","","","","","","","","","","","","","","","","","","","","","","","","","","","","","","","","","","","","","","","","","","","","","","","","","","","","","","","","","","","","","",""]
["01: A plazo fijo D. Leg. 728","NO",100,0,"",0,0,0,0,0,"","","","","","","","","","","","","","","","","","","","","","","","","","","","","","","","","","","","","","","","","","","","","","","","","","","","","","","","","","","","","","",""]
["02: Locación de Servicios/Honorarios",null,101,0,"",0,0,0,0,0,"","","","","","","","","","","","","","","","","","","","","","","","","","","","","","","","","","","","","","","","","","","","","","","","","","","","","","","","","","","","","","",""]
["03: CAS - D. Leg. 1057",null,102,0,"",0,0,0,0,0,"","","","","","","","","","","","","","","","","","","","","","","","","","","","","","","","","","","","","","","","","","","","","","","","","","","","","","","","","","","","","","",""]
["04: Contrato D. Leg. 276","324. Jornada Laboral (Nombramiento / Contrato)",103,0,"",0,0,0,0,0,"","","","","","","","","","","","","","","","","","","","","","","","","","","","","","","","","","","","","","","","","","","","","","","","","","","","","","","","","","","","","","",""]
["05: Contrato Ley 30328","40: Horas",104,0,"",0,0,0,0,0,"","","","","","","","","","","","","","","","","","","","","","","","","","","","","","","","","","","","","","","","","","","","","","","","","","","","","","","","","","","","","","",""]
["06: Otra modalidad","30: Horas",105,0,"",0,0,0,0,0,"","","","","","","","","","","","","","","","","","","","","","","","","","","","","","","","","","","","","","","","","","","","","","","","","","","","","","","","","","","","","","",""]
["Contrato Privado","25: Horas",106,0,"",0,0,0,0,0,"","","","","","","","","","","","","","","","","","","","","","","","","","","","","","","","","","","","","","","","","","","","","","","","","","","","","","","","","","","","","","",""]
["07: A plazo indefinido (Permanente)","24: Horas",107,0,"",0,0,0,0,0,"","","","","","","","","","","","","","","","","","","","","","","","","","","","","","","","","","","","","","","","","","","","","","","","","","","","","","","","","","","","","","",""]
["08: Plazo fijo (Tiempo determinado)","23: Menos 24 horas",108,0,"",0,0,0,0,0,"","","","","","","","","","","","","","","","","","","","","","","","","","","","","","","","","","","","","","","","","","","","","","","","","","","","","","","","","","","","","","",""]
["09: A tiempo parcial (por horas)",null,109,0,"",0,0,0,0,0,"","","","","","","","","","","","","","","","","","","","","","","","","","","","","","","","","","","","","","","","","","","","","","","","","","","","","","","","","","","","","","",""]
["10: Locación de Servicios/Honorarios","330.3 ¿Cuál fue el tipo de estudios en EIB?",110,0,"",0,0,0,0,0,"","","","","","","","","","","","","","","","","","","","","","","","","","","","","","","","","","","","","","","","","","","","","","","","","","","","","","","","","","","","","","",""]
["11: Otra modalidad","01: Doctorado",111,0,"",0,0,0,0,0,"","","","","","","","","","","","","","","","","","","","","","","","","","","","","","","","","","","","","","","","","","","","","","","","","","","","","","","","","","","","","","",""]
[null,"02: Maestría",112,0,"",0,0,0,0,0,"","","","","","","","","","","","","","","","","","","","","","","","","","","","","","","","","","","","","","","","","","","","","","","","","","","","","","","","","","","","","","",""]
["312. Máximo Nivel Educativo Alcanzado","03: Segunda especialidad",113,0,"",0,0,0,0,0,"","","","","","","","","","","","","","","","","","","","","","","","","","","","","","","","","","","","","","","","","","","","","","","","","","","","","","","","","","","","","","",""]
["01: Pedag.Concluidos con título","04: Especialización",114,0,"",0,0,0,0,0,"","","","","","","","","","","","","","","","","","","","","","","","","","","","","","","","","","","","","","","","","","","","","","","","","","","","","","","","","","","","","","",""]
["02: Pedag.Concluidos sin título","05: Actualización",115,0,"",0,0,0,0,0,"","","","","","","","","","","","","","","","","","","","","","","","","","","","","","","","","","","","","","","","","","","","","","","","","","","","","","","","","","","","","","",""]
["03: Pedag.No concluidos","06: Otro",116,0,"",0,0,0,0,0,"","","","","","","","","","","","","","","","","","","","","","","","","","","","","","","","","","","","","","","","","","","","","","","","","","","","","","","","","","","","","","",""]
["04: No Pedag.Concluidos con título",null,117,0,"",0,0,0,0,0,"","","","","","","","","","","","","","","","","","","","","","","","","","","","","","","","","","","","","","","","","","","","","","","","","","","","","","","","","","","","","","",""]
["05: No Pedag.Concluidos sin título","325. Forma de atención",118,0,"",0,0,0,0,0,"","","","","","","","","","","","","","","","","","","","","","","","","","","","","","","","","","","","","","","","","","","","","","","","","","","","","","","","","","","","","","",""]
["06: No Pedag.No concluidos","01: Presencial",119,0,"",0,0,0,0,0,"","","","","","","","","","","","","","","","","","","","","","","","","","","","","","","","","","","","","","","","","","","","","","","","","","","","","","","","","","","","","","",""]
["07: Secundaria","02: Semipresencial",120,0,"",0,0,0,0,0,"","","","","","","","","","","","","","","","","","","","","","","","","","","","","","","","","","","","","","","","","","","","","","","","","","","","","","","","","","","","","","",""]
["08: Primaria","03: Distancia",121,0,"",0,0,0,0,0,"","","","","","","","","","","","","","","","","","","","","","","","","","","","","","","","","","","","","","","","","","","","","","","","","","","","","","","","","","","","","","",""]
[null,"04: 01 y 02",122,0,"",0,0,0,0,0,"","","","","","","","","","","","","","","","","","","","","","","","","","","","","","","","","","","","","","","","","","","","","","","","","","","","","","","","","","","","","","",""]
["313. Especialidad del Título","05: 01 y 03",123,0,"",0,0,0,0,0,"","","","","","","","","","","","","","","","","","","","","","","","","","","","","","","","","","","","","","","","","","","","","","","","","","","","","","","","","","","","","","",""]
["01: Educación Inicial","06: 02 y 03",124,0,"",0,0,0,0,0,"","","","","","","","","","","","","","","","","","","","","","","","","","","","","","","","","","","","","","","","","","","","","","","","","","","","","","","","","","","","","","",""]
["02: Educación Primaria","07: 01 02 y 03",125,0,"",0,0,0,0,0,"","","","","","","","","","","","","","","","","","","","","","","","","","","","","","","","","","","","","","","","","","","","","","","","","","","","","","","","","","","","","","",""]
["03: E.I. Intercultural Bilingüe",null,126,0,"",0,0,0,0,0,"","","","","","","","","","","","","","","","","","","","","","","","","","","","","","","","","","","","","","","","","","","","","","","","","","","","","","","","","","","","","","",""]
["04: E.P. Intercultural Bilingüe","326. Centro donde labora",127,0,"",0,0,0,0,0,"","","","","","","","","","","","","","","","","","","","","","","","","","","","","","","","","","","","","","","","","","","","","","","","","","","","","","","","","","","","","","",""]
["05: Educación Básica Alternativa","01: CEBA Referencial",128,0,"",0,0,0,0,0,"","","","","","","","","","","","","","","","","","","","","","","","","","","","","","","","","","","","","","","","","","","","","","","","","","","","","","","","","","","","","","",""]
["06: Educación Especial","02: Periférico",129,0,"",0,0,0,0,0,"","","","","","","","","","","","","","","","","","","","","","","","","","","","","","","","","","","","","","","","","","","","","","","","","","","","","","","","","","","","","","",""]
["07: Educación Física","03: Distancia",130,{"$f":"IF(AND(LEFT($Q148,2)=\"01\",LEFT($W148,2)=\"01\",LEFT($X148,2)=\"01\",$E148=1),1,0)","v":0},{"$f":"$B$16","v":""},{"$f":"COUNTIF(AQ148:AX148,\"X\")","v":0},{"$f":"IF($Q148<>\"\",VALUE(LEFT($Q148,2)),0)","v":0},0,{"$f":"IF($K148<>\"\",1,0)","v":0},{"$f":"IF(AND(G148=1,U148=\"SI\"),1,0)","v":0},"","","","","","","","","","","","","","","","","","","","","","","","","","","","","","","","","","","","","","","","","","","","","","","","","","","","","","","","","","","","","","",{"$f":"IF($Z148<>\"\",IF(OR(LEFT($Z148,2)=\"01\",LEFT($Z148,2)=\"02\",LEFT($Z148,2)=\"04\",LEFT($Z148,2)=\"05\"),1,2),\"\")","v":""}]
["08: Educación Artística"]
["09: E.S. Lengua y Literatura",null,null,null,null,null,null,null,null,null,null,"Limite","Limite","Limite","Limite",null,"Limite","Limite","Limite","Limite","Limite","Limite","Limite","Limite","Limite","Limite",null,"Limite","Limite","Limite","Limite","Limite","Limite","Limite","Limite","Limite","Limite","Limite","Limite","Limite","Limite","Limite","Limite","Limite","Limite","Limite","Limite","Limite","Limite","Limite","Limite","Limite","Limite","Limite","Limite","Limite","Limite","Limite","Limite","Limite","Limite","Limite","Limite","Limite","Limite","Limite","Limite","Limite","Limite","Limite","Limite"]
["10: E.S. especialidad Comunicación","330.1"]
["11: E.S. Matemática y Física","01: Auditiva"]
["12: E.S. especialidad Matemática","02: Visual"]
["13: E.S. CCSS y Filosofía","03: Física o Motora"]
["14: E.S. Esp. Ciudadanía y Ciencias Sociales","04: Otra"]
["15: E.S. Ciencias Naturales"]
["16: E.S. especialidad Ciencia y Tecnología"]
["17: E.S. Alimentación y Nutrición"]
["18: E.S. Biología y Química"]
["19: E.S. Historia y Geografía"]
["20: E.S. CC.HH. Sociales"]
["21: Idiomas especialidad Inglés"]
["22: Educación Religiosa"]
["23: E.S. Educación Familiar"]
["24: E.T. Artes Industriales"]
["25: E.T. Artesanía"]
["26: E.T. Agropecuaria"]
["27: E.T. Construcción en madera"]
["28: Computación e Informática"]
["29: E.T. Carpintería / Ebanistería"]
["30: E.T. Electricidad"]
["31: E.T. Electrónica"]
["32: E.T. Ebanistería"]
["33: E.T. Industria del Vestido"]
["34: E.T. Industria del Vestido Alimentación y Alta Costura"]
["35: E.T. en Industria del Vestido y Alta Costura"]
["36: E.S.Técnica Esp. Ind. del Vestido Ind.Alimentaria y Artesanía"]
["37: E.T. Industria Alimentaria"]
["38: E.T. Mecánica Automotriz"]
["39: E.T. Mecánica de Producción"]
["40: E.T. Mecánica de Producción y Soldadura"]
["41: Educación para el trabajo Textil y Confección"]
["42: Otra pedagógica"]

{"sheet":"C334","index":4,"n_rows":121,"n_cols":18,"rows_kept":121,"cut":false,"hidden":true,"merged":[[1,5,1,16],[2,5,2,16],[6,5,6,16],[16,8,16,10],[17,5,18,5],[17,6,18,6],[17,7,18,7],[17,8,17,10],[17,12,18,12]]}
[]
[null,null,null,null,null,"CENSO EDUCATIVO 2022"]
[null,null,null,null,null,"MATRÍCULA, DOCENTES Y RECURSOS"]
[]
[]
[]
[null,null,null,null,null,"DOCENTES QUE DOMINAN LENGUA ORIGINARIA (Solo II.EE. Públicas)"]
[]
["GESTIÓN",null,null,null,null,null,"334. SEGÚN LO ANOTADO EN LA PREGUNTA 307, ¿CUENTA CON UN DOCENTE QUE DOMINE UNA LENGUA ORIGINARIA?"]
[null,null,null,null,null,null,"Hacer click en el botón [Verificar] para revisar los docentes que dominan una lengua originaria"]
[1]
[null,null,null,null,null,null,null,"Sí   ",null,null,null,null,"¿Cuántos?"]
[]
[null,null,null,null,null,null,null,"No  ",null,null,null,null,"Pase a la sección 400."]
[]
[]
[null,null,null,null,null,null,null,null,334.1,null,null,334.2,334.3,334.4,334.5,334.6,334.7]
[null,null,null,null,null,"Nº","Nº de fila registrado en la pregunta 307","Documento de Identidad","Conocimiento de\nlengua originaria",null,null,"¿Cuenta con estudios en Educación Intercultural Bilingüe?","Solo si respondió SÍ  en la pregunta 334.2 ¿Cuál fue el tipo de estudios en EIB?","¿Ha recibido\ncapacitación en EIB?","¿El docente enseña\nen lengua originaria?","¿El material recibido coincide con la lengua que enseña?","¿En la actualidad el Docente se encuentra en el Registro de Docentes Bilingües?"]
["330.3 ¿Cuál fue el tipo de estudios en EIB?","Corr","Gest","Fmt",null,null,null,null,"Habla","Lee","Escribe"," Sí - No",null," Sí - No"," Sí - No"," Sí - No"," Sí - No"]
["01: Doctorado",1,{"$f":"$A$11","v":1},{"$f":"IF(F20<>\"\",1,0)","v":0},null,{"$f":"IF(B20<=$N$12,B20,\"\")","v":""},null,null,"","","","","","","","","",""]
["02: Maestría",{"$f":"B20+1","v":2},{"$f":"$A$11","v":1},{"$f":"IF(F21<>\"\",1,0)","v":0},null,{"$f":"IF(B21<=$N$12,B21,\"\")","v":""},null,null,"","","","","","","","","",""]
["03: Segunda especialidad",{"$f":"B21+1","v":3},1,{"$f":"IF(F22<>\"\",1,0)","v":0},null,"",null,null,"","","","","","","","","",""]
["04: Especialización",4,1,0,null,"",null,null,"","","","","","","","","",""]
["05: Actualización",5,1,0,null,"",null,null,"","","","","","","","","",""]
["06: Otro",6,1,0,null,"",null,null,"","","","","","","","","",""]
[null,7,1,0,null,"",null,null,"","","","","","","","","",""]
[null,8,1,0,null,"",null,null,"","","","","","","","","",""]
["SI",9,1,0,null,"",null,null,"","","","","","","","","",""]
["NO",10,1,0,null,"",null,null,"","","","","","","","","",""]
[null,11,1,0,null,"",null,null,"","","","","","","","","",""]
[null,12,1,0,null,"",null,null,"","","","","","","","","",""]
[null,13,1,0,null,"",null,null,"","","","","","","","","",""]
[null,14,1,0,null,"",null,null,"","","","","","","","","",""]
[null,15,1,0,null,"",null,null,"","","","","","","","","",""]
[null,16,1,0,null,"",null,null,"","","","","","","","","",""]
[null,17,1,0,null,"",null,null,"","","","","","","","","",""]
[null,18,1,0,null,"",null,null,"","","","","","","","","",""]
[null,19,1,0,null,"",null,null,"","","","","","","","","",""]
[null,20,1,0,null,"",null,null,"","","","","","","","","",""]
[null,21,1,0,null,"",null,null,"","","","","","","","","",""]
[null,22,1,0,null,"",null,null,"","","","","","","","","",""]
[null,23,1,0,null,"",null,null,"","","","","","","","","",""]
[null,24,1,0,null,"",null,null,"","","","","","","","","",""]
[null,25,1,0,null,"",null,null,"","","","","","","","","",""]
[null,26,1,0,null,"",null,null,"","","","","","","","","",""]
[null,27,1,0,null,"",null,null,"","","","","","","","","",""]
[null,28,1,0,null,"",null,null,"","","","","","","","","",""]
[null,29,1,0,null,"",null,null,"","","","","","","","","",""]
[null,30,1,0,null,"",null,null,"","","","","","","","","",""]
[null,31,1,0,null,"",null,null,"","","","","","","","","",""]
[null,32,1,0,null,"",null,null,"","","","","","","","","",""]
[null,33,1,0,null,"",null,null,"","","","","","","","","",""]
[null,34,1,0,null,"",null,null,"","","","","","","","","",""]
[null,35,1,0,null,"",null,null,"","","","","","","","","",""]
[null,36,1,0,null,"",null,null,"","","","","","","","","",""]
[null,37,1,0,null,"",null,null,"","","","","","","","","",""]
[null,38,1,0,null,"",null,null,"","","","","","","","","",""]
[null,39,1,0,null,"",null,null,"","","","","","","","","",""]
[null,40,1,0,null,"",null,null,"","","","","","","","","",""]
[null,41,1,0,null,"",null,null,"","","","","","","","","",""]
[null,42,1,0,null,"",null,null,"","","","","","","","","",""]
[null,43,1,0,null,"",null,null,"","","","","","","","","",""]
[null,44,1,0,null,"",null,null,"","","","","","","","","",""]
[null,45,1,0,null,"",null,null,"","","","","","","","","",""]
[null,46,1,0,null,"",null,null,"","","","","","","","","",""]
[null,47,1,0,null,"",null,null,"","","","","","","","","",""]
[null,48,1,0,null,"",null,null,"","","","","","","","","",""]
[null,49,1,0,null,"",null,null,"","","","","","","","","",""]
[null,50,1,0,null,"",null,null,"","","","","","","","","",""]
[null,51,1,0,null,"",null,null,"","","","","","","","","",""]
[null,52,1,0,null,"",null,null,"","","","","","","","","",""]
[null,53,1,0,null,"",null,null,"","","","","","","","","",""]
[null,54,1,0,null,"",null,null,"","","","","","","","","",""]
[null,55,1,0,null,"",null,null,"","","","","","","","","",""]
[null,56,1,0,null,"",null,null,"","","","","","","","","",""]
[null,57,1,0,null,"",null,null,"","","","","","","","","",""]
[null,58,1,0,null,"",null,null,"","","","","","","","","",""]
[null,59,1,0,null,"",null,null,"","","","","","","","","",""]
[null,60,1,0,null,"",null,null,"","","","","","","","","",""]
[null,61,1,0,null,"",null,null,"","","","","","","","","",""]
[null,62,1,0,null,"",null,null,"","","","","","","","","",""]
[null,63,1,0,null,"",null,null,"","","","","","","","","",""]
[null,64,1,0,null,"",null,null,"","","","","","","","","",""]
[null,65,1,0,null,"",null,null,"","","","","","","","","",""]
[null,66,{"$f":"$A$11","v":1},0,null,{"$f":"IF(B85<=$N$12,B85,\"\")","v":""},null,null,"","","","","","","","","",""]
[null,{"$f":"B85+1","v":67},1,{"$f":"IF(F86<>\"\",1,0)","v":0},null,"",null,null,"","","","","","","","","",""]
[null,68,1,0,null,"",null,null,"","","","","","","","","",""]
[null,69,1,0,null,"",null,null,"","","","","","","","","",""]
[null,70,1,0,null,"",null,null,"","","","","","","","","",""]
[null,71,1,0,null,"",null,null,"","","","","","","","","",""]
[null,72,1,0,null,"",null,null,"","","","","","","","","",""]
[null,73,1,0,null,"",null,null,"","","","","","","","","",""]
[null,74,1,0,null,"",null,null,"","","","","","","","","",""]
[null,75,1,0,null,"",null,null,"","","","","","","","","",""]
[null,76,1,0,null,"",null,null,"","","","","","","","","",""]
[null,77,1,0,null,"",null,null,"","","","","","","","","",""]
[null,78,1,0,null,"",null,null,"","","","","","","","","",""]
[null,79,1,0,null,"",null,null,"","","","","","","","","",""]
[null,80,1,0,null,"",null,null,"","","","","","","","","",""]
[null,81,1,0,null,"",null,null,"","","","","","","","","",""]
[null,82,1,0,null,"",null,null,"","","","","","","","","",""]
[null,83,1,0,null,"",null,null,"","","","","","","","","",""]
[null,84,1,0,null,"",null,null,"","","","","","","","","",""]
[null,85,1,0,null,"",null,null,"","","","","","","","",""]
[null,86,1,0,null,"",null,null,"","","","","","","","",""]
[null,87,1,0,null,"",null,null,"","","","","","","","",""]
[null,88,1,0,null,"",null,null,"","","","","","","","",""]
[null,89,1,0,null,"",null,null,"","","","","","","","",""]
[null,90,1,0,null,"",null,null,"","","","","","","","",""]
[null,91,1,0,null,"",null,null,"","","","","","","","",""]
[null,92,1,0,null,"",null,null,"","","","","","","","",""]
[null,93,1,0,null,"",null,null,"","","","","","","","",""]
[null,94,1,0,null,"",null,null,"","","","","","","","",""]
[null,95,1,0,null,"",null,null,"","","","","","","","",""]
[null,96,1,0,null,"",null,null,"","","","","","","","",""]
[null,97,1,0,null,"",null,null,"","","","","","","","",""]
[null,98,1,0,null,"",null,null,"","","","","","","","",""]
[null,99,1,0,null,"",null,null,"","","","","","","","",""]
[null,100,1,0,null,"",null,null,"","","","","","","","","",""]
[null,null,null,null,null,null,null,""]
[null,null,null,null,null,"Limite",null,"Limite","Limite","Limite","Limite","Limite","Limite","Limite","Limite",null,"Limite"]

{"sheet":"C400","index":5,"n_rows":110,"n_cols":22,"rows_kept":110,"cut":false,"hidden":true,"merged":[[1,5,1,19],[2,5,2,19],[88,15,88,17],[94,1,94,22],[108,6,108,10],[77,13,79,17],[77,18,77,21],[84,2,86,6],[84,7,85,10],[40,17,40,21],[60,2,62,6],[60,7,61,10],[72,2,74,6],[72,7,73,10],[11,11,12,12],[11,13,13,14],[11,15,13,15],[11,16,12,18],[13,16,13,18],[14,11,14,12],[14,13,14,14],[14,16,14,18],[15,11,15,12],[15,13,15,14],[15,16,15,18],[16,11,16,12],[16,13,16,14],[16,16,16,18],[17,11,17,12],[23,16,23,18],[20,11,20,12],[20,13,20,14],[20,16,20,18],[17,13,17,14],[17,16,17,18],[21,11,21,12],[21,13,21,14],[21,16,21,18],[18,11,18,12],[18,13,18,14],[18,16,18,18],[19,11,19,12],[19,13,19,14],[19,16,19,18],[25,11,25,12],[25,13,25,14],[25,16,25,18],[87,15,87,17],[6,1,6,22],[24,11,24,12],[24,13,24,14],[24,16,24,18],[26,11,26,12],[26,13,26,14],[26,16,26,18],[22,11,22,12],[22,13,22,14],[22,16,22,18],[23,11,23,12],[23,13,23,14]]}
[]
[null,null,null,null,null,"CENSO EDUCATIVO 2022"]
[null,null,null,null,null,"MATRÍCULA, DOCENTES Y RECURSOS"]
[]
[]
[]
[null,"400. OTROS RECURSOS DISPONIBLES PARA LA ENSEÑANZA (Para II.EE. Públicas y Privadas)"]
[]
[null,"EQUIPOS Y SERVICIOS QUE DISPONE EL SERVICIO/NIVEL EDUCATIVO"]
[null,"401. EQUIPOS Y SERVICIOS QUE DISPONE EL SERVICIO/NIVEL EDUCATIVO"]
[]
[null,null,null,null,null,null,null,null,null,null,null," Sí - No",null,"¿Cuántos tiene?",null,"¿Cuántos estan operativos?","¿Son utilizados para la enseñanza en interacción con los estudiantes?",null,null,"SI"]
[null,null,null,null,null,null,"EQUIPOS Y SERVICIOS",null,null,null,null,null,null,null,null,null,null,null,null,"NO"]
[null,null,null,null,null,null,null,null,null,null,{"$f":"COUNTIF(L15:L27,\"SI\")+COUNTIF(L15:L27,\"NO\")","v":0},null,null,null,null,null," Sí - No"]
[null,null,null,null,null,"01","Televisor(es)"]
[null,null,null,null,null,"02","Computadoras (PC de escritorio)"]
[null,null,null,null,null,"03","Laptop convencionales"]
[null,null,null,null,null,"04","Laptop XO"]
[null,null,null,null,null,"05","Servidores ( exclusivo del nivel)"]
[null,null,null,null,null,"06","Tablets"]
[null,null,null,null,null,"07","Proyector"]
[null,null,null,null,null,"08","Radiograbadora"]
[null,null,null,null,null,"09","Reproductor de DVD o Blue Ray"]
[null,null,null,null,null,"10","Impresoras"]
[null,null,null,null,null,"11","Pizarras digitales"]
[null,null,null,null,null,"12","Modem"]
[null,null,null,null,null,"13","Servicio de Internet"]
[]
[]
[null,"402. ¿QUÉ CICLOS ATENDIDOS CUENTAN CON BIBLIOTECA DE AULA?",null,null,null,null,null,null,null,null,null,null,"404. ¿QUÉ TIPO DE TALLERES BRINDA EL CEBA?"]
[null,null,"(Marque con una aspa “X” el ciclo correspondiente y anote el",null,null,null,null,null,null,null,null,null,null,"(Marque con una “X”, una o más opciones)"]
[null,null,"número total de ejemplares, según corresponda)."]
[null,null,null,null,null,null,null,null,null,null,null,null,null,null,null,"Corte y Confección"]
[null,null,null,null,null,null,"Nº Total de Ejemplares",null,null,null,null,null,null,null,null,"Computación e Informática"]
[null,null,null,null,null,null,null,null,null,null,null,null,null,null,null,"Agroindustria"]
[null,null,null,null,"Avanzado",null,null,null,null,null,null,null,null,null,null,"Mecánica"]
[null,null,null,null,null,null,null,null,null,null,null,null,null,null,null,"Gastronomía"]
[null,null,null,null,"NINGUNO",null,null,null,null,null,null,null,null,null,null,"Carpintería"]
[null,null,null,null,null,null,null,null,null,null,null,null,null,null,null,"Contabilidad"]
[null,"403. ¿EL CEBA CUENTA CON TALLERES?",null,null,null,null,null,null,null,null,null,null,null,null,null,"Electricidad"]
[null,null,null,null,null,null,null,null,null,null,null,null,null,null,null,"Otro"]
[null,null,"Sí",null,"No  ",null,null,null,"Pase a la pregunta 405",null,null,null,null,null,null,"NINGUNO"]
[]
[]
[null,"AULAS Y SERVICIOS HIGIÉNICOS UTILIZADO POR EL NIVEL / SERVICIO EDUCATIVO"]
[null,"405. INDIQUE EL NÚMERO DE AULAS UTILIZADO",null,null,null,null,null,null,null,null,null,null,"406. INDIQUE EL NÚMERO DE SERVICIOS HIGIÉNICOS UTILIZADOS"]
[]
[null,null,"TOTAL AULAS",null,null,null,null,null,null,{"$f":"J50+J52","v":0},null,null,null,"TOTAL SS.HH.",null,null,null,null,null,null,{"$f":"U50+U52","v":0}]
[]
[null,null,"De uso exclusivo :",null,null,null,null,null,null,null,null,null,null,"De uso exclusivo :"]
[]
[null,null,"De uso compartido con otros niveles :",null,null,null,null,null,null,null,null,null,null,"De uso compartido con otros niveles :"]
[]
[]
[]
[null,"INTERNET, SEGURIDAD E IMPLEMENTACION"]
[null,"407. SOBRE EL ACCESO A INTERNET EN LAS INSTALACIONES DONDE",null,null,null,null,null,null,null,null,null,null,"410. SEÑOR(A) DIRECTOR(A) ¿CUAL(ES) DISPOSITIVO(S) INFORMATICO(S)"]
[null,null,"   FUNCIONA EL NIVEL/SERVICIO EDUCATIVO",null,null,null,null,null,null,null,null,null,null,"  UTILIZA PRINCIPALMENTE PARA REALIZAR LAS LABORES DE GESTION"]
[null,null,"  (Marque con un aspa “X” según corresponda)",null,null,null,null,null,null,null,null,null,null,"  DE ESTE NIVEL/SERVICIO EDUCATIVO EN SU HOGAR?"]
[]
[null,null,"ACTOR",null,null,null,null,"¿Tienen acceso a internet en el Servicio Educativo?",null,null,null,null,null,"(Puede marcar más de una opción)"]
[null,null,null,null,null,null,null,null,null,null,null,null,null,""]
[null,null,null,null,null,null,null," Sí,"," Sí, la"," Sí,",null,null,null,"",null,"Trabajo con una PC"]
[null,null,null,null,null,null,{"$f":"SUM(G65:G68)","v":0},"Todos","Mayoria","Algunos","Ninguno",null,null,"",null,"Trabajo con una Laptop"]
[null,null,"Los estudiantes",null,null,null,{"$f":"COUNTIF(H65:K65,\"X\")","v":0},null,null,null,null,null,null,"",null,"Trabajo con una Tablet"]
[null,null,"El personal directivo",null,null,null,{"$f":"COUNTIF(H66:K66,\"X\")","v":0},null,null,null,null,null,null,null,null,"Trabajo con un Celular"]
[null,null,"El personal docente",null,null,null,{"$f":"COUNTIF(H67:K67,\"X\")","v":0},null,null,null,null,null,null,null,null,"No, no cuento con ninguno de los anteriores"]
[null,null,"El personal administrativo",null,null,null,{"$f":"COUNTIF(H68:K68,\"X\")","v":0}]
[]
[null,"408. SOBRE EL ACCESO A INTERNET EN EL DOMICILIO"]
[null,null,"  (Marque con un aspa “X” según corresponda)",null,null,null,null,null,null,null,null,null,"411. CON RESPECTO AL CONCOCIMIENTO Y ELABORACIÓN DE CLASES"]
[null,null,null,null,null,null,null,null,null,null,null,null,null,"  VIRTUALES PARA LOS ESTUDIANTES. ¿CUAL ES EL NIVEL DE USO LAS"]
[null,null,"ACTOR",null,null,null,null,"¿Tienen acceso a internet en su domicilio?",null,null,null,null,null,"  HERRAMIENTAS O PLATAFORMAS TECNOLOGICAS PARA ESTE FIN ?"]
[]
[null,null,null,null,null,null,null," Sí,"," Sí, la"," Sí,",null,null,null,"(Marque con un aspa “X” según corresponda para cada caso)"]
[null,null,null,null,null,null,{"$f":"SUM(G77:G80)","v":0},"Todos","Mayoria","Algunos","Ninguno"]
[null,null,"Los estudiantes",null,null,null,{"$f":"COUNTIF(H77:K77,\"X\")","v":0}]
[null,null,"El personal directivo",null,null,null,{"$f":"COUNTIF(H78:K78,\"X\")","v":0},null,null,null,null,null,null,"HERRAMIENTA/PLATAFORMA TECNOLÓGICA PARA LA ELABORACIÓN DE CLASES VIRTUALES",null,null,null,null,"Nivel de uso de los docentes"]
[null,null,"El personal docente",null,null,null,{"$f":"COUNTIF(H79:K79,\"X\")","v":0}]
[null,null,"El personal administrativo",null,null,null,{"$f":"COUNTIF(H80:K80,\"X\")","v":0},null,null,null,null,null,{"$f":"SUM(M81:M89)","v":0},null,null,null,null,null,"Todos","Mayoria","Algunos","Ninguno"]
[null,null,null,null,null,null,null,null,null,null,null,null,{"$f":"COUNTIF(S81:V81,\"X\")","v":0},"Moodle"]
[null,"409. EN EL PRESENTE AÑO 2021, ¿CUENTAN CON PC O LAPTOP EN SU DOMICILIO?",null,null,null,null,null,null,null,null,null,null,{"$f":"COUNTIF(S82:V82,\"X\")","v":0},"Canvas"]
[null,null,"(Marque con un aspa “X” según corresponda)",null,null,null,null,null,null,null,null,null,0,"Zoom"]
[null,null,null,null,null,null,null,null,null,null,null,null,0,"Meet"]
[null,null,"ACTOR",null,null,null,null,"¿Cuéntan con Pc o Laptop en su domicilio?",null,null,null,null,0,"Teams"]
[null,null,null,null,null,null,null,null,null,null,null,null,0,"Whatsapp"]
[null,null,null,null,null,null,null," Sí,"," Sí, la"," Sí,",null,null,0,"Facebook/Messenger"]
[null,null,null,null,null,null,{"$f":"SUM(G89:G92)","v":0},"Todos","Mayoria","Algunos","Ninguno",null,0,"Otro 1"]
[null,null,"Los estudiantes",null,null,null,{"$f":"COUNTIF(H89:K89,\"X\")","v":0},null,null,null,null,null,0,"Otro 2"]
[null,null,"El personal directivo",null,null,null,{"$f":"COUNTIF(H90:K90,\"X\")","v":0}]
[null,null,"El personal docente",null,null,null,{"$f":"COUNTIF(H91:K91,\"X\")","v":0}]
[null,null,"El personal administrativo",null,null,null,{"$f":"COUNTIF(H92:K92,\"X\")","v":0}]
[]
[]
[null,"500. EDUCACIÓN FÍSICA Y DEPORTE (Para II.EE. Públicas y Privadas)"]
[]
[]
[null,"501. DURANTE EL AÑO 2020, EN ESTE NIVEL/SERVICIO EDUCATIVO, ¿SE FOMENTÓ",null,null,null,null,null,null,null,null,null,null,"502. ¿EL SERVICIO/NIVEL EDUCATIVO CUENTA CON LA ASIGNATURA DE"]
[null,null,"LA REALIZACIÓN DE ACTIVIDADES FÍSICAS O DEPORTE, CON LA FINALIDAD",null,null,null,null,null,null,null,null,null,null,"  EDUCACIÓN FÍSICA?"]
[null,null,"DE PRIORIZAR EL CUIDADO DEL ESTUDIANTE Y SU BIENESTAR INTEGRAL?",null,null,null,null,null,null,null,null,null,null,null,null,null,"¿Cuántas horas a la semana se dictan?"]
[null,null,null,null,null,null,null,null,null,null,null,null,null," Sí"]
[null,null," Sí",null,"No  ",null,null,null,null,null,null,null,null,null,null,null,"¿Cuántos docentes están asignados al "]
[null,null,null,null,null,null,null,null,null,null,null,null,null,null,null,null,"dictado del curso?"]
[null,null,null,null,null,null,null,null,null,null,null,null,null," No"]
[null,null,null,null,"Actividades de movimiento"]
[null,null,null,null,"Actividades de deporte",null,null,null,null,null,null,null,"503. EN EL PRESENTE AÑO 2021, ¿ESTE NIVEL/SERVICIO EDUCATIVO TIENE"]
[null,null,null,null,"Actividades artístico culturales",null,null,null,null,null,null,null,null,"PLANIFICADO LA EJECUCIÓN DE TALLERES COMPLEMENTARIOS DEPORTIVOS O"]
[null,null,null,null,"Actividades complementarias de encuentro con la comunidad educativa",null,null,null,null,null,null,null,null,"RECREATIVOS?"]
[null,null,null,null,"Otras Actividades"]
[null,null,null,null,null,null,null,null,null,null,null,null,null," Sí",null,"No  "]

{"sheet":"C600","index":6,"n_rows":132,"n_cols":22,"rows_kept":132,"cut":false,"hidden":true,"merged":[[37,9,38,9],[51,5,52,8],[40,15,40,18],[46,9,47,9],[44,9,45,9],[46,15,46,19],[37,5,38,8],[40,5,40,8],[41,5,42,8],[44,5,45,8],[46,5,47,8],[6,1,6,21],[1,5,1,18],[2,5,2,18],[22,19,24,19],[23,2,30,3],[23,9,24,9],[25,9,26,9],[27,9,28,9],[29,9,30,9],[18,19,19,19],[20,19,21,19],[22,2,22,3],[12,19,13,19],[14,19,15,19],[16,19,17,19],[11,12,11,13],[11,14,11,15],[11,16,11,17],[66,2,66,7],[69,4,69,8],[71,12,75,14],[71,15,72,18],[31,2,34,3],[31,9,32,9],[35,2,36,3],[41,9,42,9],[43,5,43,7],[48,2,52,3],[48,9,50,9],[51,9,52,9],[37,2,47,3],[48,5,50,8],[71,19,72,21],[73,15,75,15],[73,16,75,17],[73,18,75,18],[73,19,75,19],[73,20,75,20],[73,21,75,21],[92,13,92,17],[77,16,77,17],[78,16,78,17],[79,16,79,17],[80,13,80,14],[80,16,80,17],[110,16,110,18],[110,19,110,20],[114,3,114,4],[124,12,127,16],[124,18,125,20],[126,3,126,7],[126,18,127,18],[126,19,127,20],[101,18,101,19],[105,2,108,4],[105,5,105,9],[106,5,108,5],[106,6,108,6],[106,7,108,8],[106,9,108,9],[23,5,24,8],[25,5,26,8],[27,5,28,8],[29,5,30,8],[31,5,32,8],[58,18,58,20],[128,19,128,20],[129,19,129,20],[130,19,130,20],[131,5,131,8],[105,13,105,18],[93,8,93,9],[94,4,94,5],[94,6,95,8],[101,12,101,14],[101,15,101,16],[84,5,84,8],[86,12,86,14],[86,15,86,16],[86,17,86,18],[91,6,92,9]]}
[]
[null,null,null,null,null,"CENSO EDUCATIVO 2022"]
["Si",null,null,null,null,"MATRÍCULA, DOCENTES Y MATERIALES EDUCATIVOS"]
["No"]
[]
[]
[null,"600. FORTALECIMIENTO DE LA GESTIÓN"]
[]
[null,"601. ESTE NIVEL/SERVICIO EDUCATIVO ¿COORDINA ALGUNA ACCIÓN CON EL",null,null,null,null,null,null,null,null,null,"604. SOBRE LA GESTIÓN DEL RIESGO DE DESASTRES Y LA SEGURIDAD EN ESTE NIVEL/ SERVICIO"]
[null,null,"GOBIERNO LOCAL (DISTRITAL O PROVINCIAL) PARA MEJORAR LA",null,null,null,null,null,null,null,null,null,"EDUCATIVO, ATIENDA LAS SIGUIENTES PREGUNTAS:"]
[null,null,"PRESTACIÓN DEL SERVICIO EDUCATIVO?"]
[null,null,null,null,null,null,null,null,null,null,null,{"$f":"SUM(L13:L27)","v":0},null,null,"PREGUNTA",null,null,null,null,"RESPUESTA"]
[null,"1: Siempre",null,"Sí    ",null,null,"No  ",null,null,"Pase a la",null,{"$f":"IF(T13<>\"\",1,0)","v":0},"¿Incorpora la Gestión del Riesgo de Desastres en los instrumentos de",null,null,null,null,null,null,null,"01"]
[null,"2: Casi Siempre",null,null,null,null,null,null,null,"pregunta 603.",null,null,"Gestión y Planificación Curricular para el desarrollo de una cultura de …"]
[null,"3: A Veces",null,null,null,null,null,null,null,null,null,{"$f":"IF(T15<>\"\",1,0)","v":0},"¿El Plan de Gestión de Riesgo de Desastres contiene acciones con",null,null,null,null,null,null,null,"02"]
[null,"4: Casi Nunca",null,null,null,"Con Municipalidad Distrital",null,null,null,null,null,null,"enfásis en la contingencia ante la emergencia sanitaria por Covid19?"]
[null,"5: Nunca",null,null,null,"Con Municipalidad Provincial",null,null,null,null,null,{"$f":"IF(T17<>\"\",1,0)","v":0},"Las zonas seguras para el desplazamiento de los miembros de la comu-",null,null,null,null,null,null,null,"03"]
[null,null,null,null,null,"Con ambas",null,null,null,null,null,null,"nidad educativa y las rutas de evacuación ¿se encuentran señalizadas?"]
[null,null,null,null,null,null,null,null,null,null,null,{"$f":"IF(T19<>\"\",1,0)","v":0},"¿Se cuenta con el mínimo de dispositivos de seguridad",null,null,null,null,null,null,null,"04"]
[null,"602. FRECUENCIA DE LA ACCION QUE AYUDA EL GOBIERNO LOCAL PARA",null,null,null,null,null,null,null,null,null,null,"para situaciones de emergencia y desastres?"]
[null,null,"MEJORAR LA PRESTACIÓN DEL SERVICIO",null,null,null,null,null,null,null,null,{"$f":"IF(T21<>\"\",1,0)","v":0},"¿Fomenta la participación, compromiso y responsabilidad",null,null,null,null,null,null,null,"05"]
[null,null,null,null,null,null,null,null,null,null,null,null,"sobre la Gestión del Riesgo de Desastres en la comunidad educativa?"]
[null,{"$f":"SUM(B24:B53)","v":0},"COMPONENTE",null,"ACCIÓN",null,null,null,null,"FRECUENCIA",null,{"$f":"IF(T23<>\"\",1,0)","v":0},"¿Desarrolla actividades de soporte socioemcional como el autocuidado,",null,null,null,null,null,null,null,"06"]
[null,{"$f":"IF(J24<>\"\",1,0)","v":0},"Infraestructura",null,"01","Proyecto de inversión pública para el mejoramiento o ampliación del local escolar",null,null,null,null,null,null,"la autoprotección y la resilencia en la comunidad educativa como"]
[null,null,null,null,null,null,null,null,null,null,null,null,"respuesta ante situaciones de emergencias y desastres?"]
[null,{"$f":"IF(J26<>\"\",1,0)","v":0},null,null,"02","Apoyo y asistencia técnica para el uso de recursos de mantenimiento preventivo",null,null,null,null,null,null,null,null,null,null,null,null,null,{"$f":"COUNTIF(T13:T25,\"SI\")+COUNTIF(T13:T25,\"NO\")","v":0}]
[null,null,null,null,null,null,null,null,null,null,null,"605. EN ESTE NIVEL/SERVICIO EDUCATIVO, ¿SE CUENTA CON PERSONAL QUE SE ENCUENTRE"]
[null,{"$f":"IF(J28<>\"\",1,0)","v":0},null,null,"03","Gestiones para el acceso a servicios básicos de IIEE",null,null,null,null,null,null,"DENTRO DEL GRUPO DE RIESGO DE LA COVID19 SEGÚN LO DEFINIDO POR EL NUMERAL"]
[null,null,null,null,null,null,null,null,null,null,null,null,"6.1.17 DE LA RM N° 972-2020-MINSA"]
[null,{"$f":"IF(J30<>\"\",1,0)","v":0},null,null,"04","Adquisición de mobiliario y equipamiento para la IIEE"]
[null,null,null,null,null,null,null,null,null,null,null,null,"Sí    ",null,null,"No  "]
[null,{"$f":"IF(J32<>\"\",1,0)","v":0},"Aprendizajes",null,"05","Proyecto de inversión pública para la mejora de los aprendizajes"]
[null,null,null,null,null,null,null,null,null,null,null,null,null,"Indique la cantidad de personal del grupo de riesgo:"]
[null,{"$f":"IF(J34<>\"\",1,0)","v":0},null,null,"06","Programas de reforzamiento escolar"]
[null,{"$f":"IF(J35<>\"\",1,0)","v":0},null,null,"07","Apoyo con material educativo",null,null,null,null,null,null,null,"Directivos y docentes:"]
[null,{"$f":"IF(J36<>\"\",1,0)","v":0},"Docentes",null,"08","Contratación de docentes",null,null,null,null,null,null,null,"Administrativos y No docentes:"]
[null,{"$f":"IF(J37<>\"\",1,0)","v":0},null,null,"09","Talleres o cursos de capacitación"]
[null,{"$f":"IF(J38<>\"\",1,0)","v":0},"Gestión",null,"10","Articulación local con actores públicos y privados a nivel local",null,null,null,null,null,"606. ¿CUÁL ES LA PRIMERA PALABRA QUE SE LE VIENE A LA MENTE CUANDO"]
[null,null,null,null,null,null,null,null,null,null,null,null,"PIENSA O ESCUCHA ‘’MINISTERIO DE EDUCACIÓN’’"]
[null,{"$f":"IF(J40<>\"\",1,0)","v":0},null,null,"11","Atención de casos en DEMUNA"]
[null,{"$f":"IF(J41<>\"\",1,0)","v":0},null,null,"12","Articulación con UGEL y DRE de su ámbito",null,null,null,null,null,null,"Escriba solo una palabra"]
[null,{"$f":"IF(J42<>\"\",1,0)","v":0},null,null,"13","Gestiones para la instalación de servicios básicos de conectividad"]
[null,null,null,null,null,null,null,null,null,null,null,"607. ¿CON CUÁL DE LOS SIGUIENTES LEMAS O FRASES ASOCIA AL MINEDU?"]
[null,{"$f":"IF(J44<>\"\",1,0)","v":0},null,null,"14","Apoyo con alimentación para estudiantes",null,null,null,null,null,null,null,null,"Mejor educación, mejores peruanos"]
[null,{"$f":"IF(J45<>\"\",1,0)","v":0},null,null,"15","Vivienda y alimentación para docentes (zonas rurales, fronteras, etc)",null,null,null,null,null,null,null,null,"La educación no para"]
[null,null,null,null,null,null,null,null,null,null,null,null,null,null,"No asocio un lema específico al Minedu"]
[null,{"$f":"IF(J47<>\"\",1,0)","v":0},null,null,"16","Apoyo con movilidad local para estudiantes y docentes",null,null,null,null,null,null,null,null,"Otro"]
[]
[null,{"$f":"IF(J49<>\"\",1,0)","v":0},"Recuperación",null,"17","Promoción de acciones comunitarias para identificación de estudiantes que interrumpen estudios",null,null,null,null,null,"608. ¿CON QUÉ EMOCIONES ASOCIA CON EL MINEDU?"]
[null,null,null,null,null,null,null,null,null,null,null,null,null,null,"Positivas"]
[null,null,null,null,null,null,null,null,null,null,null,null,null,null,"Neutra"]
[null,{"$f":"IF(J52<>\"\",1,0)","v":0},null,null,"18","Impulso del registro nominal de estudiantes en Alerta Escuela por parte de directores de II.EE",null,null,null,null,null,null,null,null,"Negativas"]
[]
[null,null,null,null,null,null,null,null,null,null,null,"609. ¿QUÉ CANAL DE COMUNICACIÓN UTILIZA PARA INFORMARSE SOBRE LAS"]
[null,"603. ¿iNCORPORA LA SEGURIDAD Y DEFENSA NACIONAL EN LOS INSTRUMENTOS",null,null,null,null,null,null,null,null,null,null,"LAS NOVEDADES DEL MINEDU?"]
[null,null,"DE GESTIÓN Y PLANIFICACIÓN CURRICULAR PARA EL DESARROLLO DE UNA",null,null,null,null,null,null,null,null,null,null,null,"SIAGIE",null,null,"Programas radiales"]
[null,null,"CULTURA DE PAZ, Y FORTALECIMIENTO DE LA IDENTIDAD NACIONAL?",null,null,null,null,null,null,null,null,null,null,null,"Redes sociales",null,null,"Mensajes de texto"]
[null,null,null,null,null,null,null,null,null,null,null,null,null,null,"Portales del Minedu",null,null,"Correo electrónico"]
[null,null,null,"Sí    ",null,null,"No  ",null,null,null,null,null,null,null,"Programas televisivos",null,null,"Otro"]
[]
[]
[]
[null,"610. EN EL AÑO 2022, ¿ESTE SERVICIO/NIVEL EDUCATIVO HA REALIZADO O",null,null,null,null,null,null,null,null,null,"614. ESTE SERVICIO/NIVEL EDUCATIVO ¿CUENTA CON ALGUNA EXPERIENCIA EXITOSA O"]
[null,null,"PARTICIPADO EN ACCIONES DE SEGURIDAD Y DEFENSA NACIONAL?",null,null,null,null,null,null,null,null,null,"BUENA PRÁCTIVA DOCENTE Y/O GESTIÓN ESCOLAR ENMARCADAS EN ALGUNA DE LAS"]
[null,null,null,null,null,null,null,null,null,null,null,null,"LÍNEAS ESTRATÉGICAS?"]
[null,null,"Marque todas las opciones implementadas"]
[null,null,"Actividad",null,null,null,null,null,null,"Marcar con \"X\"",null,null,"Sí    ",null,null,"No  "]
[null,null,"Capacitaciones"]
[null,null,"Utilizado una estrategía comunicacional",null,null,null,null,null,null,null,null,null,null,null,null,"Complete la tabla"]
[null,null,"Otros",null,null,null,null,null,null,null,null,null,"(Marque con una “X” en “Sí” o “No” para cada línea estratégica e ingrese los años según corresponda)"]
[]
[null,"611. EN EL AÑO 2022, ¿ESTE SERVICIO/NIVEL EDUCATIVO HA INCORPORADO ",null,null,null,null,null,null,null,null,null,null,"Línea Estratégica",null,null,"Experiencia exitosa",null,null,null,"Buena práctica docente y/o \nGestión escolar"]
[null,null,"ACCIONES DE GESTIÓN DEL RIESGO DE EMERGENCIAS Y DESASTRES EN SUS"]
[null,null,"INSTRUMENTOS DE GESTIÓN VIGENTES?",null,null,null,null,null,null,null,null,null,null,null,null,"¿Cuenta con experiencia exitosa?","Año de la experien cia exitosa",null,"Se socializó con otras entidades","Cuenta con buena práctica?","Año de la buena práctica","Se socializó con otras entidades"]
[]
[null,null,null,"Sí    ","X",null,"No  ",""]
[null,null,null,null,null,null,null,null,null,null,null,null,null,null,null,"Sí - No",null,null,"Sí - No","Sí - No",null,"Sí - No"]
[null,null,null,null,null,"Precise los documentos de gestión",null,null,null,null,null,"01","a. Gestión del Riesgo de Desastres"]
[null,null,null,null,null,null,null,null,null,null,null,"02","b. Adaptación al cambio climático"]
[null,null,null,"Documentos de Gestión",null,null,null,null,null,"Marcar con \"X\"",null,"03","c. Seguridad y Defensa Nacional"]
[null,null,null,"Proyecto Educativo Institucional (PEI)",null,null,null,null,null,null,null,"04","d. Otro"]
[null,null,null,"Plan Anual de Trabajo (PAT)",null,null,null,null,null,null,null,null,null,null,null,{"$f":"COUNTIF(P78:P81,\"SI\") + COUNTIF(P78:P81,\"NO\")","v":0},null,null,null,{"$f":"COUNTIF(T78:T81,\"SI\") + COUNTIF(T78:T81,\"NO\")","v":0}]
[null,null,null,"Proyecto Currícular Institucional (PCI)",null,null,null,null,null,null,null,"615. EN EL AÑO 2022 ¿CUÁLES SON LOS EQUIPOS Y SERVICIOS INFORMÁTICOS QUE"]
[null,null,null,"Reglamento Interno (RI)",null,null,null,null,null,null,null,null,"CUENTA ESTE SERVICIO/NIVEL EDUCATIVO PARA REPORTAR LAS EMERGENCIAS, "]
[null,null,null,"Otros",null,null,null,null,null,null,null,null,"DESASTRES Y/O PELIGRO INMINENTE?"]
[]
[null,"612. EN EL AÑO 2022, ¿ESTE SERVICIO/NIVEL EDUCATIVO CUENTA CON SU PLAN DE ",null,null,null,null,null,null,null,null,null,null,"Equipos",null,null,null,null,"Marcar con \"X\""]
[null,null,"GESTIÓN DEL RIESGO DE DESASTRES VIGENTE?",null,null,null,null,null,null,null,null,null,"PC"]
[null,null,null,null,null,null,null,null,null,null,null,null,"Tablet"]
[null,null,null,"Sí    ",null,null,"No  ",null,null,null,null,null,"Equipos Móviles"]
[null,null,null,null,null,null,null,null,null,null,null,null,"Internet"]
[null,null,null,null,null,null,"Documento de aprobación N°",null,null,null,null,null,"No se cuenta"]
[null,null,null,null,null,null,null,null,null,null,null,null,"Otros"]
[]
[null,null,null,null,null,null,"Fecha de aprobación",null,null,null,null,"616. EN EL AÑO 2022, ANTE LA DETECCIÓN DEL PELIGRO INMINENTE, EMERGENCIA"]
[null,null,null,null,null,null,null,null,null,null,null,null,"O DESASTRE ¿ESTE SERVICIO/NIVEL EDUCATIVO REALIZA LA ALERTA AL ESPACIO"]
[null,null,null,null,null,null,null,"Día","Mes","Año",null,null,"DE MONITOREO Y SEGUIMIENTO SECTORIAL (EMSS) DE LA UGEL?"]
[]
[null,null,null,null,null,null,null,null,null,null,null,null,"Sí    ",null,null,"No  "]
[null,"613. EN EL AÑO 2022 ¿LOS MIEMBROS DE ESTE SERVICIO/NIVEL EDUCATIVO HAN ",null,null,null,null,null,null,null,null,null,null,null,null,null,null,null,"¿Por qué?"]
[null,null,"SIDO CAPACITADOS EN MATERIA DE GESTIÓN INTEGRAL DEL RIESGO DE "]
[null,null,"EMERGENCIAS Y DESASTRES?",null,null,null,null,null,null,null,null,null,"Items",null,null,null,null,null,"Marcar con \"X\""]
[null,null,null,null,null,null,null,null,null,null,null,null,"No se tuvo emergencia en territorio"]
[null,null,null,"Sí    ",null,null,"No  ",null,null,null,null,null,"No se cuenta con los instrumentos y/o herramientas"]
[null,null,null,null,null,null,null,null,null,null,null,null,"No se conoce el procedimiento"]
[null,null,"Tipo de Capacitación",null,null,"Cantidad de personas capacitadas",null,null,null,null,null,null,"Otros"]
[null,null,null,null,null,"N° de Directo- res","N° de Docentes","N° de Administrativos",null,"N° de capacitados CEA y GRD"]
[null,null,null,null,null,null,null,null,null,null,null,"617. EN EL AÑO 2022, ¿ESTE SERVICIO/NIVEL EDUCATIVO PARTICIPÓ EN LOS "]
[null,null,null,null,null,null,null,null,null,null,null,null,"SIMULACROS CONVOCADOS POR MINEDU Y/O INDECI?"]
[null,"01","Curso",null,null,null,null,null,null,null,{"$f":"SUM(F110:J110)","v":0}]
[null,"02","Taller",null,null,null,null,null,null,null,{"$f":"SUM(F111:J111)","v":0},null,"Sí    ",null,null,null,"Items",null,null,"Marcar con \"X\""]
[null,"03","Charla",null,null,null,null,null,null,null,0,null,null,null,null,null,"Primer simulacro"]
[null,"04","Seminario",null,null,null,null,null,null,null,0,null,null,null,null,null,"Segundo simulacro"]
[null,"05","Webinar",null,null,null,null,null,null,null,0,null,"No  ",null,null,null,"Tercer simulacro"]
[null,"06","Otro",null,null,null,null,null,null,null,0,null,null,null,null,null,"Cuarto simulacro"]
[null,null,null,null,null,null,null,null,null,{"$f":"SUM(F110:J115)","v":0}]
[]
[null,"618. ¿ESTE SERVICIO/NIVEL EDUCATIVO, ¿HA RECIBIDO POR PARTE DE LA UGEL",null,null,null,null,null,null,null,null,null,"619. ¿ESTE SERVICIO/NIVEL EDUCATIVO, ¿CUENTA CON EL APOYO DE ALIADOS "]
[null,null,"ACCIONES DE COMUNICACIÓN PRESENCIAL O VIRTUAL PARA SENSIBILIZAR",null,null,null,null,null,null,null,null,null," ESTRATÉGICOS DE SU LOCALIDAD PARA ATENDER ALGUNO DE LOS SIGUIENTES"]
[null,null,"A LA COMUNIDAD EDUCATIVA EN TEMAS DE GESTIÓN DEL RIESGO DE DESASTRES,",null,null,null,null,null,null,null,null,null," TEMAS?"]
[null,null,"CAMBIO CLIMÁTICO Y/O SEGURIDAD Y DEFENSA NACIONAL ?"]
[null,null,null,null,null,null,null,null,null,null,null,null,"(Marque con una “X” en “Si” o “No” para cada caso y detalle al principal aliado estratégico"]
[null,null,null,"Sí    ","X",null,"No  ",null,null,null,null,null,"según corresponda)"]
[]
[null,null,null,null,null,"Indique, ¿qué acciones implementó o recibió?",null,null,null,null,null,null,"Temas por atender",null,null,null,null,null,"¿Cuenta con el apoyo de aliados estrategicos de su localidad?"]
[]
[null,null,null,"Documentos de Gestión",null,null,null,null,null,"Marcar con \"X\"",null,null,null,null,null,null,null,null,"Sí - No","Mencione al principal aliado en cada caso"]
[null,null,null,"Afiches y/o díptico y/o tríptico"]
[null,null,null,"Carteles o murales",null,null,null,null,null,null,null,null,"Gestión Integral del riesgo de emergencias"]
[null,null,null,"Ferias estudiantiles",null,null,null,null,null,null,null,null,"Adaptación al cambio climático"]
[null,null,null,"Radionovela y/o audios y/o radioteatro y/o videos …",null,null,null,null,null,null,null,null,"Seguridad y Defensa Nacional"]
[null,null,null,"Otros",null,null,null,null,null,null,null,null,null,null,null,null,null,null,{"$f":"COUNTIF(S129:S131,\"SI\")+COUNTIF(S129:S131,\"NO\")","v":0}]

{"sheet":"C700","index":7,"n_rows":141,"n_cols":19,"rows_kept":141,"cut":false,"hidden":true,"merged":[[97,2,97,6],[97,7,97,9],[97,10,97,14],[97,15,97,17],[96,2,96,6],[96,7,96,9],[96,10,96,14],[96,15,96,17],[95,2,95,6],[95,7,95,9],[95,10,95,14],[95,15,95,17],[89,3,89,17],[94,3,94,5],[94,7,94,9],[94,10,94,14],[94,15,94,17],[58,4,58,7],[58,18,59,18],[73,14,73,17],[84,4,84,7],[49,11,51,11],[49,18,50,18],[52,11,59,11],[52,18,53,18],[54,18,55,18],[56,18,57,18],[6,1,6,18],[33,12,33,17],[34,11,40,11],[35,18,36,18],[36,7,36,9],[37,18,38,18],[39,18,40,18],[41,11,48,11],[41,18,42,18],[43,18,44,18],[45,18,46,18],[47,18,48,18]]}
[]
[null,"CENSO EDUCATIVO 2022"]
[null,"MATRÍCULA, DOCENTES Y RECURSOS"]
[]
[]
[]
[null,"700. APRENDO EN CASA - MULTICANALES"]
[]
[null,"701. INDIQUE CUÁLES SON LOS MEDIOS DE COMUNICACIÓN O MULTICANALES POR LOS QUE LOS ESTUDIANTES DE ESTE NIVEL/SERVICIO EDUCATIVO,"]
[null,null,"PARTICIPAN DE LA ESTRATEGIA “APRENDO EN CASA” - AeC?"]
[null,null,null,null,null,null,null,null,null,null,"¿QUE ESTACIÓN DE RADIO USA PARA ESCUCHAR EL CONTENIDO DE AeC?"]
[null,null,null,"Radio (propia o familiar)",null,null,null,null,null,null,null,"Radio Nacional del Perú"]
[null,null,null,"Radio (autoparlantes o parlantes comunitarios)",null,null,null,null,{"$f":"CONCATENATE(C12,C13)","v":""},null,null,"Radio Regional que emite el programa"]
[null,null,null,"Televisión",null,null,null,null,null,null,null,"Radio local"]
[null,null,null,"Plataforma Web"]
[null,null,null,"WhatsApp",null,null,null,null,null,null,"LAS ACTIVIDADES PROPUESTAS EN LA WEB, ¿SON DESARROLLADAS POR LOS"]
[null,null,null,"Megáfono",null,null,null,null,null,null,"ESTUDIANTES DE LA IE?"]
[null,null,null,"Ninguno",null,"Pase a la pregunta 710.",null,null,null,null,null," Sí  ",null,null,null,"No  "]
[]
[null,"702. SOLO SI MARCO MAS DE UNA ALTERNATIVA EN LA PREGUNTA 801, INDIQUE",null,null,null,null,null,null,null,null,"706. DURANTE EL AÑO 2020, ESTE NIVEL/SERVICIO EDUCATIVO ¿COORDINA O"]
[null,null,"¿CUÁL ES LA PLATAFORMA DE MULTICANALES DE MAYOR USO POR PARTE",null,null,null,null,null,null,null,null,"ARTICULADO ALGUNA ACCIÓN CON EL GOBIERNO LOCAL PARA"]
[null,null,"DE LOS ESTUDIANTES PARA ACCEDER A LA ESTRATEGIA APRENDO EN CASA?",null,null,null,null,null,null,null,null,"INCREMENTAR EL ACCESO A LA ESTRATEGIA APRENDO EN CASA?"]
[]
[null,{"$f":"IF(C12<>\"\",C12,\"\")","v":""},null,"Radio (propia o familiar)",null,null,null,null,null,null,null," Sí  ",null,"No  ",null,null,"Pase a la pregunta 708."]
[null,"",null,"Radio (autoparlantes o parlantes comunitarios)"]
[null,"",null,"Televisión"]
[null,"",null,"Plataforma Web",null,null,null,null,null,null,null,null,null,"Con Municipalidad Distrital"]
[null,"",null,"WhatsApp",null,null,null,null,null,null,null,null,null,"Con Municipalidad Provincial"]
[null,"",null,"Megáfono",null,null,null,null,null,null,null,null,null,"Con ambas"]
[]
[null,null,null,null,null,null,null,null,null,null,"707. FRECUENCIA DE LAS ACCIONES DE AYUDA A LA ESTRATEGIA APRENDO"]
[null,"703. ¿EN QUÉ LENGUA ACCEDEN MAYORITARIAMENTE LOS ESTUDIANTES DE ESTE",null,null,null,null,null,null,null,null,null,"EN CASA, POR PARTE DEL GOBIERNO LOCAL"]
[null,null,"NIVEL/SERVICIO EDUCATIVO A LA MODALIDAD DE “APRENDO EN CASA”?"]
[null,null,null,null,null,null,null,null,null,null,{"$f":"SUM(K35:K60)","v":0},"MEDIO","ACCIÓN",null,null,null,null,null,"FRECUENCIA"]
[null,null,null,"Castellano",null,null,null,null,null,null,{"$f":"IF(S35<>\"\",1,0)","v":0},"Radio","01","Contratación y convenios con emisoras radiales."]
[null,null,null,"Lengua Originaria",null,null,null,"INDIQUE LA LENGUA ORIGINARIA",null,null,{"$f":"IF(S36<>\"\",1,0)","v":0},null,"02","Uso de radio municipal para retransmitir"]
[null,null,null,"Ambas lenguas",null,null,{"$f":"CONCATENATE(C36,C37)","v":""},null,null,null,null,null,null,"la estrategia AeC."]
[null,null,null,null,null,null,null,null,null,null,{"$f":"IF(S38<>\"\",1,0)","v":0},null,"03","Uso de altoparlantes para difusión de"]
[null,null,null,null,null,null,null,null,null,null,null,null,null,"la estrategia Aec."]
[null,"704. SEÑOR(A) DIRECTOR(A), ¿SE ENCUENTRA USTED SATISFECHO CON EL CONTENIDO",null,null,null,null,null,null,null,null,{"$f":"IF(S40<>\"\",1,0)","v":0},null,"04","Instalación y repotenciación de antenas "]
[null,null,"DE “APRENDO EN CASA”?, YA SEA EN CASTELLANO O EN LENGUA ORIGINARIA",null,null,null,null,null,null,null,null,null,null,"equipos de radio."]
[null,null,null,null,null,null,null,null,null,null,{"$f":"IF(S42<>\"\",1,0)","v":0},"TV y Cable","05","Instalación, repotenciación, reparación o"]
[null,null,"En castellano",null,null,null,"En lengua originaria",null,null,null,null,null,null,"reactivación de antenas y equipos de TV."]
[null,null,null,"Satisfecho",null,null,null,"Satisfecho",null,null,{"$f":"IF(S44<>\"\",1,0)","v":0},null,"06","Uso de antena repetidora y TV municipal"]
[null,null,null,"Poco satisfecho",null,null,null,"Poco satisfecho",null,null,null,null,null,"para retransmitir la estrategia AeC."]
[null,null,null,"Insatisfecho",null,null,null,"Insatisfecho",null,null,{"$f":"IF(S46<>\"\",1,0)","v":0},null,"07","Alquiler e instalación de antenas y equipos"]
[null,null,null,"No aplica",null,null,null,"No aplica",null,null,null,null,null,"de cable (DIRECTV)."]
[null,null,null,null,null,null,null,null,null,null,{"$f":"IF(S48<>\"\",1,0)","v":0},null,"08","Trámite para licencias de funcionamiento"]
[null,null,null,null,null,null,null,null,null,null,null,null,null,"y antenas"]
[null,"705. DE LAS SIGUIENTES CARACTERÍSTICAS ¿CUÁL O CUÁLES CONSIDERA QUE",null,null,null,null,null,null,null,null,{"$f":"IF(S50<>\"\",1,0)","v":0},"Internet","09","Instalación y ampliación del servicio de"]
[null,null,"SON LAS CARACTERÍSTICAS QUE DESCRIBEN MEJOR LAS VENTAJAS DE LA",null,null,null,null,null,null,null,null,null,null,"internet satelital."]
[null,null,"PLATAFORMA “APRENDO EN CASA”?",null,null,null,null,null,null,null,{"$f":"IF(S52<>\"\",1,0)","v":0},null,"10","Wifi gratuito en espacios públicos."]
[null,null,null,null,null,null,null,"1: Siempre",null,null,{"$f":"IF(S53<>\"\",1,0)","v":0},"Otros","11","Elaboración y difusión de recursos para"]
[null,null,null,"Es amigable",null,null,null,"2: Casi Siempre",null,null,null,null,null,"promocionar la estrategia AeC"]
[null,null,null,"Es rápido",null,null,null,"3: A Veces",null,null,{"$f":"IF(S55<>\"\",1,0)","v":0},null,"12","Fotocopiado, impresión y distribución de"]
[null,null,null,"Esta bien organizado",null,null,null,"4: Casi Nunca",null,null,null,null,null,"material educativo"]
[null,null,null,"Tiene buen contenido",null,null,null,"5: Nunca",null,null,{"$f":"IF(S57<>\"\",1,0)","v":0},null,"13","Trámite para instalar nuevas antenas y ampliar"]
[null,null,null,"Ninguna de las anteriores",null,null,null,null,null,null,null,null,null,"cobertura de las existentes (Radio, Tv y celular)"]
[null,null,null,"Otro",null,null,null,null,null,null,{"$f":"IF(S59<>\"\",1,0)","v":0},null,"14","Diálogo con actores públicos y privados para"]
[null,null,null,null,null,null,null,null,null,null,null,null,null,"ampliar la cobertura y difundir la estrategia AeC"]
[null,null,null,null,null,null,null,null,null,null,null,null,null,null,null,null,null,null,{"$f":"COUNTIF(S35:S60,\"5: Nunca\")","v":0}]
[]
[null,"708. LA MAYORÍA DE LOS DOCENTES DE ESTE NIVEL/SERVICIO EDUCATIVO, ¿REALIZAN",null,null,null,null,null,null,null,null,"710. SI MARCÓ LA ALTERNATIVA “NINGUNO” EN LA PREGUNTA 701, RESPONDA:"]
[null,null,"LA RETROALIMENTACIÓN A LOS ESTUDIANTES?",null,null,null,null,null,null,null,null,"¿CUÁLES SON LOS MOTIVOS POR LOS QUE LOS ESTUDIANTES DE ESTE NIVEL/"]
[null,null,null,null,null,null,null,null,null,null,null,"SERVICIO EDUCATIVO NO ACCEDEN A “APRENDO EN CASA”?"]
[null,null,null," Sí  ",null,"No  "]
[null,null,null,null,null,null,null,null,null,null,null,null,null,"No sabe cómo acceder"]
[null,null,null,null,null,null,null,null,null,null,null,null,null,"No tiene TV o la señal es mala"]
[null,null,null,"Elemental",null,null,null,null,null,null,null,null,null,"No tiene Radio o la señal es mala"]
[null,null,null,"Descriptiva",null,null,null,null,null,null,null,null,null,"No tiene Internet o la señal es mala"]
[null,null,null,"Reflexiva por descubrimiento",null,null,null,null,null,null,null,null,null,"Usar otros recursos educativos"]
[null,null,null,null,null,null,null,null,null,null,null,null,null,"Se dedican a otras actividades productivas de la comunidad"]
[null,null,null,null,null,null,null,null,null,null,null,null,null,"No encuentra útiles los recursos de Aprendo en casa"]
[null,"709. LA MAYORIA DE LOS DOCENTES DE ESTE NIVEL/SERVICIO EDUCATIVO, ¿HAN",null,null,null,null,null,null,null,null,null,null,null,"Otro",""]
[null,null,"ESTABLECIDO EL MEDIO DE COMUNICACIÓN, PARA LA COORDINACIÓN Y"]
[null,null,"ACOMPAÑAMIENTO DEL TRABAJO REMOTO CON LOS PPFF Y/O ESTUDIANTES?",null,null,null,null,null,null,null,"711. EN UN ESCENARIO DE EDUCACIÓN REMOTA ¿CUÁL ES EL MEDIO DE"]
[null,null,null,null,null,null,null,null,null,null,null,"COMUNICACIÓN PERTINENTE, QUE SEGÚN LAS CONDICIONES DE LA ZONA,"]
[null,null,null," Sí  ",null,"No  ",null,null,null,null,null,"PERMITEN LA COMUNICACIÓN Y APRENDIZAJE DE LOS ESTUDIANTES?."]
[]
[null,null,null,null,null,null,null,null,null,null,null,null,null,"Llamadas telefónicas (celular)"]
[null,null,null,"WhatsApp",null,null,null,null,null,null,null,null,null,"Whatsapp (audios o vídeos)"]
[null,null,null,"Facebook",null,null,null,null,null,null,null,null,null,"Facebook - Messenger"]
[null,null,null,"Correo electrónico",null,null,null,null,null,null,null,null,null,"Videoconferencias (Meet, Zoom, Skype, etc)"]
[null,null,null,"Llamada telefónica",null,null,null,null,null,null,null,null,null,"Correo electrónico"]
[null,null,null,"Otros",null,null,null,null,null,null,null,null,null,"Visitas domiciliarias"]
[]
[]
[null,"ANOTACIONES COMPLEMENTARIAS QUE CONSIDERE NECESARIO AGREGAR"]
[]
[]
[]
[]
[null,"DATOS DEL DIRECTOR(A) / RESPONSABLE DEL LLENADO DE LA CÉDULA"]
[]
[null,null,null,"NOMBRES Y APELLIDOS",null,null,null,"CARGO",null,null,"CORREO ELECTRÓNICO",null,null,null,null,"TELÉFONO"]
[]
[]
[]
[]
[]
[]
[]
["DIRECTOR(A)"]
["SUB DIRECTOR(A)"]
["DOCENTE"]
["COORDINADOR(A)"]
["ASESOR"]
["ADMINISTRATIVO"]
["ASISTENTE"]
["AUXILIAR"]
["SECRETARIA(O)"]
["ESTADÍSTICO"]
["ESPECIALISTA"]
["BIBLIOTECARIO"]
["CARE"]
["COMANDANTE PNP"]
["CONTADOR"]
["DAIP"]
["DIGITADOR(A)"]
["GERENTE"]
["JEFE ACADÉMICO"]
["JEFE ADMINISTRATIVO"]
["JEFE DE ÁREA"]
["JEFE DE LABORATORIO"]
["JEFE DE PERSONAL"]
["JEFE DE SEDE"]
["JEFE DE UNIDAD"]
["OFICINISTA"]
["OPERADOR DE SISTEMAS"]
["PERSONAL DE SERVICIO"]
["PROGRAMADOR"]
["PROMOTOR(A)"]
["PSICOLOGO"]
["REGISTRADOR(A)"]
["REPRESENTANTE LEGAL"]
["SOPORTE TECNOLOGICO"]
["TÉCNICO ADMINISTRATIVO"]
["TESORERO(A)"]
["TRABAJADOR SOCIAL"]
["TUTOR"]
["OTROS"]

{"sheet":"Enviar","index":8,"n_rows":9,"n_cols":4,"rows_kept":9,"cut":false,"hidden":true,"merged":[[0,1,0,4],[1,1,1,4]]}
[null,"CENSO EDUCATIVO 2022"]
[null,"MATRÍCULA, DOCENTES Y RECURSOS"]
[]
[]
[null,null,"Paso 1:","Realice el ENVÍO con su clave EOL."]
[]
[null,null,"Paso 2:","Una vez realizado el ENVÍO,  Revise su constancia de envio."]
[]
[null,null,"  ADVERTENCIA","ASEGÚRESE DE REGISTRAR TODA LA INFORMACIÓN DEL NIVEL INFORMANTE"]